{"text_format":"1","workbook":"xlsx","n_sheets":7,"sheets":["１.表紙","2.チェックシート","3.チェックシートの使い方と利用ルール ","4.設問内容一覧","Sheet1","Sheet2","Sheet3"],"not_rendered":{"charts":0,"images":15,"macros":1,"external_links":0,"defined_names":9,"comments":0,"pivot_tables":0},"unopened":[],"bounds":{"document_bytes":16777216,"sheet_cells":100000,"rows_first":2000,"rows_last":500,"rows_between":2000,"halvings":0,"cell_chars":16384,"cell_head_chars":4096},"cells_cut":0,"cells_raw":0,"read":"whole","date_system":"1900"}

{"sheet":"１.表紙","index":0,"n_rows":83,"n_cols":18,"rows_kept":83,"cut":false,"hidden":false,"merged":[[28,14,28,17],[28,9,28,12],[40,8,41,8],[28,1,28,8],[30,8,31,8],[62,8,63,8],[24,4,24,5],[24,7,24,9],[56,8,57,8],[32,2,33,5],[30,2,31,5],[54,2,55,5],[50,8,51,8],[24,2,24,3],[52,2,53,5],[32,8,33,8],[38,8,39,8],[44,2,45,5],[44,8,45,8],[46,8,47,8],[38,2,39,5],[24,10,24,17],[23,1,24,1],[42,8,43,8],[11,1,11,2],[11,3,11,17],[12,1,12,2],[12,3,12,17],[23,2,23,3],[22,7,22,9],[13,3,13,17],[22,1,22,3],[22,4,22,5],[20,1,20,3],[21,4,21,5],[19,4,19,5],[21,7,21,9],[19,10,19,17],[21,10,21,17],[20,10,20,17],[22,10,22,17],[19,7,19,9],[23,10,23,17],[13,1,13,2],[14,1,18,1],[14,3,14,17],[23,4,23,5],[19,1,19,3],[1,1,2,17],[7,1,8,1],[9,1,10,1],[6,1,6,2],[6,3,6,17],[4,15,4,17],[8,3,8,17],[7,3,7,17],[10,3,10,17],[9,3,9,17],[82,3,82,17],[75,1,75,2],[75,3,75,17],[68,2,69,5],[76,3,76,17],[82,1,82,2],[79,3,79,17],[68,8,69,8],[70,8,72,8],[80,1,80,2],[80,3,80,17],[79,1,79,2],[78,3,78,17],[78,1,78,2],[77,1,77,2],[73,0,73,17],[77,3,77,17],[72,6,72,7],[20,7,20,9],[34,2,35,5],[64,8,65,8],[60,2,61,5],[15,3,15,17],[18,4,18,17],[17,4,17,17],[16,3,16,17],[17,2,18,2],[23,7,23,9],[29,2,29,5],[29,7,29,8],[21,1,21,3],[20,4,20,5],[25,1,25,11],[26,1,26,11],[60,8,61,8],[40,2,41,5],[52,8,53,8],[48,8,49,8],[29,1,72,1],[36,2,37,5],[54,8,55,8],[58,8,59,8],[36,8,37,8],[34,8,35,8],[66,2,67,5],[66,8,67,8],[64,2,65,5],[58,2,59,5],[56,2,57,5],[70,2,72,5],[76,1,76,2],[42,2,43,5],[48,2,49,5],[46,2,47,5],[62,2,63,5],[50,2,51,5]]}
[]
[null,"製品含有化学物質（ＣｉＰ）管理ガイドライン（第４.0版）附属書 チェックシート（第４.01版）（表紙）"]
[]
[]
[null,null,null,null,null,null,null,null,null,null,null,null,null,null,"回答日："]
[]
[null,"自己評価実施組織",null,"※<会社名>，<サイト名>，<自己評価実施年月日>の欄は「2.チェックシート」の各項目欄の入力結果にリンクしていますので，このシートでの入力は不要です。"]
[null,"会社名","日本語",{"$f":"+'2.チェックシート'!G7","v":0}]
[null,null,"英語",{"$f":"+'2.チェックシート'!G8","v":0}]
[null,"サイト名","日本語",{"$f":"+'2.チェックシート'!G9","v":0}]
[null,null,"英語",{"$f":"+'2.チェックシート'!G10","v":0}]
[null,"自己評価実施年月日",null,{"$f":"+'2.チェックシート'!G11","v":"00:00:00"}]
[null,"所在地"]
[null,"生産品目"]
[null,"記入責任者","部署"]
[null,null,"役職"]
[null,null,"氏名"]
[null,null,"連絡先","E-mail"]
[null,null,null,"Tel"]
[null,"規格名",null,null,"取得年月日 *1",null,"認証機関名","認証№",null,null,"認証期限"]
[null,"ISO9001"]
[null,"ISO14001"]
[null,"IEC QC 080000"]
[null,"その他 *2"]
[]
[null,"＊1 取得年月日：未取得の場合は取得計画があれば取得予定日を記入"]
[null,"＊2 その他の公的認証を取得している場合に記載"]
[]
[null,null,null,null,null,null,null,null,null,"自己評価実施組織欄",null,null,null,null,"評価結果確認組織欄"]
[null,"評価結果","評価項目",null,null,null,"設問レベル","設問数",null,"適合","準適合","不適合","非該当",null,"適合","準適合","不適合","非該当"]
[null,null,{"$f":"+'2.チェックシート'!B67","v":" 5.1.3 ＣｉＰ管理の適用範囲の決定"},null,null,null,"ベーシック",0,{"$f":"+H31+H32","v":1}]
[null,null,null,null,null,null,"アドバンス",1,null,{"$f":"SUMPRODUCT(('2.チェックシート'!$G69=\"●\")*('2.チェックシート'!$K69='１.表紙'!J30))","v":0},{"$f":"SUMPRODUCT(('2.チェックシート'!$G69=\"●\")*('2.チェックシート'!$K69='１.表紙'!K30))","v":0},{"$f":"SUMPRODUCT(('2.チェックシート'!$G69=\"●\")*('2.チェックシート'!$K69='１.表紙'!L30))","v":0},{"$f":"SUMPRODUCT(('2.チェックシート'!$G69=\"●\")*('2.チェックシート'!$K69='１.表紙'!M30))","v":0},null,{"$f":"SUMPRODUCT(('2.チェックシート'!$G69=\"●\")*('2.チェックシート'!$S69='１.表紙'!O30))","v":0},{"$f":"SUMPRODUCT(('2.チェックシート'!$G69=\"●\")*('2.チェックシート'!$S69='１.表紙'!P30))","v":0},{"$f":"SUMPRODUCT(('2.チェックシート'!$G69=\"●\")*('2.チェックシート'!$S69='１.表紙'!Q30))","v":0},{"$f":"SUMPRODUCT(('2.チェックシート'!$G69=\"●\")*('2.チェックシート'!$S69='１.表紙'!R30))","v":0}]
[null,null,{"$f":"+'2.チェックシート'!B84","v":" 5.2.2 方針"},null,null,null,"ベーシック",1,{"$f":"+H33+H34","v":1},{"$f":"SUMPRODUCT(('2.チェックシート'!$F86=\"●\")*('2.チェックシート'!$K86='１.表紙'!J30))","v":0},{"$f":"SUMPRODUCT(('2.チェックシート'!$F86=\"●\")*('2.チェックシート'!$K86='１.表紙'!K30))","v":0},{"$f":"SUMPRODUCT(('2.チェックシート'!$F86=\"●\")*('2.チェックシート'!$K86='１.表紙'!L30))","v":0},{"$f":"SUMPRODUCT(('2.チェックシート'!$F86=\"●\")*('2.チェックシート'!$K86='１.表紙'!M30))","v":0},null,{"$f":"SUMPRODUCT(('2.チェックシート'!$F86=\"●\")*('2.チェックシート'!$S86='１.表紙'!O30))","v":0},{"$f":"SUMPRODUCT(('2.チェックシート'!$F86=\"●\")*('2.チェックシート'!$S86='１.表紙'!P30))","v":0},{"$f":"SUMPRODUCT(('2.チェックシート'!$F86=\"●\")*('2.チェックシート'!$S86='１.表紙'!Q30))","v":0},{"$f":"SUMPRODUCT(('2.チェックシート'!$F86=\"●\")*('2.チェックシート'!$S86='１.表紙'!R30))","v":0}]
[null,null,null,null,null,null,"アドバンス",0]
[null,null,{"$f":"+'2.チェックシート'!B91","v":" 5.2.3 組織の役割，責任及び権限"},null,null,null,"ベーシック",1,{"$f":"+H35+H36","v":1},{"$f":"SUMPRODUCT(('2.チェックシート'!$F93=\"●\")*('2.チェックシート'!$K93='１.表紙'!J30))","v":0},{"$f":"SUMPRODUCT(('2.チェックシート'!$F93=\"●\")*('2.チェックシート'!$K93='１.表紙'!K30))","v":0},{"$f":"SUMPRODUCT(('2.チェックシート'!$F93=\"●\")*('2.チェックシート'!$K93='１.表紙'!L30))","v":0},{"$f":"SUMPRODUCT(('2.チェックシート'!$F93=\"●\")*('2.チェックシート'!$K93='１.表紙'!M30))","v":0},null,{"$f":"SUMPRODUCT(('2.チェックシート'!$F93=\"●\")*('2.チェックシート'!$S93='１.表紙'!O30))","v":0},{"$f":"SUMPRODUCT(('2.チェックシート'!$F93=\"●\")*('2.チェックシート'!$S93='１.表紙'!P30))","v":0},{"$f":"SUMPRODUCT(('2.チェックシート'!$F93=\"●\")*('2.チェックシート'!$S93='１.表紙'!Q30))","v":0},{"$f":"SUMPRODUCT(('2.チェックシート'!$F93=\"●\")*('2.チェックシート'!$S93='１.表紙'!R30))","v":0}]
[null,null,null,null,null,null,"アドバンス",0]
[null,null,{"$f":"+'2.チェックシート'!B104","v":" 5.3.2 目標及びそれを達成するための計画策定"},null,null,null,"ベーシック",3,{"$f":"+H37+H38","v":3},{"$f":"SUMPRODUCT(('2.チェックシート'!$F106=\"●\")*('2.チェックシート'!$K106='１.表紙'!J$30))+SUMPRODUCT(('2.チェックシート'!$F110=\"●\")*('2.チェックシート'!$K110='１.表紙'!J$30))+SUMPRODUCT(('2.チェックシート'!$F114=\"●\")*('2.チェックシート'!$K114='１.表紙'!J$30))","v":0},{"$f":"SUMPRODUCT(('2.チェックシート'!$F106=\"●\")*('2.チェックシート'!$K106='１.表紙'!K30))+SUMPRODUCT(('2.チェックシート'!$F110=\"●\")*('2.チェックシート'!$K110='１.表紙'!K30))+SUMPRODUCT(('2.チェックシート'!$F114=\"●\")*('2.チェックシート'!$K114='１.表紙'!K30))","v":0},{"$f":"SUMPRODUCT(('2.チェックシート'!$F106=\"●\")*('2.チェックシート'!$K106='１.表紙'!L30))+SUMPRODUCT(('2.チェックシート'!$F110=\"●\")*('2.チェックシート'!$K110='１.表紙'!L30))+SUMPRODUCT(('2.チェックシート'!$F114=\"●\")*('2.チェックシート'!$K114='１.表紙'!L30))","v":0},{"$f":"SUMPRODUCT(('2.チェックシート'!$F106=\"●\")*('2.チェックシート'!$K106='１.表紙'!M30))+SUMPRODUCT(('2.チェックシート'!$F110=\"●\")*('2.チェックシート'!$K110='１.表紙'!M30))+SUMPRODUCT(('2.チェックシート'!$F114=\"●\")*('2.チェックシート'!$K114='１.表紙'!M30))","v":0},null,{"$f":"SUMPRODUCT(('2.チェックシート'!$F106=\"●\")*('2.チェックシート'!$S106='１.表紙'!O30))+SUMPRODUCT(('2.チェックシート'!$F110=\"●\")*('2.チェックシート'!$S110='１.表紙'!O30))+SUMPRODUCT(('2.チェックシート'!$F114=\"●\")*('2.チェックシート'!$S114='１.表紙'!O30))","v":0},{"$f":"SUMPRODUCT(('2.チェックシート'!$F106=\"●\")*('2.チェックシート'!$S106='１.表紙'!P30))+SUMPRODUCT(('2.チェックシート'!$F110=\"●\")*('2.チェックシート'!$S110='１.表紙'!P30))+SUMPRODUCT(('2.チェックシート'!$F114=\"●\")*('2.チェックシート'!$S114='１.表紙'!P30))","v":0},{"$f":"SUMPRODUCT(('2.チェックシート'!$F106=\"●\")*('2.チェックシート'!$S106='１.表紙'!Q30))+SUMPRODUCT(('2.チェックシート'!$F110=\"●\")*('2.チェックシート'!$S110='１.表紙'!Q30))+SUMPRODUCT(('2.チェックシート'!$F114=\"●\")*('2.チェックシート'!$S114='１.表紙'!Q30))","v":0},{"$f":"SUMPRODUCT(('2.チェックシート'!$F106=\"●\")*('2.チェックシート'!$S106='１.表紙'!R30))+SUMPRODUCT(('2.チェックシート'!$F110=\"●\")*('2.チェックシート'!$S110='１.表紙'!R30))+SUMPRODUCT(('2.チェックシート'!$F114=\"●\")*('2.チェックシート'!$S114='１.表紙'!R30))","v":0}]
[null,null,null,null,null,null,"アドバンス",0]
[null,null,{"$f":"+'2.チェックシート'!B125","v":" 5.4.2 力量"},null,null,null,"ベーシック",1,{"$f":"+H39+H40","v":1},{"$f":"SUMPRODUCT(('2.チェックシート'!$F127=\"●\")*('2.チェックシート'!$K127='１.表紙'!J30))","v":0},{"$f":"SUMPRODUCT(('2.チェックシート'!$F127=\"●\")*('2.チェックシート'!$K127='１.表紙'!K30))","v":0},{"$f":"SUMPRODUCT(('2.チェックシート'!$F127=\"●\")*('2.チェックシート'!$K127='１.表紙'!L30))","v":0},{"$f":"SUMPRODUCT(('2.チェックシート'!$F127=\"●\")*('2.チェックシート'!$K127='１.表紙'!M30))","v":0},null,{"$f":"SUMPRODUCT(('2.チェックシート'!$F127=\"●\")*('2.チェックシート'!$S127='１.表紙'!O30))","v":0},{"$f":"SUMPRODUCT(('2.チェックシート'!$F127=\"●\")*('2.チェックシート'!$S127='１.表紙'!P30))","v":0},{"$f":"SUMPRODUCT(('2.チェックシート'!$F127=\"●\")*('2.チェックシート'!$S127='１.表紙'!Q30))","v":0},{"$f":"SUMPRODUCT(('2.チェックシート'!$F127=\"●\")*('2.チェックシート'!$S127='１.表紙'!R30))","v":0}]
[null,null,null,null,null,null,"アドバンス",0]
[null,null,{"$f":"+'2.チェックシート'!B152","v":" 5.4.5 文書化した情報"},null,null,null,"ベーシック",1,{"$f":"+H41+H42","v":2},{"$f":"SUMPRODUCT(('2.チェックシート'!$F154=\"●\")*('2.チェックシート'!$K154='１.表紙'!J30))","v":0},{"$f":"SUMPRODUCT(('2.チェックシート'!$F154=\"●\")*('2.チェックシート'!$K154='１.表紙'!K30))","v":0},{"$f":"SUMPRODUCT(('2.チェックシート'!$F154=\"●\")*('2.チェックシート'!$K154='１.表紙'!L30))","v":0},{"$f":"SUMPRODUCT(('2.チェックシート'!$F154=\"●\")*('2.チェックシート'!$K154='１.表紙'!M30))","v":0},null,{"$f":"SUMPRODUCT(('2.チェックシート'!$F154=\"●\")*('2.チェックシート'!$S154='１.表紙'!O30))","v":0},{"$f":"SUMPRODUCT(('2.チェックシート'!$F154=\"●\")*('2.チェックシート'!$S154='１.表紙'!P30))","v":0},{"$f":"SUMPRODUCT(('2.チェックシート'!$F154=\"●\")*('2.チェックシート'!$S154='１.表紙'!Q30))","v":0},{"$f":"SUMPRODUCT(('2.チェックシート'!$F154=\"●\")*('2.チェックシート'!$S154='１.表紙'!R30))","v":0}]
[null,null,null,null,null,null,"アドバンス",1,null,{"$f":"SUMPRODUCT(('2.チェックシート'!$G158=\"●\")*('2.チェックシート'!$K158='１.表紙'!J$30))","v":0},{"$f":"SUMPRODUCT(('2.チェックシート'!$G158=\"●\")*('2.チェックシート'!$K158='１.表紙'!K30))","v":0},{"$f":"SUMPRODUCT(('2.チェックシート'!$G158=\"●\")*('2.チェックシート'!$K158='１.表紙'!L30))","v":0},{"$f":"SUMPRODUCT(('2.チェックシート'!$G158=\"●\")*('2.チェックシート'!$K158='１.表紙'!M30))","v":0},null,{"$f":"SUMPRODUCT(('2.チェックシート'!$G158=\"●\")*('2.チェックシート'!$S158='１.表紙'!O30))","v":0},{"$f":"SUMPRODUCT(('2.チェックシート'!$G158=\"●\")*('2.チェックシート'!$S158='１.表紙'!P30))","v":0},{"$f":"SUMPRODUCT(('2.チェックシート'!$G158=\"●\")*('2.チェックシート'!$S158='１.表紙'!Q30))","v":0},{"$f":"SUMPRODUCT(('2.チェックシート'!$G158=\"●\")*('2.チェックシート'!$S158='１.表紙'!R30))","v":0}]
[null,null,{"$f":"+'2.チェックシート'!B170","v":" 5.5.2.1 顧客とのコミュニケーション"},null,null,null,"ベーシック",2,{"$f":"+H43+H44","v":2},{"$f":"SUMPRODUCT(('2.チェックシート'!$F172=\"●\")*('2.チェックシート'!$K172='１.表紙'!J$30))+SUMPRODUCT(('2.チェックシート'!$F176=\"●\")*('2.チェックシート'!$K176='１.表紙'!J$30))","v":0},{"$f":"SUMPRODUCT(('2.チェックシート'!$F172=\"●\")*('2.チェックシート'!$K172='１.表紙'!K30))+SUMPRODUCT(('2.チェックシート'!$F176=\"●\")*('2.チェックシート'!$K176='１.表紙'!K30))","v":0},{"$f":"SUMPRODUCT(('2.チェックシート'!$F172=\"●\")*('2.チェックシート'!$K172='１.表紙'!L30))+SUMPRODUCT(('2.チェックシート'!$F176=\"●\")*('2.チェックシート'!$K176='１.表紙'!L30))","v":0},{"$f":"SUMPRODUCT(('2.チェックシート'!$F172=\"●\")*('2.チェックシート'!$K172='１.表紙'!M30))+SUMPRODUCT(('2.チェックシート'!$F176=\"●\")*('2.チェックシート'!$K176='１.表紙'!M30))","v":0},null,{"$f":"SUMPRODUCT(('2.チェックシート'!$F172=\"●\")*('2.チェックシート'!$S172='１.表紙'!O30))+SUMPRODUCT(('2.チェックシート'!$F176=\"●\")*('2.チェックシート'!$S176='１.表紙'!O30))","v":0},{"$f":"SUMPRODUCT(('2.チェックシート'!$F172=\"●\")*('2.チェックシート'!$S172='１.表紙'!P30))+SUMPRODUCT(('2.チェックシート'!$F176=\"●\")*('2.チェックシート'!$S176='１.表紙'!P30))","v":0},{"$f":"SUMPRODUCT(('2.チェックシート'!$F172=\"●\")*('2.チェックシート'!$S172='１.表紙'!Q30))+SUMPRODUCT(('2.チェックシート'!$F176=\"●\")*('2.チェックシート'!$S176='１.表紙'!Q30))","v":0},{"$f":"SUMPRODUCT(('2.チェックシート'!$F172=\"●\")*('2.チェックシート'!$S172='１.表紙'!R30))+SUMPRODUCT(('2.チェックシート'!$F176=\"●\")*('2.チェックシート'!$S176='１.表紙'!R30))","v":0}]
[null,null,null,null,null,null,"アドバンス",0]
[null,null,{"$f":"+'2.チェックシート'!B181","v":" 5.5.2.2 ＣｉＰ管理基準の明確化"},null,null,null,"ベーシック",1,{"$f":"+H45+H46","v":1},{"$f":"SUMPRODUCT(('2.チェックシート'!$F183=\"●\")*('2.チェックシート'!$K183='１.表紙'!J30))","v":0},{"$f":"SUMPRODUCT(('2.チェックシート'!$F183=\"●\")*('2.チェックシート'!$K183='１.表紙'!K30))","v":0},{"$f":"SUMPRODUCT(('2.チェックシート'!$F183=\"●\")*('2.チェックシート'!$K183='１.表紙'!L30))","v":0},{"$f":"SUMPRODUCT(('2.チェックシート'!$F183=\"●\")*('2.チェックシート'!$K183='１.表紙'!M30))","v":0},null,{"$f":"SUMPRODUCT(('2.チェックシート'!$F183=\"●\")*('2.チェックシート'!$S183='１.表紙'!O30))","v":0},{"$f":"SUMPRODUCT(('2.チェックシート'!$F183=\"●\")*('2.チェックシート'!$S183='１.表紙'!P30))","v":0},{"$f":"SUMPRODUCT(('2.チェックシート'!$F183=\"●\")*('2.チェックシート'!$S183='１.表紙'!Q30))","v":0},{"$f":"SUMPRODUCT(('2.チェックシート'!$F183=\"●\")*('2.チェックシート'!$S183='１.表紙'!R30))","v":0}]
[null,null,null,null,null,null,"アドバンス",0]
[null,null,{"$f":"+'2.チェックシート'!B188","v":" 5.5.3 設計・開発におけるＣｉＰ管理"},null,null,null,"ベーシック",1,{"$f":"+H47+H48","v":1},{"$f":"SUMPRODUCT(('2.チェックシート'!$F190=\"●\")*('2.チェックシート'!$K190='１.表紙'!J$30))","v":0},{"$f":"SUMPRODUCT(('2.チェックシート'!$F190=\"●\")*('2.チェックシート'!$K190='１.表紙'!K30))","v":0},{"$f":"SUMPRODUCT(('2.チェックシート'!$F190=\"●\")*('2.チェックシート'!$K190='１.表紙'!L30))","v":0},{"$f":"SUMPRODUCT(('2.チェックシート'!$F190=\"●\")*('2.チェックシート'!$K190='１.表紙'!M30))","v":0},null,{"$f":"SUMPRODUCT(('2.チェックシート'!$F190=\"●\")*('2.チェックシート'!$S190='１.表紙'!O30))","v":0},{"$f":"SUMPRODUCT(('2.チェックシート'!$F190=\"●\")*('2.チェックシート'!$S190='１.表紙'!P30))","v":0},{"$f":"SUMPRODUCT(('2.チェックシート'!$F190=\"●\")*('2.チェックシート'!$S190='１.表紙'!Q30))","v":0},{"$f":"SUMPRODUCT(('2.チェックシート'!$F190=\"●\")*('2.チェックシート'!$S190='１.表紙'!R30))","v":0}]
[null,null,null,null,null,null,"アドバンス",0]
[null,null,{"$f":"+'2.チェックシート'!B196","v":" 5.5.4.1 ＣｉＰ情報の入手及び確認"},null,null,null,"ベーシック",5,{"$f":"+H49+H50","v":7},{"$f":"SUMPRODUCT(('2.チェックシート'!$F198=\"●\")*('2.チェックシート'!$K198='１.表紙'!J$30))+SUMPRODUCT(('2.チェックシート'!$F202=\"●\")*('2.チェックシート'!$K202='１.表紙'!J$30))+SUMPRODUCT(('2.チェックシート'!$F206=\"●\")*('2.チェックシート'!$K206='１.表紙'!J$30))+SUMPRODUCT(('2.チェックシート'!$F214=\"●\")*('2.チェックシート'!$K214='１.表紙'!J$30))+SUMPRODUCT(('2.チェックシート'!$F218=\"●\")*('2.チェックシート'!$K218='１.表紙'!J$30))","v":0},{"$f":"SUMPRODUCT(('2.チェックシート'!$F198=\"●\")*('2.チェックシート'!$K198='１.表紙'!K30))+SUMPRODUCT(('2.チェックシート'!$F202=\"●\")*('2.チェックシート'!$K202='１.表紙'!K30))+SUMPRODUCT(('2.チェックシート'!$F206=\"●\")*('2.チェックシート'!$K206='１.表紙'!K30))+SUMPRODUCT(('2.チェックシート'!$F214=\"●\")*('2.チェックシート'!$K214='１.表紙'!K30))+SUMPRODUCT(('2.チェックシート'!$F218=\"●\")*('2.チェックシート'!$K218='１.表紙'!K30))","v":0},{"$f":"SUMPRODUCT(('2.チェックシート'!$F198=\"●\")*('2.チェックシート'!$K198='１.表紙'!L30))+SUMPRODUCT(('2.チェックシート'!$F202=\"●\")*('2.チェックシート'!$K202='１.表紙'!L30))+SUMPRODUCT(('2.チェックシート'!$F206=\"●\")*('2.チェックシート'!$K206='１.表紙'!L30))+SUMPRODUCT(('2.チェックシート'!$F214=\"●\")*('2.チェックシート'!$K214='１.表紙'!L30))+SUMPRODUCT(('2.チェックシート'!$F218=\"●\")*('2.チェックシート'!$K218='１.表紙'!L30))","v":0},{"$f":"SUMPRODUCT(('2.チェックシート'!$F198=\"●\")*('2.チェックシート'!$K198='１.表紙'!M30))+SUMPRODUCT(('2.チェックシート'!$F202=\"●\")*('2.チェックシート'!$K202='１.表紙'!M30))+SUMPRODUCT(('2.チェックシート'!$F206=\"●\")*('2.チェックシート'!$K206='１.表紙'!M30))+SUMPRODUCT(('2.チェックシート'!$F214=\"●\")*('2.チェックシート'!$K214='１.表紙'!M30))+SUMPRODUCT(('2.チェックシート'!$F218=\"●\")*('2.チェックシート'!$K218='１.表紙'!M30))","v":0},null,{"$f":"SUMPRODUCT(('2.チェックシート'!$F198=\"●\")*('2.チェックシート'!$S198='１.表紙'!O30))+SUMPRODUCT(('2.チェックシート'!$F202=\"●\")*('2.チェックシート'!$S202='１.表紙'!O30))+SUMPRODUCT(('2.チェックシート'!$F206=\"●\")*('2.チェックシート'!$S206='１.表紙'!O30))+SUMPRODUCT(('2.チェックシート'!$F214=\"●\")*('2.チェックシート'!$S214='１.表紙'!O30))+SUMPRODUCT(('2.チェックシート'!$F218=\"●\")*('2.チェックシート'!$S218='１.表紙'!O30))","v":0},{"$f":"SUMPRODUCT(('2.チェックシート'!$F198=\"●\")*('2.チェックシート'!$S198='１.表紙'!P30))+SUMPRODUCT(('2.チェックシート'!$F202=\"●\")*('2.チェックシート'!$S202='１.表紙'!P30))+SUMPRODUCT(('2.チェックシート'!$F206=\"●\")*('2.チェックシート'!$S206='１.表紙'!P30))+SUMPRODUCT(('2.チェックシート'!$F214=\"●\")*('2.チェックシート'!$S214='１.表紙'!P30))+SUMPRODUCT(('2.チェックシート'!$F218=\"●\")*('2.チェックシート'!$S218='１.表紙'!P30))","v":0},{"$f":"SUMPRODUCT(('2.チェックシート'!$F198=\"●\")*('2.チェックシート'!$S198='１.表紙'!Q30))+SUMPRODUCT(('2.チェックシート'!$F202=\"●\")*('2.チェックシート'!$S202='１.表紙'!Q30))+SUMPRODUCT(('2.チェックシート'!$F206=\"●\")*('2.チェックシート'!$S206='１.表紙'!Q30))+SUMPRODUCT(('2.チェックシート'!$F214=\"●\")*('2.チェックシート'!$S214='１.表紙'!Q30))+SUMPRODUCT(('2.チェックシート'!$F218=\"●\")*('2.チェックシート'!$S218='１.表紙'!Q30))","v":0},{"$f":"SUMPRODUCT(('2.チェックシート'!$F198=\"●\")*('2.チェックシート'!$S198='１.表紙'!R30))+SUMPRODUCT(('2.チェックシート'!$F202=\"●\")*('2.チェックシート'!$S202='１.表紙'!R30))+SUMPRODUCT(('2.チェックシート'!$F206=\"●\")*('2.チェックシート'!$S206='１.表紙'!R30))+SUMPRODUCT(('2.チェックシート'!$F214=\"●\")*('2.チェックシート'!$S214='１.表紙'!R30))+SUMPRODUCT(('2.チェックシート'!$F218=\"●\")*('2.チェックシート'!$S218='１.表紙'!R30))","v":0}]
[null,null,null,null,null,null,"アドバンス",2,null,{"$f":"SUMPRODUCT(('2.チェックシート'!$G210=\"●\")*('2.チェックシート'!$K210='１.表紙'!J$30))+SUMPRODUCT(('2.チェックシート'!$G222=\"●\")*('2.チェックシート'!$K222='１.表紙'!J$30))","v":0},{"$f":"SUMPRODUCT(('2.チェックシート'!$G210=\"●\")*('2.チェックシート'!$K210='１.表紙'!K30))+SUMPRODUCT(('2.チェックシート'!$G222=\"●\")*('2.チェックシート'!$K222='１.表紙'!K30))","v":0},{"$f":"SUMPRODUCT(('2.チェックシート'!$G210=\"●\")*('2.チェックシート'!$K210='１.表紙'!L30))+SUMPRODUCT(('2.チェックシート'!$G222=\"●\")*('2.チェックシート'!$K222='１.表紙'!L30))","v":0},{"$f":"SUMPRODUCT(('2.チェックシート'!$G210=\"●\")*('2.チェックシート'!$K210='１.表紙'!M30))+SUMPRODUCT(('2.チェックシート'!$G222=\"●\")*('2.チェックシート'!$K222='１.表紙'!M30))","v":0},null,{"$f":"SUMPRODUCT(('2.チェックシート'!$G210=\"●\")*('2.チェックシート'!$S210='１.表紙'!O30))+SUMPRODUCT(('2.チェックシート'!$G222=\"●\")*('2.チェックシート'!$S222='１.表紙'!O30))","v":0},{"$f":"SUMPRODUCT(('2.チェックシート'!$G210=\"●\")*('2.チェックシート'!$S210='１.表紙'!P30))+SUMPRODUCT(('2.チェックシート'!$G222=\"●\")*('2.チェックシート'!$S222='１.表紙'!P30))","v":0},{"$f":"SUMPRODUCT(('2.チェックシート'!$G210=\"●\")*('2.チェックシート'!$S210='１.表紙'!Q30))+SUMPRODUCT(('2.チェックシート'!$G222=\"●\")*('2.チェックシート'!$S222='１.表紙'!Q30))","v":0},{"$f":"SUMPRODUCT(('2.チェックシート'!$G210=\"●\")*('2.チェックシート'!$S210='１.表紙'!R30))+SUMPRODUCT(('2.チェックシート'!$G222=\"●\")*('2.チェックシート'!$S222='１.表紙'!R30))","v":0}]
[null,null,{"$f":"+'2.チェックシート'!B227","v":" 5.5.4.2 供給者におけるＣｉＰの管理状況の確認"},null,null,null,"ベーシック",5,{"$f":"+H51+H52","v":10},{"$f":"SUMPRODUCT(('2.チェックシート'!$F229=\"●\")*('2.チェックシート'!$K229='１.表紙'!J$30))+SUMPRODUCT(('2.チェックシート'!$F233=\"●\")*('2.チェックシート'!$K233='１.表紙'!J$30))+SUMPRODUCT(('2.チェックシート'!$F237=\"●\")*('2.チェックシート'!$K237='１.表紙'!J$30))+SUMPRODUCT(('2.チェックシート'!$F241=\"●\")*('2.チェックシート'!$K241='１.表紙'!J$30))+SUMPRODUCT(('2.チェックシート'!$F245=\"●\")*('2.チェックシート'!$K245='１.表紙'!J$30))","v":0},{"$f":"SUMPRODUCT(('2.チェックシート'!$F229=\"●\")*('2.チェックシート'!$K229='１.表紙'!K$30))+SUMPRODUCT(('2.チェックシート'!$F233=\"●\")*('2.チェックシート'!$K233='１.表紙'!K$30))+SUMPRODUCT(('2.チェックシート'!$F237=\"●\")*('2.チェックシート'!$K237='１.表紙'!K$30))+SUMPRODUCT(('2.チェックシート'!$F241=\"●\")*('2.チェックシート'!$K241='１.表紙'!K$30))+SUMPRODUCT(('2.チェックシート'!$F245=\"●\")*('2.チェックシート'!$K245='１.表紙'!K$30))","v":0},{"$f":"SUMPRODUCT(('2.チェックシート'!$F229=\"●\")*('2.チェックシート'!$K229='１.表紙'!L$30))+SUMPRODUCT(('2.チェックシート'!$F233=\"●\")*('2.チェックシート'!$K233='１.表紙'!L$30))+SUMPRODUCT(('2.チェックシート'!$F237=\"●\")*('2.チェックシート'!$K237='１.表紙'!L$30))+SUMPRODUCT(('2.チェックシート'!$F241=\"●\")*('2.チェックシート'!$K241='１.表紙'!L$30))+SUMPRODUCT(('2.チェックシート'!$F245=\"●\")*('2.チェックシート'!$K245='１.表紙'!L$30))","v":0},{"$f":"SUMPRODUCT(('2.チェックシート'!$F229=\"●\")*('2.チェックシート'!$K229='１.表紙'!M$30))+SUMPRODUCT(('2.チェックシート'!$F233=\"●\")*('2.チェックシート'!$K233='１.表紙'!M$30))+SUMPRODUCT(('2.チェックシート'!$F237=\"●\")*('2.チェックシート'!$K237='１.表紙'!M$30))+SUMPRODUCT(('2.チェックシート'!$F241=\"●\")*('2.チェックシート'!$K241='１.表紙'!M$30))+SUMPRODUCT(('2.チェックシート'!$F245=\"●\")*('2.チェックシート'!$K245='１.表紙'!M$30))","v":0},null,{"$f":"SUMPRODUCT(('2.チェックシート'!$F229=\"●\")*('2.チェックシート'!$S229='１.表紙'!O$30))+SUMPRODUCT(('2.チェックシート'!$F233=\"●\")*('2.チェックシート'!$S233='１.表紙'!O$30))+SUMPRODUCT(('2.チェックシート'!$F237=\"●\")*('2.チェックシート'!$S237='１.表紙'!O$30))+SUMPRODUCT(('2.チェックシート'!$F241=\"●\")*('2.チェックシート'!$S241='１.表紙'!O$30))+SUMPRODUCT(('2.チェックシート'!$F245=\"●\")*('2.チェックシート'!$S245='１.表紙'!O$30))","v":0},{"$f":"SUMPRODUCT(('2.チェックシート'!$F229=\"●\")*('2.チェックシート'!$S229='１.表紙'!P$30))+SUMPRODUCT(('2.チェックシート'!$F233=\"●\")*('2.チェックシート'!$S233='１.表紙'!P$30))+SUMPRODUCT(('2.チェックシート'!$F237=\"●\")*('2.チェックシート'!$S237='１.表紙'!P$30))+SUMPRODUCT(('2.チェックシート'!$F241=\"●\")*('2.チェックシート'!$S241='１.表紙'!P$30))+SUMPRODUCT(('2.チェックシート'!$F245=\"●\")*('2.チェックシート'!$S245='１.表紙'!P$30))","v":0},{"$f":"SUMPRODUCT(('2.チェックシート'!$F229=\"●\")*('2.チェックシート'!$S229='１.表紙'!Q$30))+SUMPRODUCT(('2.チェックシート'!$F233=\"●\")*('2.チェックシート'!$S233='１.表紙'!Q$30))+SUMPRODUCT(('2.チェックシート'!$F237=\"●\")*('2.チェックシート'!$S237='１.表紙'!Q$30))+SUMPRODUCT(('2.チェックシート'!$F241=\"●\")*('2.チェックシート'!$S241='１.表紙'!Q$30))+SUMPRODUCT(('2.チェックシート'!$F245=\"●\")*('2.チェックシート'!$S245='１.表紙'!Q$30))","v":0},{"$f":"SUMPRODUCT(('2.チェックシート'!$F229=\"●\")*('2.チェックシート'!$S229='１.表紙'!R$30))+SUMPRODUCT(('2.チェックシート'!$F233=\"●\")*('2.チェックシート'!$S233='１.表紙'!R$30))+SUMPRODUCT(('2.チェックシート'!$F237=\"●\")*('2.チェックシート'!$S237='１.表紙'!R$30))+SUMPRODUCT(('2.チェックシート'!$F241=\"●\")*('2.チェックシート'!$S241='１.表紙'!R$30))+SUMPRODUCT(('2.チェックシート'!$F245=\"●\")*('2.チェックシート'!$S245='１.表紙'!R$30))","v":0}]
[null,null,null,null,null,null,"アドバンス",5,null,{"$f":"SUMPRODUCT(('2.チェックシート'!$G249=\"●\")*('2.チェックシート'!$K249='１.表紙'!J$30))+SUMPRODUCT(('2.チェックシート'!$G253=\"●\")*('2.チェックシート'!$K253='１.表紙'!J$30))+SUMPRODUCT(('2.チェックシート'!$G257=\"●\")*('2.チェックシート'!$K257='１.表紙'!J$30))+SUMPRODUCT(('2.チェックシート'!$G261=\"●\")*('2.チェックシート'!$K261='１.表紙'!J$30))+SUMPRODUCT(('2.チェックシート'!$G265=\"●\")*('2.チェックシート'!$K265='１.表紙'!J$30))","v":0},{"$f":"SUMPRODUCT(('2.チェックシート'!$G249=\"●\")*('2.チェックシート'!$K249='１.表紙'!K$30))+SUMPRODUCT(('2.チェックシート'!$G253=\"●\")*('2.チェックシート'!$K253='１.表紙'!K$30))+SUMPRODUCT(('2.チェックシート'!$G257=\"●\")*('2.チェックシート'!$K257='１.表紙'!K$30))+SUMPRODUCT(('2.チェックシート'!$G261=\"●\")*('2.チェックシート'!$K261='１.表紙'!K$30))+SUMPRODUCT(('2.チェックシート'!$G265=\"●\")*('2.チェックシート'!$K265='１.表紙'!K$30))","v":0},{"$f":"SUMPRODUCT(('2.チェックシート'!$G249=\"●\")*('2.チェックシート'!$K249='１.表紙'!L$30))+SUMPRODUCT(('2.チェックシート'!$G253=\"●\")*('2.チェックシート'!$K253='１.表紙'!L$30))+SUMPRODUCT(('2.チェックシート'!$G257=\"●\")*('2.チェックシート'!$K257='１.表紙'!L$30))+SUMPRODUCT(('2.チェックシート'!$G261=\"●\")*('2.チェックシート'!$K261='１.表紙'!L$30))+SUMPRODUCT(('2.チェックシート'!$G265=\"●\")*('2.チェックシート'!$K265='１.表紙'!L$30))","v":0},{"$f":"SUMPRODUCT(('2.チェックシート'!$G249=\"●\")*('2.チェックシート'!$K249='１.表紙'!M$30))+SUMPRODUCT(('2.チェックシート'!$G253=\"●\")*('2.チェックシート'!$K253='１.表紙'!M$30))+SUMPRODUCT(('2.チェックシート'!$G257=\"●\")*('2.チェックシート'!$K257='１.表紙'!M$30))+SUMPRODUCT(('2.チェックシート'!$G261=\"●\")*('2.チェックシート'!$K261='１.表紙'!M$30))+SUMPRODUCT(('2.チェックシート'!$G265=\"●\")*('2.チェックシート'!$K265='１.表紙'!M$30))","v":0},null,{"$f":"SUMPRODUCT(('2.チェックシート'!$G249=\"●\")*('2.チェックシート'!$S249='１.表紙'!O$30))+SUMPRODUCT(('2.チェックシート'!$G253=\"●\")*('2.チェックシート'!$S253='１.表紙'!O$30))+SUMPRODUCT(('2.チェックシート'!$G257=\"●\")*('2.チェックシート'!$S257='１.表紙'!O$30))+SUMPRODUCT(('2.チェックシート'!$G261=\"●\")*('2.チェックシート'!$S261='１.表紙'!O$30))+SUMPRODUCT(('2.チェックシート'!$G265=\"●\")*('2.チェックシート'!$S265='１.表紙'!O$30))","v":0},{"$f":"SUMPRODUCT(('2.チェックシート'!$G249=\"●\")*('2.チェックシート'!$S249='１.表紙'!P$30))+SUMPRODUCT(('2.チェックシート'!$G253=\"●\")*('2.チェックシート'!$S253='１.表紙'!P$30))+SUMPRODUCT(('2.チェックシート'!$G257=\"●\")*('2.チェックシート'!$S257='１.表紙'!P$30))+SUMPRODUCT(('2.チェックシート'!$G261=\"●\")*('2.チェックシート'!$S261='１.表紙'!P$30))+SUMPRODUCT(('2.チェックシート'!$G265=\"●\")*('2.チェックシート'!$S265='１.表紙'!P$30))","v":0},{"$f":"SUMPRODUCT(('2.チェックシート'!$G249=\"●\")*('2.チェックシート'!$S249='１.表紙'!Q$30))+SUMPRODUCT(('2.チェックシート'!$G253=\"●\")*('2.チェックシート'!$S253='１.表紙'!Q$30))+SUMPRODUCT(('2.チェックシート'!$G257=\"●\")*('2.チェックシート'!$S257='１.表紙'!Q$30))+SUMPRODUCT(('2.チェックシート'!$G261=\"●\")*('2.チェックシート'!$S261='１.表紙'!Q$30))+SUMPRODUCT(('2.チェックシート'!$G265=\"●\")*('2.チェックシート'!$S265='１.表紙'!Q$30))","v":0},{"$f":"SUMPRODUCT(('2.チェックシート'!$G249=\"●\")*('2.チェックシート'!$S249='１.表紙'!R$30))+SUMPRODUCT(('2.チェックシート'!$G253=\"●\")*('2.チェックシート'!$S253='１.表紙'!R$30))+SUMPRODUCT(('2.チェックシート'!$G257=\"●\")*('2.チェックシート'!$S257='１.表紙'!R$30))+SUMPRODUCT(('2.チェックシート'!$G261=\"●\")*('2.チェックシート'!$S261='１.表紙'!R$30))+SUMPRODUCT(('2.チェックシート'!$G265=\"●\")*('2.チェックシート'!$S265='１.表紙'!R$30))","v":0}]
[null,null,{"$f":"+'2.チェックシート'!B270","v":" 5.5.4.3 受入れ時におけるＣｉＰ管理"},null,null,null,"ベーシック",2,{"$f":"+H53+H54","v":2},{"$f":"SUMPRODUCT(('2.チェックシート'!$F272=\"●\")*('2.チェックシート'!$K272='１.表紙'!J$30))+SUMPRODUCT(('2.チェックシート'!$F276=\"●\")*('2.チェックシート'!$K276='１.表紙'!J$30))","v":0},{"$f":"SUMPRODUCT(('2.チェックシート'!$F272=\"●\")*('2.チェックシート'!$K272='１.表紙'!K$30))+SUMPRODUCT(('2.チェックシート'!$F276=\"●\")*('2.チェックシート'!$K276='１.表紙'!K$30))","v":0},{"$f":"SUMPRODUCT(('2.チェックシート'!$F272=\"●\")*('2.チェックシート'!$K272='１.表紙'!L$30))+SUMPRODUCT(('2.チェックシート'!$F276=\"●\")*('2.チェックシート'!$K276='１.表紙'!L$30))","v":0},{"$f":"SUMPRODUCT(('2.チェックシート'!$F272=\"●\")*('2.チェックシート'!$K272='１.表紙'!M$30))+SUMPRODUCT(('2.チェックシート'!$F276=\"●\")*('2.チェックシート'!$K276='１.表紙'!M$30))","v":0},null,{"$f":"SUMPRODUCT(('2.チェックシート'!$F272=\"●\")*('2.チェックシート'!$S272='１.表紙'!O$30))+SUMPRODUCT(('2.チェックシート'!$F276=\"●\")*('2.チェックシート'!$S276='１.表紙'!O$30))","v":0},{"$f":"SUMPRODUCT(('2.チェックシート'!$F272=\"●\")*('2.チェックシート'!$S272='１.表紙'!P$30))+SUMPRODUCT(('2.チェックシート'!$F276=\"●\")*('2.チェックシート'!$S276='１.表紙'!P$30))","v":0},{"$f":"SUMPRODUCT(('2.チェックシート'!$F272=\"●\")*('2.チェックシート'!$S272='１.表紙'!Q$30))+SUMPRODUCT(('2.チェックシート'!$F276=\"●\")*('2.チェックシート'!$S276='１.表紙'!Q$30))","v":0},{"$f":"SUMPRODUCT(('2.チェックシート'!$F272=\"●\")*('2.チェックシート'!$S272='１.表紙'!R$30))+SUMPRODUCT(('2.チェックシート'!$F276=\"●\")*('2.チェックシート'!$S276='１.表紙'!R$30))","v":0}]
[null,null,null,null,null,null,"アドバンス",0]
[null,null,{"$f":"+'2.チェックシート'!B281","v":" 5.5.4.4 外部委託先におけるＣｉＰの管理状況の確認"},null,null,null,"ベーシック",2,{"$f":"+H55+H56","v":3},{"$f":"SUMPRODUCT(('2.チェックシート'!$F283=\"●\")*('2.チェックシート'!$K283='１.表紙'!J$30))+SUMPRODUCT(('2.チェックシート'!$F287=\"●\")*('2.チェックシート'!$K287='１.表紙'!J$30))","v":0},{"$f":"SUMPRODUCT(('2.チェックシート'!$F283=\"●\")*('2.チェックシート'!$K283='１.表紙'!K$30))+SUMPRODUCT(('2.チェックシート'!$F287=\"●\")*('2.チェックシート'!$K287='１.表紙'!K$30))","v":0},{"$f":"SUMPRODUCT(('2.チェックシート'!$F283=\"●\")*('2.チェックシート'!$K283='１.表紙'!L$30))+SUMPRODUCT(('2.チェックシート'!$F287=\"●\")*('2.チェックシート'!$K287='１.表紙'!L$30))","v":0},{"$f":"SUMPRODUCT(('2.チェックシート'!$F283=\"●\")*('2.チェックシート'!$K283='１.表紙'!M$30))+SUMPRODUCT(('2.チェックシート'!$F287=\"●\")*('2.チェックシート'!$K287='１.表紙'!M$30))","v":0},null,{"$f":"SUMPRODUCT(('2.チェックシート'!$F283=\"●\")*('2.チェックシート'!$S283='１.表紙'!O$30))+SUMPRODUCT(('2.チェックシート'!$F287=\"●\")*('2.チェックシート'!$S287='１.表紙'!O$30))","v":0},{"$f":"SUMPRODUCT(('2.チェックシート'!$F283=\"●\")*('2.チェックシート'!$S283='１.表紙'!P$30))+SUMPRODUCT(('2.チェックシート'!$F287=\"●\")*('2.チェックシート'!$S287='１.表紙'!P$30))","v":0},{"$f":"SUMPRODUCT(('2.チェックシート'!$F283=\"●\")*('2.チェックシート'!$S283='１.表紙'!Q$30))+SUMPRODUCT(('2.チェックシート'!$F287=\"●\")*('2.チェックシート'!$S287='１.表紙'!Q$30))","v":0},{"$f":"SUMPRODUCT(('2.チェックシート'!$F283=\"●\")*('2.チェックシート'!$S283='１.表紙'!R$30))+SUMPRODUCT(('2.チェックシート'!$F287=\"●\")*('2.チェックシート'!$S287='１.表紙'!R$30))","v":0}]
[null,null,null,null,null,null,"アドバンス",1,null,{"$f":"SUMPRODUCT(('2.チェックシート'!$G291=\"●\")*('2.チェックシート'!$K291='１.表紙'!J$30))","v":0},{"$f":"SUMPRODUCT(('2.チェックシート'!$G291=\"●\")*('2.チェックシート'!$K291='１.表紙'!K$30))","v":0},{"$f":"SUMPRODUCT(('2.チェックシート'!$G291=\"●\")*('2.チェックシート'!$K291='１.表紙'!L$30))","v":0},{"$f":"SUMPRODUCT(('2.チェックシート'!$G291=\"●\")*('2.チェックシート'!$K291='１.表紙'!M$30))","v":0},null,{"$f":"SUMPRODUCT(('2.チェックシート'!$G291=\"●\")*('2.チェックシート'!$S291='１.表紙'!O$30))","v":0},{"$f":"SUMPRODUCT(('2.チェックシート'!$G291=\"●\")*('2.チェックシート'!$S291='１.表紙'!P$30))","v":0},{"$f":"SUMPRODUCT(('2.チェックシート'!$G291=\"●\")*('2.チェックシート'!$S291='１.表紙'!Q$30))","v":0},{"$f":"SUMPRODUCT(('2.チェックシート'!$G291=\"●\")*('2.チェックシート'!$S291='１.表紙'!R$30))","v":0}]
[null,null,{"$f":"+'2.チェックシート'!B297","v":" 5.5.5.1 製造工程における管理　（変換工程の管理）"},null,null,null,"ベーシック",2,{"$f":"+H57+H58","v":3},{"$f":"SUMPRODUCT(('2.チェックシート'!$F303=\"●\")*('2.チェックシート'!$K303='１.表紙'!J$30))+SUMPRODUCT(('2.チェックシート'!$F307=\"●\")*('2.チェックシート'!$K307='１.表紙'!J$30))","v":0},{"$f":"SUMPRODUCT(('2.チェックシート'!$F303=\"●\")*('2.チェックシート'!$K303='１.表紙'!K$30))+SUMPRODUCT(('2.チェックシート'!$F307=\"●\")*('2.チェックシート'!$K307='１.表紙'!K$30))","v":0},{"$f":"SUMPRODUCT(('2.チェックシート'!$F303=\"●\")*('2.チェックシート'!$K303='１.表紙'!L$30))+SUMPRODUCT(('2.チェックシート'!$F307=\"●\")*('2.チェックシート'!$K307='１.表紙'!L$30))","v":0},{"$f":"SUMPRODUCT(('2.チェックシート'!$F303=\"●\")*('2.チェックシート'!$K303='１.表紙'!M$30))+SUMPRODUCT(('2.チェックシート'!$F307=\"●\")*('2.チェックシート'!$K307='１.表紙'!M$30))","v":0},null,{"$f":"SUMPRODUCT(('2.チェックシート'!$F303=\"●\")*('2.チェックシート'!$S303='１.表紙'!O$30))+SUMPRODUCT(('2.チェックシート'!$F307=\"●\")*('2.チェックシート'!$S307='１.表紙'!O$30))","v":0},{"$f":"SUMPRODUCT(('2.チェックシート'!$F303=\"●\")*('2.チェックシート'!$S303='１.表紙'!P$30))+SUMPRODUCT(('2.チェックシート'!$F307=\"●\")*('2.チェックシート'!$S307='１.表紙'!P$30))","v":0},{"$f":"SUMPRODUCT(('2.チェックシート'!$F303=\"●\")*('2.チェックシート'!$S303='１.表紙'!Q$30))+SUMPRODUCT(('2.チェックシート'!$F307=\"●\")*('2.チェックシート'!$S307='１.表紙'!Q$30))","v":0},{"$f":"SUMPRODUCT(('2.チェックシート'!$F303=\"●\")*('2.チェックシート'!$S303='１.表紙'!R$30))+SUMPRODUCT(('2.チェックシート'!$F307=\"●\")*('2.チェックシート'!$S307='１.表紙'!R$30))","v":0}]
[null,null,null,null,null,null,"アドバンス",1,null,{"$f":"SUMPRODUCT(('2.チェックシート'!$G311=\"●\")*('2.チェックシート'!$K311='１.表紙'!J$30))","v":0},{"$f":"SUMPRODUCT(('2.チェックシート'!$G311=\"●\")*('2.チェックシート'!$K311='１.表紙'!K$30))","v":0},{"$f":"SUMPRODUCT(('2.チェックシート'!$G311=\"●\")*('2.チェックシート'!$K311='１.表紙'!L$30))","v":0},{"$f":"SUMPRODUCT(('2.チェックシート'!$G311=\"●\")*('2.チェックシート'!$K311='１.表紙'!M$30))","v":0},null,{"$f":"SUMPRODUCT(('2.チェックシート'!$G311=\"●\")*('2.チェックシート'!$S311='１.表紙'!O$30))","v":0},{"$f":"SUMPRODUCT(('2.チェックシート'!$G311=\"●\")*('2.チェックシート'!$S311='１.表紙'!P$30))","v":0},{"$f":"SUMPRODUCT(('2.チェックシート'!$G311=\"●\")*('2.チェックシート'!$S311='１.表紙'!Q$30))","v":0},{"$f":"SUMPRODUCT(('2.チェックシート'!$G311=\"●\")*('2.チェックシート'!$S311='１.表紙'!R$30))","v":0}]
[null,null,{"$f":"+'2.チェックシート'!B316","v":" 5.5.5.2 誤使用及び汚染の防止　（併行生産及び使用禁止物質の誤使用・汚染の管理）"},null,null,null,"ベーシック",4,{"$f":"+H59+H60","v":5},{"$f":"SUMPRODUCT(('2.チェックシート'!$F318=\"●\")*('2.チェックシート'!$K318='１.表紙'!J$30))+SUMPRODUCT(('2.チェックシート'!$F326=\"●\")*('2.チェックシート'!$K326='１.表紙'!J$30))+SUMPRODUCT(('2.チェックシート'!$F330=\"●\")*('2.チェックシート'!$K330='１.表紙'!J$30))+SUMPRODUCT(('2.チェックシート'!$F334=\"●\")*('2.チェックシート'!$K334='１.表紙'!J$30))","v":0},{"$f":"SUMPRODUCT(('2.チェックシート'!$F318=\"●\")*('2.チェックシート'!$K318='１.表紙'!K$30))+SUMPRODUCT(('2.チェックシート'!$F326=\"●\")*('2.チェックシート'!$K326='１.表紙'!K$30))+SUMPRODUCT(('2.チェックシート'!$F330=\"●\")*('2.チェックシート'!$K330='１.表紙'!K$30))+SUMPRODUCT(('2.チェックシート'!$F334=\"●\")*('2.チェックシート'!$K334='１.表紙'!K$30))","v":0},{"$f":"SUMPRODUCT(('2.チェックシート'!$F318=\"●\")*('2.チェックシート'!$K318='１.表紙'!L$30))+SUMPRODUCT(('2.チェックシート'!$F326=\"●\")*('2.チェックシート'!$K326='１.表紙'!L$30))+SUMPRODUCT(('2.チェックシート'!$F330=\"●\")*('2.チェックシート'!$K330='１.表紙'!L$30))+SUMPRODUCT(('2.チェックシート'!$F334=\"●\")*('2.チェックシート'!$K334='１.表紙'!L$30))","v":0},{"$f":"SUMPRODUCT(('2.チェックシート'!$F318=\"●\")*('2.チェックシート'!$K318='１.表紙'!M$30))+SUMPRODUCT(('2.チェックシート'!$F326=\"●\")*('2.チェックシート'!$K326='１.表紙'!M$30))+SUMPRODUCT(('2.チェックシート'!$F330=\"●\")*('2.チェックシート'!$K330='１.表紙'!M$30))+SUMPRODUCT(('2.チェックシート'!$F334=\"●\")*('2.チェックシート'!$K334='１.表紙'!M$30))","v":0},null,{"$f":"SUMPRODUCT(('2.チェックシート'!$F318=\"●\")*('2.チェックシート'!$S318='１.表紙'!O$30))+SUMPRODUCT(('2.チェックシート'!$F326=\"●\")*('2.チェックシート'!$S326='１.表紙'!O$30))+SUMPRODUCT(('2.チェックシート'!$F330=\"●\")*('2.チェックシート'!$S330='１.表紙'!O$30))+SUMPRODUCT(('2.チェックシート'!$F334=\"●\")*('2.チェックシート'!$S334='１.表紙'!O$30))","v":0},{"$f":"SUMPRODUCT(('2.チェックシート'!$F318=\"●\")*('2.チェックシート'!$S318='１.表紙'!P$30))+SUMPRODUCT(('2.チェックシート'!$F326=\"●\")*('2.チェックシート'!$S326='１.表紙'!P$30))+SUMPRODUCT(('2.チェックシート'!$F330=\"●\")*('2.チェックシート'!$S330='１.表紙'!P$30))+SUMPRODUCT(('2.チェックシート'!$F334=\"●\")*('2.チェックシート'!$S334='１.表紙'!P$30))","v":0},{"$f":"SUMPRODUCT(('2.チェックシート'!$F318=\"●\")*('2.チェックシート'!$S318='１.表紙'!Q$30))+SUMPRODUCT(('2.チェックシート'!$F326=\"●\")*('2.チェックシート'!$S326='１.表紙'!Q$30))+SUMPRODUCT(('2.チェックシート'!$F330=\"●\")*('2.チェックシート'!$S330='１.表紙'!Q$30))+SUMPRODUCT(('2.チェックシート'!$F334=\"●\")*('2.チェックシート'!$S334='１.表紙'!Q$30))","v":0},{"$f":"SUMPRODUCT(('2.チェックシート'!$F318=\"●\")*('2.チェックシート'!$S318='１.表紙'!R$30))+SUMPRODUCT(('2.チェックシート'!$F326=\"●\")*('2.チェックシート'!$S326='１.表紙'!R$30))+SUMPRODUCT(('2.チェックシート'!$F330=\"●\")*('2.チェックシート'!$S330='１.表紙'!R$30))+SUMPRODUCT(('2.チェックシート'!$F334=\"●\")*('2.チェックシート'!$S334='１.表紙'!R$30))","v":0}]
[null,null,null,null,null,null,"アドバンス",1,null,{"$f":"SUMPRODUCT(('2.チェックシート'!$G338=\"●\")*('2.チェックシート'!$K338='１.表紙'!J$30))","v":0},{"$f":"SUMPRODUCT(('2.チェックシート'!$G338=\"●\")*('2.チェックシート'!$K338='１.表紙'!K$30))","v":0},{"$f":"SUMPRODUCT(('2.チェックシート'!$G338=\"●\")*('2.チェックシート'!$K338='１.表紙'!L$30))","v":0},{"$f":"SUMPRODUCT(('2.チェックシート'!$G338=\"●\")*('2.チェックシート'!$K338='１.表紙'!M$30))","v":0},null,{"$f":"SUMPRODUCT(('2.チェックシート'!$G338=\"●\")*('2.チェックシート'!$S338='１.表紙'!O$30))","v":0},{"$f":"SUMPRODUCT(('2.チェックシート'!$G338=\"●\")*('2.チェックシート'!$S338='１.表紙'!P$30))","v":0},{"$f":"SUMPRODUCT(('2.チェックシート'!$G338=\"●\")*('2.チェックシート'!$S338='１.表紙'!Q$30))","v":0},{"$f":"SUMPRODUCT(('2.チェックシート'!$G338=\"●\")*('2.チェックシート'!$S338='１.表紙'!R$30))","v":0}]
[null,null,{"$f":"+'2.チェックシート'!B343","v":" 5.5.5.3 識別及びトレーサビリティ"},null,null,null,"ベーシック",1,{"$f":"+H61+H62","v":1},{"$f":"SUMPRODUCT(('2.チェックシート'!$F345=\"●\")*('2.チェックシート'!$K345='１.表紙'!J$30))","v":0},{"$f":"SUMPRODUCT(('2.チェックシート'!$F345=\"●\")*('2.チェックシート'!$K345='１.表紙'!K$30))","v":0},{"$f":"SUMPRODUCT(('2.チェックシート'!$F345=\"●\")*('2.チェックシート'!$K345='１.表紙'!L$30))","v":0},{"$f":"SUMPRODUCT(('2.チェックシート'!$F345=\"●\")*('2.チェックシート'!$K345='１.表紙'!M$30))","v":0},null,{"$f":"SUMPRODUCT(('2.チェックシート'!$F345=\"●\")*('2.チェックシート'!$S345='１.表紙'!O$30))","v":0},{"$f":"SUMPRODUCT(('2.チェックシート'!$F345=\"●\")*('2.チェックシート'!$S345='１.表紙'!P$30))","v":0},{"$f":"SUMPRODUCT(('2.チェックシート'!$F345=\"●\")*('2.チェックシート'!$S345='１.表紙'!Q$30))","v":0},{"$f":"SUMPRODUCT(('2.チェックシート'!$F345=\"●\")*('2.チェックシート'!$S345='１.表紙'!R$30))","v":0}]
[null,null,null,null,null,null,"アドバンス",0]
[null,null,{"$f":"+'2.チェックシート'!B350","v":" 5.5.6 変更の管理"},null,null,null,"ベーシック",4,{"$f":"+H63+H64","v":4},{"$f":"SUMPRODUCT(('2.チェックシート'!$F352=\"●\")*('2.チェックシート'!$K352='１.表紙'!J$30))+SUMPRODUCT(('2.チェックシート'!$F356=\"●\")*('2.チェックシート'!$K356='１.表紙'!J$30))+SUMPRODUCT(('2.チェックシート'!$F360=\"●\")*('2.チェックシート'!$K360='１.表紙'!J$30))+SUMPRODUCT(('2.チェックシート'!$F364=\"●\")*('2.チェックシート'!$K364='１.表紙'!J$30))","v":0},{"$f":"SUMPRODUCT(('2.チェックシート'!$F352=\"●\")*('2.チェックシート'!$K352='１.表紙'!K$30))+SUMPRODUCT(('2.チェックシート'!$F356=\"●\")*('2.チェックシート'!$K356='１.表紙'!K$30))+SUMPRODUCT(('2.チェックシート'!$F360=\"●\")*('2.チェックシート'!$K360='１.表紙'!K$30))+SUMPRODUCT(('2.チェックシート'!$F364=\"●\")*('2.チェックシート'!$K364='１.表紙'!K$30))","v":0},{"$f":"SUMPRODUCT(('2.チェックシート'!$F352=\"●\")*('2.チェックシート'!$K352='１.表紙'!L$30))+SUMPRODUCT(('2.チェックシート'!$F356=\"●\")*('2.チェックシート'!$K356='１.表紙'!L$30))+SUMPRODUCT(('2.チェックシート'!$F360=\"●\")*('2.チェックシート'!$K360='１.表紙'!L$30))+SUMPRODUCT(('2.チェックシート'!$F364=\"●\")*('2.チェックシート'!$K364='１.表紙'!L$30))","v":0},{"$f":"SUMPRODUCT(('2.チェックシート'!$F352=\"●\")*('2.チェックシート'!$K352='１.表紙'!M$30))+SUMPRODUCT(('2.チェックシート'!$F356=\"●\")*('2.チェックシート'!$K356='１.表紙'!M$30))+SUMPRODUCT(('2.チェックシート'!$F360=\"●\")*('2.チェックシート'!$K360='１.表紙'!M$30))+SUMPRODUCT(('2.チェックシート'!$F364=\"●\")*('2.チェックシート'!$K364='１.表紙'!M$30))","v":0},null,{"$f":"SUMPRODUCT(('2.チェックシート'!$F352=\"●\")*('2.チェックシート'!$S352='１.表紙'!O$30))+SUMPRODUCT(('2.チェックシート'!$F356=\"●\")*('2.チェックシート'!$S356='１.表紙'!O$30))+SUMPRODUCT(('2.チェックシート'!$F360=\"●\")*('2.チェックシート'!$S360='１.表紙'!O$30))+SUMPRODUCT(('2.チェックシート'!$F364=\"●\")*('2.チェックシート'!$S364='１.表紙'!O$30))","v":0},{"$f":"SUMPRODUCT(('2.チェックシート'!$F352=\"●\")*('2.チェックシート'!$S352='１.表紙'!P$30))+SUMPRODUCT(('2.チェックシート'!$F356=\"●\")*('2.チェックシート'!$S356='１.表紙'!P$30))+SUMPRODUCT(('2.チェックシート'!$F360=\"●\")*('2.チェックシート'!$S360='１.表紙'!P$30))+SUMPRODUCT(('2.チェックシート'!$F364=\"●\")*('2.チェックシート'!$S364='１.表紙'!P$30))","v":0},{"$f":"SUMPRODUCT(('2.チェックシート'!$F352=\"●\")*('2.チェックシート'!$S352='１.表紙'!Q$30))+SUMPRODUCT(('2.チェックシート'!$F356=\"●\")*('2.チェックシート'!$S356='１.表紙'!Q$30))+SUMPRODUCT(('2.チェックシート'!$F360=\"●\")*('2.チェックシート'!$S360='１.表紙'!Q$30))+SUMPRODUCT(('2.チェックシート'!$F364=\"●\")*('2.チェックシート'!$S364='１.表紙'!Q$30))","v":0},{"$f":"SUMPRODUCT(('2.チェックシート'!$F352=\"●\")*('2.チェックシート'!$S352='１.表紙'!R$30))+SUMPRODUCT(('2.チェックシート'!$F356=\"●\")*('2.チェックシート'!$S356='１.表紙'!R$30))+SUMPRODUCT(('2.チェックシート'!$F360=\"●\")*('2.チェックシート'!$S360='１.表紙'!R$30))+SUMPRODUCT(('2.チェックシート'!$F364=\"●\")*('2.チェックシート'!$S364='１.表紙'!R$30))","v":0}]
[null,null,null,null,null,null,"アドバンス",0]
[null,null,{"$f":"+'2.チェックシート'!B369","v":" 5.5.7 製品の引渡し"},null,null,null,"ベーシック",1,{"$f":"+H65+H66","v":1},{"$f":"SUMPRODUCT(('2.チェックシート'!$F371=\"●\")*('2.チェックシート'!$K371='１.表紙'!J$30))","v":0},{"$f":"SUMPRODUCT(('2.チェックシート'!$F371=\"●\")*('2.チェックシート'!$K371='１.表紙'!K$30))","v":0},{"$f":"SUMPRODUCT(('2.チェックシート'!$F371=\"●\")*('2.チェックシート'!$K371='１.表紙'!L$30))","v":0},{"$f":"SUMPRODUCT(('2.チェックシート'!$F371=\"●\")*('2.チェックシート'!$K371='１.表紙'!M$30))","v":0},null,{"$f":"SUMPRODUCT(('2.チェックシート'!$F371=\"●\")*('2.チェックシート'!$S371='１.表紙'!O$30))","v":0},{"$f":"SUMPRODUCT(('2.チェックシート'!$F371=\"●\")*('2.チェックシート'!$S371='１.表紙'!P$30))","v":0},{"$f":"SUMPRODUCT(('2.チェックシート'!$F371=\"●\")*('2.チェックシート'!$S371='１.表紙'!Q$30))","v":0},{"$f":"SUMPRODUCT(('2.チェックシート'!$F371=\"●\")*('2.チェックシート'!$S371='１.表紙'!R$30))","v":0}]
[null,null,null,null,null,null,"アドバンス"]
[null,null,{"$f":"+'2.チェックシート'!B376","v":" 5.5.8 不適合品発生時における対応"},null,null,null,"ベーシック",4,{"$f":"+H67+H68","v":4},{"$f":"SUMPRODUCT(('2.チェックシート'!$F378=\"●\")*('2.チェックシート'!$K378='１.表紙'!J$30))+SUMPRODUCT(('2.チェックシート'!$F382=\"●\")*('2.チェックシート'!$K382='１.表紙'!J$30))+SUMPRODUCT(('2.チェックシート'!$F386=\"●\")*('2.チェックシート'!$K386='１.表紙'!J$30))+SUMPRODUCT(('2.チェックシート'!$F390=\"●\")*('2.チェックシート'!$K390='１.表紙'!J$30))","v":0},{"$f":"SUMPRODUCT(('2.チェックシート'!$F378=\"●\")*('2.チェックシート'!$K378='１.表紙'!K$30))+SUMPRODUCT(('2.チェックシート'!$F382=\"●\")*('2.チェックシート'!$K382='１.表紙'!K$30))+SUMPRODUCT(('2.チェックシート'!$F386=\"●\")*('2.チェックシート'!$K386='１.表紙'!K$30))+SUMPRODUCT(('2.チェックシート'!$F390=\"●\")*('2.チェックシート'!$K390='１.表紙'!K$30))","v":0},{"$f":"SUMPRODUCT(('2.チェックシート'!$F378=\"●\")*('2.チェックシート'!$K378='１.表紙'!L$30))+SUMPRODUCT(('2.チェックシート'!$F382=\"●\")*('2.チェックシート'!$K382='１.表紙'!L$30))+SUMPRODUCT(('2.チェックシート'!$F386=\"●\")*('2.チェックシート'!$K386='１.表紙'!L$30))+SUMPRODUCT(('2.チェックシート'!$F390=\"●\")*('2.チェックシート'!$K390='１.表紙'!L$30))","v":0},{"$f":"SUMPRODUCT(('2.チェックシート'!$F378=\"●\")*('2.チェックシート'!$K378='１.表紙'!M$30))+SUMPRODUCT(('2.チェックシート'!$F382=\"●\")*('2.チェックシート'!$K382='１.表紙'!M$30))+SUMPRODUCT(('2.チェックシート'!$F386=\"●\")*('2.チェックシート'!$K386='１.表紙'!M$30))+SUMPRODUCT(('2.チェックシート'!$F390=\"●\")*('2.チェックシート'!$K390='１.表紙'!M$30))","v":0},null,{"$f":"SUMPRODUCT(('2.チェックシート'!$F378=\"●\")*('2.チェックシート'!$S378='１.表紙'!O$30))+SUMPRODUCT(('2.チェックシート'!$F382=\"●\")*('2.チェックシート'!$S382='１.表紙'!O$30))+SUMPRODUCT(('2.チェックシート'!$F386=\"●\")*('2.チェックシート'!$S386='１.表紙'!O$30))+SUMPRODUCT(('2.チェックシート'!$F390=\"●\")*('2.チェックシート'!$S390='１.表紙'!O$30))","v":0},{"$f":"SUMPRODUCT(('2.チェックシート'!$F378=\"●\")*('2.チェックシート'!$S378='１.表紙'!P$30))+SUMPRODUCT(('2.チェックシート'!$F382=\"●\")*('2.チェックシート'!$S382='１.表紙'!P$30))+SUMPRODUCT(('2.チェックシート'!$F386=\"●\")*('2.チェックシート'!$S386='１.表紙'!P$30))+SUMPRODUCT(('2.チェックシート'!$F390=\"●\")*('2.チェックシート'!$S390='１.表紙'!P$30))","v":0},{"$f":"SUMPRODUCT(('2.チェックシート'!$F378=\"●\")*('2.チェックシート'!$S378='１.表紙'!Q$30))+SUMPRODUCT(('2.チェックシート'!$F382=\"●\")*('2.チェックシート'!$S382='１.表紙'!Q$30))+SUMPRODUCT(('2.チェックシート'!$F386=\"●\")*('2.チェックシート'!$S386='１.表紙'!Q$30))+SUMPRODUCT(('2.チェックシート'!$F390=\"●\")*('2.チェックシート'!$S390='１.表紙'!Q$30))","v":0},{"$f":"SUMPRODUCT(('2.チェックシート'!$F378=\"●\")*('2.チェックシート'!$S378='１.表紙'!R$30))+SUMPRODUCT(('2.チェックシート'!$F382=\"●\")*('2.チェックシート'!$S382='１.表紙'!R$30))+SUMPRODUCT(('2.チェックシート'!$F386=\"●\")*('2.チェックシート'!$S386='１.表紙'!R$30))+SUMPRODUCT(('2.チェックシート'!$F390=\"●\")*('2.チェックシート'!$S390='１.表紙'!R$30))","v":0}]
[null,null,null,null,null,null,"アドバンス",0]
[null,null,{"$f":"+'2.チェックシート'!B395","v":" 5.6 パフォーマンス評価及び改善"},null,null,null,"ベーシック",3,{"$f":"+H69+H70","v":4},{"$f":"SUMPRODUCT(('2.チェックシート'!$F397=\"●\")*('2.チェックシート'!$K397='１.表紙'!J$30))+SUMPRODUCT(('2.チェックシート'!$F401=\"●\")*('2.チェックシート'!$K401='１.表紙'!J$30))+SUMPRODUCT(('2.チェックシート'!$F405=\"●\")*('2.チェックシート'!$K405='１.表紙'!J$30))","v":0},{"$f":"SUMPRODUCT(('2.チェックシート'!$F397=\"●\")*('2.チェックシート'!$K397='１.表紙'!K$30))+SUMPRODUCT(('2.チェックシート'!$F401=\"●\")*('2.チェックシート'!$K401='１.表紙'!K$30))+SUMPRODUCT(('2.チェックシート'!$F405=\"●\")*('2.チェックシート'!$K405='１.表紙'!K$30))","v":0},{"$f":"SUMPRODUCT(('2.チェックシート'!$F397=\"●\")*('2.チェックシート'!$K397='１.表紙'!L$30))+SUMPRODUCT(('2.チェックシート'!$F401=\"●\")*('2.チェックシート'!$K401='１.表紙'!L$30))+SUMPRODUCT(('2.チェックシート'!$F405=\"●\")*('2.チェックシート'!$K405='１.表紙'!L$30))","v":0},{"$f":"SUMPRODUCT(('2.チェックシート'!$F397=\"●\")*('2.チェックシート'!$K397='１.表紙'!M$30))+SUMPRODUCT(('2.チェックシート'!$F401=\"●\")*('2.チェックシート'!$K401='１.表紙'!M$30))+SUMPRODUCT(('2.チェックシート'!$F405=\"●\")*('2.チェックシート'!$K405='１.表紙'!M$30))","v":0},null,{"$f":"SUMPRODUCT(('2.チェックシート'!$F397=\"●\")*('2.チェックシート'!$S397='１.表紙'!O$30))+SUMPRODUCT(('2.チェックシート'!$F401=\"●\")*('2.チェックシート'!$S401='１.表紙'!O$30))+SUMPRODUCT(('2.チェックシート'!$F405=\"●\")*('2.チェックシート'!$S405='１.表紙'!O$30))","v":0},{"$f":"SUMPRODUCT(('2.チェックシート'!$F397=\"●\")*('2.チェックシート'!$S397='１.表紙'!P$30))+SUMPRODUCT(('2.チェックシート'!$F401=\"●\")*('2.チェックシート'!$S401='１.表紙'!P$30))+SUMPRODUCT(('2.チェックシート'!$F405=\"●\")*('2.チェックシート'!$S405='１.表紙'!P$30))","v":0},{"$f":"SUMPRODUCT(('2.チェックシート'!$F397=\"●\")*('2.チェックシート'!$S397='１.表紙'!Q$30))+SUMPRODUCT(('2.チェックシート'!$F401=\"●\")*('2.チェックシート'!$S401='１.表紙'!Q$30))+SUMPRODUCT(('2.チェックシート'!$F405=\"●\")*('2.チェックシート'!$S405='１.表紙'!Q$30))","v":0},{"$f":"SUMPRODUCT(('2.チェックシート'!$F397=\"●\")*('2.チェックシート'!$S397='１.表紙'!R$30))+SUMPRODUCT(('2.チェックシート'!$F401=\"●\")*('2.チェックシート'!$S401='１.表紙'!R$30))+SUMPRODUCT(('2.チェックシート'!$F405=\"●\")*('2.チェックシート'!$S405='１.表紙'!R$30))","v":0}]
[null,null,null,null,null,null,"アドバンス",1,null,{"$f":"SUMPRODUCT(('2.チェックシート'!$G409=\"●\")*('2.チェックシート'!$K409='１.表紙'!J$30))","v":0},{"$f":"SUMPRODUCT(('2.チェックシート'!$G409=\"●\")*('2.チェックシート'!$K409='１.表紙'!K$30))","v":0},{"$f":"SUMPRODUCT(('2.チェックシート'!$G409=\"●\")*('2.チェックシート'!$K409='１.表紙'!L$30))","v":0},{"$f":"SUMPRODUCT(('2.チェックシート'!$G409=\"●\")*('2.チェックシート'!$K409='１.表紙'!M$30))","v":0},null,{"$f":"SUMPRODUCT(('2.チェックシート'!$G409=\"●\")*('2.チェックシート'!$S409='１.表紙'!O$30))","v":0},{"$f":"SUMPRODUCT(('2.チェックシート'!$G409=\"●\")*('2.チェックシート'!$S409='１.表紙'!P$30))","v":0},{"$f":"SUMPRODUCT(('2.チェックシート'!$G409=\"●\")*('2.チェックシート'!$S409='１.表紙'!Q$30))","v":0},{"$f":"SUMPRODUCT(('2.チェックシート'!$G409=\"●\")*('2.チェックシート'!$S409='１.表紙'!R$30))","v":0}]
[null,null,"合計",null,null,null,"ベーシック",{"$f":"+H31+H33+H35+H37+H39+H41+H43+H45+H47+H49+H51+H53+H55+H57+H59+H61+H63+H65+H67+H69","v":44},{"$f":"SUM(I31:I69)","v":57},{"$f":"+J33+J35+J37+J39+J41+J43+J45+J47+J49+J51+J53+J55+J57+J59+J61+J63+J65+J67+J69","v":0},{"$f":"+K33+K35+K37+K39+K41+K43+K45+K47+K49+K51+K53+K55+K57+K59+K61+K63+K65+K67+K69","v":0},0,0,null,{"$f":"+O33+O35+O37+O39+O41+O43+O45+O47+O49+O51+O53+O55+O57+O59+O61+O63+O65+O67+O69","v":0},{"$f":"+P33+P35+P37+P39+P41+P43+P45+P47+P49+P51+P53+P55+P57+P59+P61+P63+P65+P67+P69","v":0},{"$f":"+Q33+Q35+Q37+Q39+Q41+Q43+Q45+Q47+Q49+Q51+Q53+Q55+Q57+Q59+Q61+Q63+Q65+Q67+Q69","v":0},{"$f":"+R33+R35+R37+R39+R41+R43+R45+R47+R49+R51+R53+R55+R57+R59+R61+R63+R65+R67+R69","v":0}]
[null,null,null,null,null,null,"アドバンス",{"$f":"+H32+H34+H36+H38+H40+H42+H44+H46+H48+H50+H52+H54+H56+H58+H60+H62+H64+H66+H68+H70","v":13},null,{"$f":"+J32+J42+J50+J52+J56+J58+J60+J66+J70","v":0},{"$f":"+K32+K42+K50+K52+K56+K58+K60+K66+K70","v":0},{"$f":"+L32+L42+L50+L52+L56+L58+L60+L66+L70","v":0},{"$f":"+M32+M42+M50+M52+M56+M58+M60+M66+M70","v":0},null,{"$f":"+O32+O42+O50+O52+O56+O58+O60+O66+O70","v":0},{"$f":"+P32+P42+P50+P52+P56+P58+P60+P66+P70","v":0},{"$f":"+Q32+Q42+Q50+Q52+Q56+Q58+Q60+Q66+Q70","v":0},{"$f":"+R32+R42+R50+R52+R56+R58+R60+R66+R70","v":0}]
[null,null,null,null,null,null,"ﾍﾞｰｼｯｸ+ｱﾄﾞﾊﾞﾝｽ",null,null,{"$f":"+J72+J71","v":0},{"$f":"+K72+K71","v":0},0,0,null,{"$f":"+O72+O71","v":0},{"$f":"+P72+P71","v":0},{"$f":"+Q72+Q71","v":0},{"$f":"+R72+R71","v":0}]
[]
[]
[null,"評価結果確認組織",null,"※<会社名>，<部署>，<役職>，<氏名>，<評価結果確認年月日>の欄は「2.チェックシート」の各項目欄の入力結果にリンクしていますので，このシートでの入力は不要です。"]
[null,"会社名",null,{"$f":"+'2.チェックシート'!G14","v":0}]
[null,"部署",null,{"$f":"+'2.チェックシート'!G15","v":0}]
[null,"役職",null,{"$f":"+'2.チェックシート'!G16","v":0}]
[null,"氏名",null,{"$f":"+'2.チェックシート'!G17","v":0}]
[null,"評価結果確認年月日",null,{"$f":"+'2.チェックシート'!G18","v":"00:00:00"}]
[]
[null,"定判終最"]

{"sheet":"2.チェックシート","index":1,"n_rows":420,"n_cols":36,"rows_kept":420,"cut":false,"hidden":false,"merged":[[14,21,15,21],[18,11,21,17],[1,1,1,16],[16,11,16,24],[13,1,13,5],[298,18,301,18],[298,19,301,24],[59,8,59,9],[64,8,64,9],[75,8,75,9],[81,8,81,9],[101,8,101,9],[122,8,122,9],[134,8,134,9],[139,8,139,9],[144,8,144,9],[149,8,149,9],[166,8,166,9],[119,1,119,24],[118,1,118,24],[50,1,50,24],[38,8,38,21],[39,2,39,7],[39,8,39,21],[31,2,31,7],[31,8,31,21],[33,2,33,7],[35,2,35,21],[205,10,208,11],[209,10,212,11],[213,10,216,11],[217,10,220,11],[6,1,7,3],[8,1,9,3],[10,1,10,5],[7,6,7,8],[8,6,8,8],[9,6,9,8],[10,6,10,8],[15,1,15,5],[14,1,14,5],[13,6,13,8],[14,6,14,8],[15,6,15,8],[12,1,12,8],[6,4,6,5],[17,6,17,8],[16,6,16,8],[14,14,15,14],[14,11,15,12],[14,13,15,13],[16,1,16,5],[17,1,17,5],[7,4,7,5],[8,4,8,5],[9,4,9,5],[92,10,95,11],[100,10,101,11],[100,7,101,7],[100,12,100,17],[100,18,101,18],[100,19,101,24],[77,1,77,24],[78,1,78,24],[275,19,278,24],[276,12,278,17],[277,9,278,9],[275,1,278,1],[275,3,278,3],[275,4,278,4],[275,5,278,5],[264,8,267,8],[264,9,265,9],[264,12,264,17],[264,18,267,18],[264,19,267,24],[265,12,267,17],[266,9,267,9],[264,1,267,1],[264,3,267,3],[264,4,267,4],[264,5,267,5],[264,6,267,6],[275,7,278,7],[201,10,204,11],[221,10,224,11],[228,10,231,11],[232,10,235,11],[264,10,267,11],[271,9,272,9],[271,12,271,17],[271,8,274,8],[319,9,320,9],[315,1,315,24],[306,19,309,24],[302,19,305,24],[306,10,309,11],[310,10,313,11],[316,2,316,24],[317,1,320,1],[317,2,320,2],[280,1,280,24],[275,18,278,18],[298,8,301,8],[282,9,283,9],[282,12,282,17],[282,18,285,18],[282,19,285,24],[283,12,285,17],[284,9,285,9],[282,10,285,11],[286,10,289,11],[275,6,278,6],[298,10,301,11],[295,1,295,24],[296,1,296,24],[297,2,297,24],[306,6,309,6],[291,12,293,17],[292,9,293,9],[355,19,358,24],[356,12,358,17],[357,9,358,9],[337,3,340,3],[337,4,340,4],[344,10,347,11],[351,10,354,11],[321,12,321,17],[329,4,332,4],[333,8,336,8],[333,9,334,9],[333,12,333,17],[333,18,336,18],[329,18,332,18],[329,19,332,24],[271,10,274,11],[275,10,278,11],[310,18,313,18],[302,10,305,11],[302,8,305,8],[302,9,303,9],[325,19,328,24],[310,19,313,24],[321,10,324,11],[325,10,328,11],[317,8,320,8],[317,18,320,18],[317,19,320,24],[318,12,320,17],[329,12,329,17],[290,18,293,18],[290,19,293,24],[359,1,362,1],[359,3,362,3],[359,4,362,4],[359,5,362,5],[359,6,362,6],[359,7,362,7],[355,8,358,8],[355,9,356,9],[355,12,355,17],[317,9,318,9],[359,9,360,9],[359,12,359,17],[321,1,324,1],[327,9,328,9],[326,12,328,17],[355,18,358,18],[323,9,324,9],[325,1,328,1],[325,3,328,3],[325,4,328,4],[325,5,328,5],[317,10,320,11],[321,18,324,18],[321,7,324,7],[321,8,324,8],[317,3,320,3],[317,4,320,4],[317,5,320,5],[317,6,320,6],[317,7,320,7],[337,5,340,5],[363,18,366,18],[325,6,328,6],[325,7,328,7],[325,8,328,8],[351,7,354,7],[342,1,342,24],[321,3,324,3],[321,4,324,4],[321,5,324,5],[321,6,324,6],[344,8,347,8],[359,8,362,8],[355,1,358,1],[344,9,345,9],[346,9,347,9],[359,19,362,24],[360,12,362,17],[361,9,362,9],[337,18,340,18],[337,19,340,24],[338,12,340,17],[339,9,340,9],[337,1,340,1],[335,9,336,9],[333,3,336,3],[337,6,340,6],[333,19,336,24],[325,12,325,17],[321,19,324,24],[322,12,324,17],[355,10,358,11],[359,10,362,11],[5,1,5,8],[370,2,373,2],[370,3,373,3],[370,4,373,4],[370,5,373,5],[370,6,373,6],[370,7,373,7],[363,1,366,1],[363,3,366,3],[363,4,366,4],[363,5,366,5],[363,6,366,6],[329,10,332,11],[333,10,336,11],[337,10,340,11],[333,4,336,4],[333,5,336,5],[333,6,336,6],[333,7,336,7],[329,6,332,6],[329,7,332,7],[329,8,332,8],[329,9,330,9],[344,6,347,6],[344,7,347,7],[355,3,358,3],[355,4,358,4],[355,5,358,5],[365,9,366,9],[321,9,322,9],[329,1,332,1],[329,3,332,3],[4,11,4,21],[5,14,5,17],[5,13,6,13],[11,11,12,12],[11,13,12,13],[11,14,11,17],[17,11,17,17],[17,18,17,24],[85,18,88,18],[85,19,88,24],[86,12,88,17],[87,9,88,9],[52,10,52,17],[53,10,53,11],[58,10,59,11],[63,10,64,11],[68,10,70,11],[74,10,75,11],[24,8,24,21],[10,11,10,21],[7,11,7,12],[8,11,8,12],[5,18,5,21],[5,11,6,12],[6,6,6,8],[52,9,53,9],[18,18,21,24],[38,2,38,7],[52,3,53,3],[52,4,53,4],[52,5,52,7],[53,12,53,17],[408,4,411,4],[408,5,411,5],[408,6,411,6],[398,9,399,9],[101,12,101,17],[97,1,97,24],[98,1,98,24],[92,3,95,3],[92,4,95,4],[92,5,95,5],[92,6,95,6],[92,7,95,7],[92,8,95,8],[408,7,411,7],[400,12,400,17],[400,18,403,18],[400,19,403,24],[401,12,403,17],[402,9,403,9],[370,10,373,11],[171,10,174,11],[175,10,178,11],[182,10,185,11],[189,10,192,11],[197,10,200,11],[236,10,239,11],[240,10,243,11],[244,10,247,11],[248,10,251,11],[252,10,255,11],[400,3,403,3],[368,1,368,24],[400,6,403,6],[400,7,403,7],[400,10,403,11],[387,9,388,9],[404,1,407,1],[404,3,407,3],[404,4,407,4],[404,5,407,5],[404,6,407,6],[404,7,407,7],[400,8,403,8],[400,9,401,9],[395,0,411,0],[395,2,395,24],[396,1,399,1],[396,2,407,2],[396,3,399,3],[396,4,399,4],[396,5,399,5],[396,6,399,6],[396,7,399,7],[404,8,407,8],[404,9,405,9],[404,12,404,17],[404,18,407,18],[404,19,407,24],[405,12,407,17],[406,9,407,9],[408,12,408,17],[400,1,403,1],[408,1,411,1],[408,3,411,3],[408,8,411,8],[408,9,409,9],[389,9,390,9],[389,12,389,17],[389,18,392,18],[389,19,392,24],[390,12,392,17],[391,9,392,9],[385,8,388,8],[385,9,386,9],[385,12,385,17],[385,18,388,18],[385,19,388,24],[386,12,388,17],[404,10,407,11],[408,10,411,11],[396,10,399,11],[408,18,411,18],[408,19,411,24],[409,12,411,17],[410,9,411,9],[385,10,388,11],[389,10,392,11],[396,19,399,24],[397,12,399,17],[394,1,394,24],[396,8,399,8],[396,9,397,9],[396,12,396,17],[396,18,399,18],[400,4,403,4],[400,5,403,5],[377,9,378,9],[377,12,377,17],[377,18,380,18],[377,19,380,24],[378,12,380,17],[379,9,380,9],[377,10,380,11],[381,10,384,11],[389,8,392,8],[389,1,392,1],[389,3,392,3],[389,4,392,4],[389,5,392,5],[389,6,392,6],[389,7,392,7],[381,5,384,5],[381,6,384,6],[385,1,388,1],[385,3,388,3],[385,4,388,4],[385,5,388,5],[385,6,388,6],[385,7,388,7],[375,1,375,24],[376,0,392,0],[376,2,376,24],[377,1,380,1],[377,2,392,2],[377,3,380,3],[377,4,380,4],[377,5,380,5],[377,6,380,6],[377,7,380,7],[370,8,373,8],[370,9,371,9],[370,12,370,17],[370,18,373,18],[370,19,373,24],[371,12,373,17],[372,9,373,9],[381,8,384,8],[381,9,382,9],[381,12,381,17],[381,18,384,18],[381,19,384,24],[382,12,384,17],[383,9,384,9],[381,1,384,1],[381,3,384,3],[381,4,384,4],[369,0,373,0],[369,2,369,24],[370,1,373,1],[381,7,384,7],[377,8,380,8],[350,0,366,0],[350,2,350,24],[351,1,354,1],[351,2,366,2],[351,3,354,3],[363,19,366,24],[351,8,354,8],[351,9,352,9],[351,12,351,17],[351,18,354,18],[351,19,354,24],[352,12,354,17],[343,0,347,0],[343,2,343,24],[344,1,347,1],[344,2,347,2],[344,3,347,3],[344,4,347,4],[344,5,347,5],[344,19,347,24],[355,6,358,6],[355,7,358,7],[353,9,354,9],[349,1,349,24],[351,4,354,4],[351,5,354,5],[351,6,354,6],[359,18,362,18],[344,12,344,17],[344,18,347,18],[345,12,347,17],[364,12,366,17],[363,10,366,11],[363,7,366,7],[337,8,340,8],[337,9,338,9],[337,12,337,17],[299,12,301,17],[300,9,301,9],[302,1,305,1],[302,3,305,3],[302,4,305,4],[302,5,305,5],[302,6,305,6],[302,7,305,7],[298,6,301,6],[298,7,301,7],[306,1,309,1],[306,2,313,2],[306,3,309,3],[306,4,309,4],[329,5,332,5],[330,12,332,17],[331,9,332,9],[302,12,302,17],[310,9,311,9],[310,12,310,17],[304,9,305,9],[325,9,326,9],[363,8,366,8],[363,9,364,9],[363,12,363,17],[311,12,313,17],[312,9,313,9],[297,0,313,0],[307,12,309,17],[308,9,309,9],[310,1,313,1],[310,3,313,3],[310,4,313,4],[310,5,313,5],[310,6,313,6],[310,7,313,7],[310,8,313,8],[306,7,309,7],[306,8,309,8],[306,9,307,9],[306,12,306,17],[306,18,309,18],[302,18,305,18],[316,0,340,0],[337,7,340,7],[317,12,317,17],[334,12,336,17],[321,2,340,2],[325,18,328,18],[306,5,309,5],[333,1,336,1],[290,4,293,4],[290,5,293,5],[290,6,293,6],[290,7,293,7],[286,8,289,8],[288,9,289,9],[286,1,289,1],[286,3,289,3],[286,4,289,4],[286,5,289,5],[286,6,289,6],[286,7,289,7],[286,9,287,9],[303,12,305,17],[298,9,299,9],[298,12,298,17],[298,1,301,1],[298,3,301,3],[298,4,301,4],[298,5,301,5],[286,12,286,17],[290,10,293,11],[256,7,259,7],[286,18,289,18],[286,19,289,24],[287,12,289,17],[271,18,274,18],[271,19,274,24],[272,12,274,17],[273,9,274,9],[269,1,269,24],[270,0,278,0],[270,2,270,24],[271,1,274,1],[271,2,278,2],[271,3,274,3],[271,4,274,4],[271,5,274,5],[271,6,274,6],[271,7,274,7],[281,0,293,0],[281,2,281,24],[282,1,285,1],[282,3,285,3],[282,4,285,4],[282,5,285,5],[282,6,285,6],[282,7,285,7],[282,8,285,8],[290,8,293,8],[290,9,291,9],[290,12,290,17],[290,1,293,1],[290,3,293,3],[248,3,251,3],[264,7,267,7],[275,8,278,8],[275,9,276,9],[275,12,275,17],[248,6,251,6],[248,7,251,7],[260,8,263,8],[260,9,261,9],[260,12,260,17],[260,18,263,18],[260,19,263,24],[261,12,263,17],[262,9,263,9],[260,1,263,1],[260,3,263,3],[260,4,263,4],[260,5,263,5],[260,6,263,6],[260,7,263,7],[256,8,259,8],[256,9,257,9],[256,12,256,17],[256,18,259,18],[256,19,259,24],[257,12,259,17],[258,9,259,9],[256,1,259,1],[256,3,259,3],[256,4,259,4],[256,5,259,5],[256,6,259,6],[240,12,240,17],[256,10,259,11],[260,10,263,11],[241,12,243,17],[242,9,243,9],[240,1,243,1],[240,3,243,3],[240,4,243,4],[240,5,243,5],[240,6,243,6],[240,7,243,7],[252,8,255,8],[252,9,253,9],[252,12,252,17],[252,18,255,18],[252,19,255,24],[253,12,255,17],[254,9,255,9],[252,1,255,1],[252,3,255,3],[252,4,255,4],[252,5,255,5],[252,6,255,6],[252,7,255,7],[248,8,251,8],[248,9,249,9],[248,12,248,17],[248,18,251,18],[248,19,251,24],[249,12,251,17],[250,9,251,9],[248,1,251,1],[236,4,239,4],[248,4,251,4],[248,5,251,5],[236,7,239,7],[232,8,235,8],[232,9,233,9],[232,12,232,17],[232,18,235,18],[232,19,235,24],[233,12,235,17],[234,9,235,9],[232,1,235,1],[232,3,235,3],[232,4,235,4],[232,5,235,5],[232,6,235,6],[232,7,235,7],[244,8,247,8],[244,9,245,9],[244,12,244,17],[244,18,247,18],[244,19,247,24],[245,12,247,17],[246,9,247,9],[244,1,247,1],[244,3,247,3],[244,4,247,4],[244,5,247,5],[244,6,247,6],[244,7,247,7],[240,8,243,8],[240,9,241,9],[205,7,208,7],[240,18,243,18],[240,19,243,24],[218,12,220,17],[219,9,220,9],[217,1,220,1],[217,3,220,3],[228,9,229,9],[228,12,228,17],[228,18,231,18],[228,19,231,24],[229,12,231,17],[230,9,231,9],[226,1,226,24],[227,0,267,0],[227,2,227,24],[228,1,231,1],[228,3,231,3],[228,4,231,4],[228,5,231,5],[228,6,231,6],[228,7,231,7],[228,8,231,8],[236,8,239,8],[236,9,237,9],[236,12,236,17],[236,18,239,18],[236,19,239,24],[237,12,239,17],[238,9,239,9],[236,1,239,1],[236,3,239,3],[217,12,217,17],[236,5,239,5],[236,6,239,6],[203,9,204,9],[201,1,204,1],[201,3,204,3],[201,4,204,4],[201,5,204,5],[201,6,204,6],[201,7,204,7],[213,6,216,6],[213,7,216,7],[221,8,224,8],[221,9,222,9],[221,12,221,17],[221,18,224,18],[221,19,224,24],[222,12,224,17],[223,9,224,9],[221,1,224,1],[221,3,224,3],[221,4,224,4],[221,5,224,5],[221,6,224,6],[221,7,224,7],[206,12,208,17],[207,9,208,9],[205,1,208,1],[205,3,208,3],[205,4,208,4],[205,5,208,5],[205,6,208,6],[196,0,224,0],[196,2,196,24],[197,1,200,1],[197,3,200,3],[197,4,200,4],[197,5,200,5],[197,6,200,6],[197,7,200,7],[201,8,204,8],[201,9,202,9],[201,12,201,17],[201,18,204,18],[201,19,204,24],[202,12,204,17],[217,8,220,8],[217,9,218,9],[209,19,212,24],[210,12,212,17],[211,9,212,9],[209,1,212,1],[209,3,212,3],[209,4,212,4],[209,5,212,5],[209,6,212,6],[209,7,212,7],[205,8,208,8],[205,9,206,9],[205,12,205,17],[205,18,208,18],[205,19,208,24],[217,4,220,4],[217,5,220,5],[197,8,200,8],[197,9,198,9],[197,12,197,17],[197,18,200,18],[197,19,200,24],[198,12,200,17],[199,9,200,9],[209,8,212,8],[209,9,210,9],[209,12,209,17],[209,18,212,18],[171,7,174,7],[171,8,174,8],[171,9,172,9],[187,1,187,24],[217,18,220,18],[217,19,220,24],[194,1,194,24],[195,1,195,24],[217,6,220,6],[217,7,220,7],[213,8,216,8],[213,9,214,9],[213,12,213,17],[213,18,216,18],[213,19,216,24],[214,12,216,17],[215,9,216,9],[213,1,216,1],[213,3,216,3],[213,4,216,4],[213,5,216,5],[188,0,192,0],[188,2,188,24],[189,1,192,1],[189,3,192,3],[189,4,192,4],[189,5,192,5],[189,6,192,6],[189,7,192,7],[189,8,192,8],[180,1,180,24],[181,0,185,0],[181,2,181,24],[182,1,185,1],[182,2,185,2],[182,3,185,3],[182,4,185,4],[182,5,185,5],[182,6,185,6],[182,7,185,7],[182,8,185,8],[182,9,183,9],[182,12,182,17],[182,18,185,18],[182,19,185,24],[183,12,185,17],[184,9,185,9],[189,18,192,18],[189,9,190,9],[189,12,189,17],[189,19,192,24],[190,12,192,17],[191,9,192,9],[168,1,168,24],[169,1,169,24],[170,0,178,0],[170,2,170,24],[171,1,174,1],[171,2,178,2],[171,3,174,3],[165,12,165,17],[165,18,166,18],[165,19,166,24],[166,12,166,17],[175,8,178,8],[175,9,176,9],[175,12,175,17],[175,18,178,18],[175,19,178,24],[176,12,178,17],[177,9,178,9],[175,1,178,1],[175,3,178,3],[175,4,178,4],[175,5,178,5],[175,6,178,6],[175,7,178,7],[171,12,171,17],[171,18,174,18],[171,19,174,24],[172,12,174,17],[173,9,174,9],[171,4,174,4],[171,5,174,5],[171,6,174,6],[163,1,163,24],[164,0,166,0],[164,2,164,24],[165,1,166,1],[165,2,166,2],[165,3,166,3],[165,4,166,4],[165,5,166,5],[165,6,166,6],[165,7,166,7],[157,8,160,8],[157,9,158,9],[157,12,157,17],[157,18,160,18],[157,19,160,24],[158,12,160,17],[159,9,160,9],[157,1,160,1],[157,3,160,3],[157,4,160,4],[157,5,160,5],[157,6,160,6],[157,7,160,7],[162,1,162,24],[157,10,160,11],[165,10,166,11],[153,12,153,17],[153,18,156,18],[153,19,156,24],[154,12,156,17],[155,9,156,9],[151,1,151,24],[152,0,160,0],[152,2,152,24],[153,1,156,1],[153,3,156,3],[153,4,156,4],[153,5,156,5],[153,6,156,6],[153,7,156,7],[153,8,156,8],[153,9,154,9],[148,19,149,24],[149,12,149,17],[148,5,149,5],[148,6,149,6],[148,7,149,7],[148,12,148,17],[148,18,149,18],[153,10,156,11],[146,1,146,24],[147,0,149,0],[147,2,147,24],[148,1,149,1],[148,2,149,2],[148,3,149,3],[148,4,149,4],[148,10,149,11],[143,12,143,17],[143,18,144,18],[143,19,144,24],[144,12,144,17],[141,1,141,24],[142,0,144,0],[142,2,142,24],[143,1,144,1],[143,2,144,2],[143,3,144,3],[143,4,144,4],[143,5,144,5],[143,6,144,6],[143,7,144,7],[143,10,144,11],[138,6,139,6],[138,7,139,7],[138,12,138,17],[138,18,139,18],[138,19,139,24],[139,12,139,17],[136,1,136,24],[137,2,137,24],[138,1,139,1],[138,2,139,2],[138,3,139,3],[138,4,139,4],[138,5,139,5],[138,10,139,11],[133,12,133,17],[133,18,134,18],[133,19,134,24],[134,12,134,17],[133,10,134,11],[131,1,131,24],[132,0,134,0],[132,2,132,24],[126,9,127,9],[126,12,126,17],[126,18,129,18],[126,19,129,24],[127,12,129,17],[128,9,129,9],[124,1,124,24],[125,0,129,0],[125,2,125,24],[126,1,129,1],[126,3,129,3],[126,4,129,4],[126,5,129,5],[126,6,129,6],[126,7,129,7],[126,8,129,8],[133,1,134,1],[133,2,134,2],[133,3,134,3],[133,4,134,4],[133,5,134,5],[133,6,134,6],[133,7,134,7],[126,10,129,11],[121,19,122,24],[122,12,122,17],[121,5,122,5],[121,6,122,6],[121,7,122,7],[121,12,121,17],[121,18,122,18],[121,10,122,11],[120,0,122,0],[120,2,120,24],[121,1,122,1],[121,2,122,2],[121,3,122,3],[121,4,122,4],[105,12,105,17],[105,18,108,18],[109,8,112,8],[105,7,108,7],[105,8,108,8],[105,9,106,9],[113,8,116,8]],"merged_total":1177,"flags":["merged_cut"]}
[]
[null,"製品含有化学物質（ＣｉＰ）管理ガイドライン（第4.0版）附属書\nチェックシート（第4.01版）",null,null,null,null,null,null,null,null,null,null,null,null,null,null,null,"＜　　　　　　　　　　　　　　　　　　　　　＞ *1\n添付資料　（　有　・　無　）",null,null,null,null,null,null,null,null,{"$f":"CLEAN(B2)","v":"製品含有化学物質（ＣｉＰ）管理ガイドライン（第4.0版）附属書チェックシート（第4.01版）"}]
[null,"※　当チェックシートでは，「製品含有化学物質」を「ＣｉＰ」と略します。\n（ＣｉＰ：Chemicals in Productsの略称です）",null,null,null,null,null,null,null,null,null,null,null,"*1：本チェックシートは，利用者が「3.チェックシートの使い方と利用ルール」に基づき，設問フラグ(*セレクト欄) への追加，シートの追加をすることが可能です。この欄は編集を加えた際のタイトル欄としてご使用下さい"]
[]
[null,null,null,null,null,null,null,null,null,null,null,"【評価結果】"]
[null,"自己評価実施組織",null,null,null,null,null,null,null,null,null,"設問フラグ",null,"設問数","自己評価実施組織",null,null,null,"評価結果確認組織"]
[null,"会社名",null,null,"日本語",null,null,null,null,null,null,null,null,null,"適合","準適合","不適合","非該当","適合","準適合","不適合","非該当"]
[null,null,null,null,"英語",null,null,null,null,null,null,"ベーシック レベル",null,44,{"$f":"SUMPRODUCT(($AE$55:$AE$412=\"●\")*($AI$55:$AI$412=O7))","v":0},{"$f":"SUMPRODUCT(($AE$55:$AE$412=\"●\")*($AI$55:$AI$412=P7))","v":0},{"$f":"SUMPRODUCT(($AE$55:$AE$412=\"●\")*($AI$55:$AI$412=Q7))","v":0},{"$f":"SUMPRODUCT(($AE$55:$AE$412=\"●\")*($AI$55:$AI$412=R7))","v":0},{"$f":"SUMPRODUCT(($AE$55:$AE$412=\"●\")*($AJ$55:$AJ$412=S7))","v":0},{"$f":"SUMPRODUCT(($AE$55:$AE$412=\"●\")*($AJ$55:$AJ$412=T7))","v":0},{"$f":"SUMPRODUCT(($AE$55:$AE$412=\"●\")*($AJ$55:$AJ$412=U7))","v":0},{"$f":"SUMPRODUCT(($AE$55:$AE$412=\"●\")*($AJ$55:$AJ$412=V7))","v":0}]
[null,"サイト名",null,null,"日本語",null,null,null,null,null,null,"アドバンス レベル",null,13,{"$f":"SUMPRODUCT(($AF$55:$AF$412=\"●\")*($AI$55:$AI$412=O7))","v":0},{"$f":"SUMPRODUCT(($AF$55:$AF$412=\"●\")*($AI$55:$AI$412=P7))","v":0},{"$f":"SUMPRODUCT(($AF$55:$AF$412=\"●\")*($AI$55:$AI$412=Q7))","v":0},{"$f":"SUMPRODUCT(($AF$55:$AF$412=\"●\")*($AI$55:$AI$412=R7))","v":0},{"$f":"SUMPRODUCT(($AF$55:$AF$412=\"●\")*($AJ$55:$AJ$412=S7))","v":0},{"$f":"SUMPRODUCT(($AF$55:$AF$412=\"●\")*($AJ$55:$AJ$412=T7))","v":0},{"$f":"SUMPRODUCT(($AF$55:$AF$412=\"●\")*($AJ$55:$AJ$412=U7))","v":0},{"$f":"SUMPRODUCT(($AF$55:$AF$412=\"●\")*($AJ$55:$AJ$412=V7))","v":0}]
[null,null,null,null,"英語",null,null,null,null,null,null,"合計",null,{"$f":"+SUM(N8:N9)","v":57},{"$f":"+SUM(O8:O9)","v":0},0,0,0,0,0,0,0]
[null,"自己評価実施年月日",null,null,null,null,null,null,null,null,null,"【セレクト　評価結果】"]
[null,null,null,null,null,null,null,null,null,null,null,"設問フラグ",null,"設問数","自己評価実施組織",null,null,null,"評価結果確認組織"]
[null,"評価結果確認組織",null,null,null,null,null,null,null,null,null,null,null,null,"適合","準適合","不適合","非該当","適合","準適合","不適合","非該当"]
[null,"会社名",null,null,null,null,null,null,null,null,null,"セレクト",null,{"$f":"COUNTIF($AG$55:$AG$412,\"●\")","v":0},{"$f":"SUMPRODUCT(($AG$55:$AG$412=\"●\")*($AI$55:$AI$412=O13))","v":0},{"$f":"SUMPRODUCT(($AG$55:$AG$412=\"●\")*($AI$55:$AI$412=P13))","v":0},{"$f":"SUMPRODUCT(($AG$55:$AG$412=\"●\")*($AI$55:$AI$412=Q13))","v":0},{"$f":"SUMPRODUCT(($AG$55:$AG$412=\"●\")*($AI$55:$AI$412=R13))","v":0},{"$f":"SUMPRODUCT(($AG$55:$AG$412=\"●\")*($AJ$55:$AJ$412=S13))","v":0},{"$f":"SUMPRODUCT(($AG$55:$AG$412=\"●\")*($AJ$55:$AJ$412=T13))","v":0},{"$f":"SUMPRODUCT(($AG$55:$AG$412=\"●\")*($AJ$55:$AJ$412=U13))","v":0},{"$f":"SUMPRODUCT(($AG$55:$AG$412=\"●\")*($AJ$55:$AJ$412=V13))","v":0}]
[null,"部署",null,null,null,null,null,null,null,null,null,"評価結果別数\n／該当項目数",null,"--",{"$f":"IFERROR(O14/SUM($O14:$Q14),0)","v":0},{"$f":"IFERROR(P14/SUM($O14:$Q14),0)","v":0},0,"--",{"$f":"IFERROR(S14/SUM($S14:$U14),0)","v":0},{"$f":"IFERROR(T14/SUM($S14:$U14),0)","v":0},0,"--"]
[null,"役職"]
[null,"氏名",null,null,null,null,null,null,null,null,null,"＊No.36,41は，有無確認で回答するように設定するため，上記設問数の合計と各判定の合計が一致しない場合があります"]
[null,"評価結果確認年月日",null,null,null,null,null,null,null,null,null,"【最終確認結果】",null,null,null,null,null,null,"【コメント】"]
[]
[]
[]
[]
[]
[null,null,"[各項目の説明]",null,null,null,null,null,null,null,null,null,null,null,null,null,null,null,null,null,null,null,null,null,null,null,1]
[null,null,"実施項目",null,null,null,null,null,"ＣｉＰ管理を適切かつ効率的に実施するために，具体的に必要な項目を上げたもので JIS Z 7201:2017「製品含有化学物質管理－原則及び指針」に基づいている。　ＣｉＰ管理の構築に際しては，ＣｉＰ管理ガイドラインを参照していることを想定している。\n実施項目について，具体的にどのような内容が実施されるべきかを記述した 。　ＣｉＰ管理ガイドライン本文の実施項目に従い，適合判定が可能となるように「○○していること」と表現している。\n　【\"設問が無いため回答不要\"について】 この項目は他の項目と重複しているため，当項目では設問不要とし，評価対象外としている。",null,null,null,null,null,null,null,null,null,null,null,null,null,null,null,null,null,1]
[null,null,"設　問",null,null,null,null,null,"設問は，実施項目（内容）を適切かつ効率的に実施できていることを確認するために，具体的な設問に置き換えたものである。 この部分は，サプライチェーン全体で共通の言語とすることが重要であり，業種によっては必ずしも適切に表現されていない場合もある。 \nその場合は必要に応じて読み替えを行うなどして，自社の業態に見合った「実施項目（内容）」を実施することが必要である。 なお，「実施項目」が組織に該当しない場合には，その実施項目を実施する必要はない（非該当） \n設問には、理解を補助するために、大分類と小分類に区分した。　各分類の説明は、３．チェックシートの使い方と利用ルールを参照。",null,null,null,null,null,null,null,null,null,null,null,null,null,null,null,null,null,1]
[null,null,null,null,null,null,null,null,null,null,null,null,null,null,null,null,null,null,null,null,null,null,null,null,null,null,1]
[null,null,null,null,null,null,null,null,"＜設問のフラグについて＞",null,null,null,null,null,null,null,null,null,null,null,null,null,null,null,null,null,1]
[null,null,null,null,null,null,null,null,"【ベーシック レベル】　「●」　⇒　自己適合宣言発行基準　として自動設定してあります。\n　　　　・ＣｉＰ管理の仕組みにおける基本的な管理要件となっている。（JIS Z 7201のＣｉＰ管理の指針に準拠した設問）\n　　　　・確実かつ効率的にＣｉＰを管理するために構築・維持すべき管理体制に向けてのマイルストーン",null,null,null,null,null,null,null,null,null,null,null,null,null,null,null,null,null,1]
[null,null,null,null,null,null,null,null,"【アドバンス レベル】　「●」　⇒　次ステップのレベルとして自動設定してあります。\n　　　　・確実かつ効率的にＣｉＰを管理するために構築・維持すべき管理体制の要件群",null,null,null,null,null,null,null,null,null,null,null,null,null,null,null,null,null,1]
[null,null,null,null,null,null,null,null,"【*セレクト】　「●」　⇒　評価結果確認組織が都度設定しています。　例：【□□□会社自己評価における回答項目／○○○会社必須項目 など】   ※詳細は「3. チェックシートの使い方と利用ルール」参照\n　　　　この欄は本チェックシートの利用者(第一者(例えば製品の供給者)，第二者等(例えば購買側の事業者，または業界団体等)で自由に編集が可能な欄です。 フラグのタイトルとその説明を追記して使用して下さい \n　　　　例：○○○会社必須項目の列に「●」と記載されている設問は，回答必須の項目です ",null,null,null,null,null,null,null,null,null,null,null,null,null,null,null,null,null,1]
[null,null,"適合判断基準，回答例，管理の注意ポイント",null,null,null,null,null,"適合判断基準：記入要領で記載する適合判断基準について，各設問ごとに適合，準適合，不適合の目安を記載\n回答例：各設問の意図に応じた回答の例を参考に記載\n管理の注意ポイント：当該設問について適合判断を行う上で，参考となる情報を記載",null,null,null,null,null,null,null,null,null,null,null,null,null,null,null,null,null,1]
[null,null,"自己評価実施組織欄",null,null,null,null,null,"各設問への自己評価結果と，回答結果をより具体的に確認するために，取組内容，エビデンス名称等を記載確認する。　回答内容が回答欄にそぐわない場合は，運用に則した記載をする。\n【設問が無い項目について】 評価は不要です。自己評価の際にこれらの項目についての気づきなどを回答欄に記載することで，次回の評価時に役立てる事が出来ます。",null,null,null,null,null,null,null,null,null,null,null,null,null,null,null,null,null,1]
[null,null,"評価結果確認組織欄",null,null,null,null,null,"自己評価実施組織の回答結果に基づき，自部門または顧客等の別組織が　監査　確認，判定を実施する際に使用する欄である。　 個々の設問に対する判定，及び判定の根拠・メモ等を記載する。 ",null,null,null,null,null,null,null,null,null,null,null,null,null,null,null,null,null,1]
[null,null,null,null,null,null,null,null,null,null,null,null,null,null,null,null,null,null,null,null,null,null,null,null,null,null,1]
[null,null,"[記入要領]",null,null,null,null,null,null,null,null,null,null,null,null,null,null,null,null,null,null,null,null,null,null,null,1]
[null,null,"手順①：該当する実施項目に対する，自己評価を実施して下さい 　自己評価は，本ガイドライン【表6-2　実施項目への適合の判断基準】、下表＜各設問への適合判断基準＞に基づき行い，「自己評価結果」欄に「適合」，「準適合」，「不適合」のいずれかを入力して下さい \n　　　　　 非該当の場合は｢非該当｣として下さい 　",null,null,null,null,null,null,null,null,null,null,null,null,null,null,null,null,null,null,null,null,null,null,null,1]
[null,null,"＜各設問への適合判断基準＞　※設問ごとに適合判断基準の記載がある場合は，その記述を目安として判断すること",null,null,null,null,null,null,null,null,null,null,null,null,null,null,null,null,null,null,null,null,null,null,null,1]
[null,null,"適合",null,null,null,null,null,"設問の内容に対し，ルールに基づいた運用が適切に実践されていれば，「適合」とする \n設問に“文書化した情報”が要求される場合はその情報の有無確認を含む ",null,null,null,null,null,null,null,null,null,null,null,null,null,null,null,null,null,1]
[null,null,"準適合",null,null,null,null,null,"設問の内容に対し，ルールまたは運用の一部に不備がある場合，「準適合」とする。　いずれの場合でも，実際の運用では不備がカバーされ，適合に準じるような状況にあることが重要である\n「準適合」の判定をする場合にはさらに，不備な点を明らかにし，改善の計画または，その必要性を示す必要がある",null,null,null,null,null,null,null,null,null,null,null,null,null,null,null,null,null,1]
[null,null,"不適合",null,null,null,null,null,"設問に対応したルールがない場合，及び／または運用が行われていない場合，当該設問に関しては，「不適合」となる ",null,null,null,null,null,null,null,null,null,null,null,null,null,null,null,null,null,1]
[null,null,"非該当",null,null,null,null,null,"「実施項目」または「設問」が，組織に該当しない場合は，「非該当」として評価対象から除外することができる。 ただし，非該当と判断した根拠の説明が必要である ",null,null,null,null,null,null,null,null,null,null,null,null,null,null,null,null,null,1]
[null,null,"手順②：回答（取組内容，エビデンス名称欄）には取組の根拠となる取組内容や，エビデンスの名称を記載して下さい。 非該当がある場合はその理由を，それぞれについて可能な範囲で記載して下さい 。",null,null,null,null,null,null,null,null,null,null,null,null,null,null,null,null,null,null,null,null,null,null,null,1]
[null,null,"※客観的根拠としてドキュメント等の提示をする，あるいは提示を要求することもありえるが，本ガイドラインは必ずしもそれを想定しているものではない。ＣｉＰの管理体制の確認のために，検証記録の開示を求めることができる。検証記録の開示要請があった場合には，協議の上，開示されることが望ましい。また，企業機密の保護に十分配慮する必要がある。",null,null,null,null,null,null,null,null,null,null,null,null,null,null,null,null,null,null,null,null,null,null,null,1]
[]
[]
[]
[]
[]
[]
[null," 実施項目　（製品含有化学物質（ＣｉＰ)管理ガイドライン第4.0版より）"]
[null,"No","　実施項目（内容）",null,null,null,null,null,null,null,null,null,null,null,null,null,null,null,null,null,null,null,null,null,null,null,null,null,null,null,{"$f":"COUNTIF(AE56:AE413,\"●\")","v":44},{"$f":"COUNTIF(AF56:AF413,\"●\")","v":13}]
[null,null,null,"大分類","小分類","設問フラグ",null,null,null,"適合判断基準，回答例，管理の注意ポイント","自己評価実施組織欄",null,null,null,null,null,null,null,"評価結果確認組織欄",null,null,null,null,null,null,null,null,null,null,null,"設問フラグ",null,null,null,"評価"]
[null,null,null,null,null,"ベーシック","アドバンス","*セレクト","設問",null,"自己評\n価結果",null,"回答\n（取組内容，エビデンス名称等）",null,null,null,null,null,"判定\n結果","判定根拠・メモ等",null,null,null,null,null,null,null,"結合数","*セレクト","実施項目","B","A","標",null,"自己","評価"]
[null,null,null,null,null,null,null,null,null,null,null,null,null,null,null,null,null,null,null,null,null,null,null,null,null,null,null,null,null,null,{"$f":"+F55","v":0},{"$f":"+G55","v":0},{"$f":"+H55","v":0},null,{"$f":"+K55","v":0},{"$f":"+S55","v":0}]
[null," 5.1組織の状況",null,null,null,null,null,null,null,null,null,null,null,null,null,null,null,null,null,null,null,null,null,null,null,null,1,1,1]
[null," 5.1.1 組織及びその状況の理解",null,null,null,null,null,null,null,null,null,null,null,null,null,null,null,null,null,null,null,null,null,null,null,null,1,1,1]
[null,null,"組織は，組織の目的に関連し，かつ，そのＣｉＰ管理の意図した結果を達成する組織の能力に影響を与えるため，組織の外部及び内部の課題を明確にすること。",null,null,null,null,null,null,null,null,null,null,null,null,null,null,null,null,null,null,null,null,null,null,null,1,1,1]
[null,"-",null,"参考","参考",null,null,null,"(設問無し）",null,null,null,"（設問が無いため回答不要）",null,null,null,null,null,null,"（評価対象外）",null,null,null,null,null,null,1,2,1]
[null,null,null,null,null,null,null,null,null,null,null,null,null,null,null,null,null,null,null,null,null,null,null,null,null,null,1,2,1]
[null,null,null,null,null,null,null,null,null,null,null,null,null,null,null,null,null,null,null,null,null,null,null,null,null,null,1,1,1]
[null," 5.1.2 利害関係者のニーズ及び期待の理解",null,null,null,null,null,null,null,null,null,null,null,null,null,null,null,null,null,null,null,null,null,null,null,null,1,1,1]
[null,null,"組織は，利害関係者のニーズ及び期待を理解するために，次の事項を明確にすること。\na) ＣｉＰ管理に密接に関連する利害関係者\nb) それらの利害関係者のＣｉＰ管理に密接に関連する要求事項",null,null,null,null,null,null,null,null,null,null,null,null,null,null,null,null,null,null,null,null,null,null,null,1,1,1]
[null,"-",null,"参考","参考",null,null,null,"(設問無し）",null,null,null,"（設問が無いため回答不要）",null,null,null,null,null,null,"（評価対象外）",null,null,null,null,null,null,1,2,1]
[null,null,null,null,null,null,null,null,null,null,null,null,null,null,null,null,null,null,null,null,null,null,null,null,null,null,1,2,1]
[null,null,null,null,null,null,null,null,null,null,null,null,null,null,null,null,null,null,null,null,null,null,null,null,null,null,1,1,1,null,0,0,0,null,0,0]
[null," 5.1.3 ＣｉＰ管理の適用範囲の決定",null,null,null,null,null,null,null,null,null,null,null,null,null,null,null,null,null,null,null,null,null,null,null,null,2,1,1,null,0,0,0,null,0,0]
[null,null,"組織は，ＣｉＰ管理の適用範囲を適切に規定すること。この適用範囲を決定するとき，組織は，次の事項を考慮すること。\na) 5.1.1に規定する組織の外部及び内部の課題\nb) 5.1.2に規定する利害関係者の要求事項\nc) 組織の化学物質との関わり\nd) 組織が扱う外部から提供される製品及び外部に引き渡す製品\nＣｉＰ管理の適用範囲は，文書化した情報として利用可能な状態にしておくこと。",null,null,null,null,null,null,null,null,null,null,null,null,null,null,null,null,null,null,null,null,null,null,null,2,1,1,null,0,0,0,null,0,0]
[null,1,null,"共通管理","実施の確認",null,"●",null,"ＣｉＰ管理の仕組みを適用する範囲が明確になっていますか \n","＜適合判断基準＞\n適　合：ＣｉＰ管理を行う組織，製品，工程が文書化されている\n　　　　　　または，管理対象外となる範囲のみを定めていてもよい　　　\n準適合：組織，工程で不明確部分がある\n　　　　　　製品の保護材，治工具等の扱いが不明\n不適合：文書化されていない\n　　　　　　適用範囲が定められていない",null,null,"適用範囲が記載された文書名及び概要を記載して下さい ",null,null,null,null,null,null,null,null,null,null,null,null,null,2,3,{"$f":"+IF(H69=\"●\",3,1)","v":1},null,{"$f":"+F69","v":0},{"$f":"+G69","v":"●"},0,null,{"$f":"+K69","v":0},{"$f":"+S69","v":0}]
[null,null,null,null,null,null,null,null,null,null,null,null,"(a) 文書化された情報名：\n[　　　　　　　　　　　　　　　　　　　　　　　　　　　　　　\n(b) 概要：\n[　　　　　　　　　　　　　　　",null,null,null,null,null,null,null,null,null,null,null,null,null,2,3,{"$f":"+AC69","v":1},null,{"$f":"+F70","v":0},{"$f":"+G70","v":0},{"$f":"+H70","v":0},null,{"$f":"+K70","v":0},{"$f":"+S70","v":0}]
[null,null,null,null,null,null,null,null,null,"＜回答例＞\n(a) ＣｉＰ管理規定\n(b) 概要\n　○○株式会社が商品企画，開発または生産する製品，及びその包装材の全てを管理対象としている\n　ただし，顧客要求により指定された場合は対象外としている\n\n＜管理の注意ポイント＞\n・適用範囲は，実施項目に記載されるa)～d)項を考慮することで，管理の漏れヌケを防止し効果的な活動を行うことが可能となる",null,null,null,null,null,null,null,null,null,null,null,null,null,null,null,null,2,3,{"$f":"+AC70","v":1},null,0,0,0,null,0,0]
[null,null,null,null,null,null,null,null,null,null,null,null,null,null,null,null,null,null,null,null,null,null,null,null,null,null,2,1,1,null,null,null,null,null,0,0]
[null," 5.1.4 ＣｉＰ管理の実施",null,null,null,null,null,null,null,null,null,null,null,null,null,null,null,null,null,null,null,null,null,null,null,null,1,1,1]
[null,null,"組織は，このガイドラインのＣｉＰ管理の基本的な考え方及び実施項目に従って，ＣｉＰ管理の仕組みを確立し，実施し，維持し，かつ継続的に改善すること。\nＣｉＰ管理基準を満たす製品を実現できるように，ＣｉＰ管理は，組織の業態に応じて，設計・開発，購買，製造及び引渡しの各段階において，実施すること。",null,null,null,null,null,null,null,null,null,null,null,null,null,null,null,null,null,null,null,null,null,null,null,1,1,1]
[null,"-",null,"参考","参考",null,null,null,"(設問無し）",null,null,null,"（設問が無いため回答不要）",null,null,null,null,null,null,"（評価対象外）",null,null,null,null,null,null,1,2,1]
[null,null,null,null,null,null,null,null,null,null,null,null,null,null,null,null,null,null,null,null,null,null,null,null,null,null,1,2,1]
[null,null,null,null,null,null,null,null,null,null,null,null,null,null,null,null,null,null,null,null,null,null,null,null,null,null,1,1,1]
[null," 5.2 リーダシップ",null,null,null,null,null,null,null,null,null,null,null,null,null,null,null,null,null,null,null,null,null,null,null,null,1,1,1]
[null," 5.2.1 リーダシップ及びコミットメント",null,null,null,null,null,null,null,null,null,null,null,null,null,null,null,null,null,null,null,null,null,null,null,null,1,1,1]
[null,null,"トップマネジメントは，次に示す事項によって，ＣｉＰ管理に関するリーダーシップ及びコミットメントを実証すること。\na) ＣｉＰ管理の有効性に説明責任（accountability）を負う。\nb) ＣｉＰ管理を組織の活動として位置付ける。\nc) 必要な資源を利用可能とする（5.4.1参照）。\nd) ＣｉＰ管理基準に適合することを確実にする。",null,null,null,null,null,null,null,null,null,null,null,null,null,null,null,null,null,null,null,null,null,null,null,1,1,1]
[null,"-",null,"参考","参考",null,null,null,"(設問無し）",null,null,null,"（設問が無いため回答不要）",null,null,null,null,null,null,"（評価対象外）",null,null,null,null,null,null,1,2,1]
[null,null,null,null,null,null,null,null,null,null,null,null,null,null,null,null,null,null,null,null,null,null,null,null,null,null,1,2,1]
[null,null,null,null,null,null,null,null,null,null,null,null,null,null,null,null,null,null,null,null,null,null,null,null,null,null,1,1,1]
[null," 5.2.2 方針",null,null,null,null,null,null,null,null,null,null,null,null,null,null,null,null,null,null,null,null,null,null,null,null,null,1,1,null,0,0,0,null,0,0]
[null,null,"トップマネジメントは，組織のＣｉＰ管理方針を確立し，それに基づいて計画を策定し，実施し，維持すること。さらに，ＣｉＰ管理に適切に取り組むことを表明すること。",null,null,null,null,null,null,null,null,null,null,null,null,null,null,null,null,null,null,null,null,null,null,null,null,1,1,null,0,0,0,null,0,0]
[null,{"$f":"+B69+1","v":2},null,"共通管理","実施確認・周知確認","●",null,null,"ＣｉＰ管理方針が明確になっていますか\n(a) トップマネジメントはＣｉＰ管理を適切に取組むために方針を表明していますか \n(b) 関係部署に周知されていますか\n","＜適合判断基準＞\n適　合：ＣｉＰ管理についてトップの意思表示がある\n　※回答例にあるように，社内のどのような枠組みでＣｉＰ管理に取組むことが明確になっている\n不適合：ＣｉＰ管理についてトップの意思表示がない",null,null,"ＣｉＰ管理の方針を表明した文書名等を記載して下さい",null,null,null,null,null,null,null,null,null,null,null,null,null,null,4,{"$f":"+IF(H86=\"●\",3,1)","v":1},null,"●",0,0,null,0,0]
[null,null,null,null,null,null,null,null,null,null,null,null,"(a) 方針を表明した文書等：\n[\n(b) 周知方法：\n[",null,null,null,null,null,null,null,null,null,null,null,null,null,null,4,{"$f":"+AC86","v":1},null,0,0,0,null,0,0]
[null,null,null,null,null,null,null,null,null,"＜回答例＞\n(a) ○○会社　品質方針　and/or　環境方針　and/or　CSR方針　（ホームページも可）\n(b) ・関係者が閲覧可能なWebにて周知\n 　 ・企業HPで一般に公表している\n\n＜管理の注意ポイント＞\n・方針は，法規制の順守や業界基準への対応等が盛り込まれており，必要に応じて見直しを行い，維持されていることが望ましい",null,null,null,null,null,null,null,null,null,null,null,null,null,null,null,null,null,4,{"$f":"+AC87","v":1},null,0,0,0,null,0,0]
[null,null,null,null,null,null,null,null,null,null,null,null,null,null,null,null,null,null,null,null,null,null,null,null,null,null,null,4,{"$f":"+AC88","v":1},null,0,0,0,null,0,0]
[null,null,null,null,null,null,null,null,null,null,null,null,null,null,null,null,null,null,null,null,null,null,null,null,null,null,null,1,1,null,0,0,0,null,0,0]
[null," 5.2.3 組織の役割，責任及び権限",null,null,null,null,null,null,null,null,null,null,null,null,null,null,null,null,null,null,null,null,null,null,null,null,null,1,1,null,0,0,0,null,0,0]
[null,null,"トップマネジメントは，有効なＣｉＰ管理を実施するために，関連する役割に対して，責任及び権限を規定し，組織内部に伝達すること。",null,null,null,null,null,null,null,null,null,null,null,null,null,null,null,null,null,null,null,null,null,null,null,null,1,1,null,0,0,0,null,0,0]
[null,{"$f":"+B86+1","v":3},null,"共通管理","実施確認・周知確認","●",null,null,"ＣｉＰ管理に関係する部署と役割が明確になっていますか\n(a) ＣｉＰ管理に関係する部署を明確にし，\n(b) 役割に対する責任及び権限を規定し，\n(c) それらを周知していますか\n","＜適合判断基準＞\n適　合：(a) (b) (c) の全てが実施されている場合\n準適合：(a) (b) (c) のうち２つが実施されている場合\n不適合：実施が１つ以下の場合",null,null,"ＣｉＰ管理に関係する部署と役割，責任及び権限を定めた文書名等とそれらの周知方法を記載して下さい",null,null,null,null,null,null,null,null,null,null,null,null,null,null,4,{"$f":"+IF(H93=\"●\",3,1)","v":1},null,"●",0,0,null,0,0]
[null,null,null,null,null,null,null,null,null,null,null,null,"(a) ＣｉＰ管理に関する部署の役割を定めた文書名：\n[　　　　　　　　　　　　　　\n(b) ＣｉＰ管理に関係する部署の役割に対する責任及び権限を定めた文書名：\n[　　　　　　　　　　　　　　\n(c) (a)(b) の役割の周知方法：\n[　　　　　　　　　　　　　　\n",null,null,null,null,null,null,null,null,null,null,null,null,null,null,4,{"$f":"+AC93","v":1},null,0,0,0,null,0,0]
[null,null,null,null,null,null,null,null,null,"＜回答例＞\n(a) 業務規程第○条 やＣｉＰ管理規程 ○条:役割，責任，権限)等\n(b) 製品環境委員会規程第○条やＣｉＰ管理規程 ○条:役割，責任，権限)等\n(c) 業務分掌規程を部署責任者が保管，製品環境委員会規約はイントラネットで公開の上，委員により部署内展開を実施",null,null,null,null,null,null,null,null,null,null,null,null,null,null,null,null,null,4,{"$f":"+AC94","v":1},null,0,0,0,null,0,0]
[null,null,null,null,null,null,null,null,null,null,null,null,null,null,null,null,null,null,null,null,null,null,null,null,null,null,null,4,{"$f":"+AC95","v":1},null,0,0,0,null,0,0]
[null,null,null,null,null,null,null,null,null,null,null,null,null,null,null,null,null,null,null,null,null,null,null,null,null,null,null,1,1,null,0,0,0,null,0,0]
[null," 5.3 計画",null,null,null,null,null,null,null,null,null,null,null,null,null,null,null,null,null,null,null,null,null,null,null,null,1,1,1]
[null," 5.3.1 リスク及び機会への取組み",null,null,null,null,null,null,null,null,null,null,null,null,null,null,null,null,null,null,null,null,null,null,null,null,1,1,1]
[null,null,"ＣｉＰ管理の計画を策定するとき，組織は，5.1.1に規定する組織の外部及び内部の課題，5.1.2に規定する利害関係者の要求事項及び5.1.3に規定する適用範囲を考慮し，次に挙げる組織の意図する結果の実現のために取り組む必要のあるリスク及び機会を決定すること。\na) ＣｉＰ管理が，その意図した結果を達成できるようにする。\nb) 望ましい影響を増大する。\nc) 望ましくない影響を防止または低減する。\nd) 継続的改善を推進する。\n組織は，上記によって決定したリスク及び機会への取組みを計画すること。",null,null,null,null,null,null,null,null,null,null,null,null,null,null,null,null,null,null,null,null,null,null,null,1,1,1]
[null,"-",null,"参考","参考",null,null,null,"(設問無し）",null,null,null,"（設問が無いため回答不要）",null,null,null,null,null,null,"（評価対象外）",null,null,null,null,null,null,1,2,1]
[null,null,null,null,null,null,null,null,null,null,null,null,null,null,null,null,null,null,null,null,null,null,null,null,null,null,1,2,1]
[null,null,null,null,null,null,null,null,null,null,null,null,null,null,null,null,null,null,null,null,null,null,null,null,null,null,1,1,1]
[null," 5.3.2 目標及びそれを達成するための計画策定",null,null,null,null,null,null,null,null,null,null,null,null,null,null,null,null,null,null,null,null,null,null,null,null,null,1,1,null,0,0,0,null,0,0]
[null,null,"組織は，ＣｉＰ管理について目標を設定すること 。組織は，その目標を達成するための計画を策定し，実施し，維持すること。 組織は，必要に応じて，これらの目標及び実施計画を見直すこと。 \n計画策定に当たりの次の事項を考慮すること。\na) リスク及び機会への取組み（5.3.1）のＣｉＰ管理への統合，実施及び有効性の評価\nb) パフォーマンス評価からの改善点",null,null,null,null,null,null,null,null,null,null,null,null,null,null,null,null,null,null,null,null,null,null,null,null,1,1,null,0,0,0,null,0,0]
[null,{"$f":"B93+1","v":4},null,"共通管理","実施確認","●",null,null,"(1) 目標設定し，その達成のための計画を作成していますか  \n","＜適合判断基準＞\n適　合：目標を定めた計画が作成されている\n準適合：目標は作成されているが計画が作成されていない\n不適合：目標と計画がともに作成されていない",null,null,"(1) 目標を定めた計画が記載された文書，実施状況を記載した記録名を記載して下さい ",null,null,null,null,null,null,null,null,null,null,null,null,null,null,4,{"$f":"+IF(H106=\"●\",3,1)","v":1},null,"●",0,0,null,0,0]
[null,null,null,null,null,null,null,null,null,null,null,null,null,null,null,null,null,null,null,null,null,null,null,null,null,null,null,4,{"$f":"+AC106","v":1},null,0,0,0,null,0,0]
[null,null,null,null,null,null,null,null,null,"＜回答例＞\n・化学物質調査実施計画\n・供給者評価実施計画\n\n＜管理の注意ポイント＞\n・リスク及び機会への取組み（5.3.1）のＣｉＰ管理への統合，実施及び有効性の評価について計画に入れている",null,null,null,null,null,null,null,null,null,null,null,null,null,null,null,null,null,4,{"$f":"+AC107","v":1},null,0,0,0,null,0,0]
[null,null,null,null,null,null,null,null,null,null,null,null,null,null,null,null,null,null,null,null,null,null,null,null,null,null,null,4,{"$f":"+AC108","v":1},null,0,0,0,null,0,0]
[null,{"$f":"+B106+1","v":5},null,"共通管理","見直し確認","●",null,null,"(2) 必要に応じて目標，実施計画を見直していますか \n","＜適合判断基準＞\n適　合：目標，実施計画の見直しを行う時期などが定められて運用されている\n　※見直し基準に合致しない場合は見直しを行わないことで適合となる\n準適合：目標，実施計画の見直しについて基準または実施に不備がある\n不適合：目標，実施計画の見直しについて基準がない，または運用がない",null,null,"(2) 目標と実施計画の最新の改訂時期を記載して下さい\n　実績が無い場合は見直しの時期を記載して下さい ",null,null,null,null,null,null,null,null,null,null,null,null,null,null,4,{"$f":"+IF(H110=\"●\",3,1)","v":1},null,"●",0,0,null,0,0]
[null,null,null,null,null,null,null,null,null,null,null,null,null,null,null,null,null,null,null,null,null,null,null,null,null,null,null,4,{"$f":"+AC110","v":1},null,0,0,0,null,0,0]
[null,null,null,null,null,null,null,null,null,"＜回答例＞\n ・目標改訂：XX年X月X日\n ・計画改訂：XX年X月X日\n",null,null,null,null,null,null,null,null,null,null,null,null,null,null,null,null,null,4,{"$f":"+AC111","v":1},null,0,0,0,null,0,0]
[null,null,null,null,null,null,null,null,null,null,null,null,null,null,null,null,null,null,null,null,null,null,null,null,null,null,null,4,{"$f":"+AC112","v":1},null,0,0,0,null,0,0]
[null,{"$f":"+B110+1","v":6},null,"共通管理","周知確認","●",null,null,"(3) 目標及び実施計画を関係部署に周知していますか　\n","＜適合判断基準＞\n適　合：具体的に周知の取組みがある\n準適合：取組に課題がある \n不適合：取組の実績がない",null,null,"(3) 目標，実施計画の周知方法を記載して下さい ",null,null,null,null,null,null,null,null,null,null,null,null,null,null,4,{"$f":"+IF(H114=\"●\",3,1)","v":1},null,"●",0,0,null,0,0]
[null,null,null,null,null,null,null,null,null,null,null,null,null,null,null,null,null,null,null,null,null,null,null,null,null,null,null,4,{"$f":"+AC114","v":1},null,0,0,0,null,0,0]
[null,null,null,null,null,null,null,null,null,"＜回答例＞\n・目標及び実施計画をイントラネットで公開し，改訂時に関係部署へ周知している ",null,null,null,null,null,null,null,null,null,null,null,null,null,null,null,null,null,4,{"$f":"+AC115","v":1},null,0,0,0,null,0,0]
[null,null,null,null,null,null,null,null,null,null,null,null,null,null,null,null,null,null,null,null,null,null,null,null,null,null,null,4,{"$f":"+AC116","v":1},null,0,0,0,null,0,0]
[null,null,null,null,null,null,null,null,null,null,null,null,null,null,null,null,null,null,null,null,null,null,null,null,null,null,null,1,1,null,0,0,0,null,0,0]
[null," 5.4 支援",null,null,null,null,null,null,null,null,null,null,null,null,null,null,null,null,null,null,null,null,null,null,null,null,1,1,1]
[null," 5.4.1 資源",null,null,null,null,null,null,null,null,null,null,null,null,null,null,null,null,null,null,null,null,null,null,null,null,1,1,1]
[null,null,"組織は，ＣｉＰ管理を確立し，実施し，維持し，かつ継続的改善に必要な資源を明確にし，提供すること。",null,null,null,null,null,null,null,null,null,null,null,null,null,null,null,null,null,null,null,null,null,null,null,1,1,1]
[null,"-",null,"参考","参考",null,null,null,"(設問無し）",null,null,null,"（設問が無いため回答不要）",null,null,null,null,null,null,"（評価対象外）",null,null,null,null,null,null,1,2,1]
[null,null,null,null,null,null,null,null,null,null,null,null,null,null,null,null,null,null,null,null,null,null,null,null,null,null,1,2,1]
[null,null,null,null,null,null,null,null,null,null,null,null,null,null,null,null,null,null,null,null,null,null,null,null,null,null,1,1,1]
[null," 5.4.2 力量",null,null,null,null,null,null,null,null,null,null,null,null,null,null,null,null,null,null,null,null,null,null,null,null,null,1,1,null,0,0,null,null,0,0]
[null,null,"組織は，力量に関して，次の事項を行うこと。\na) 設計・開発，購買，製造及び引渡しの各段階においてＣｉＰ管理に携わる者に必要な力量を明確にする。\nb) 適切な教育・訓練または経験に基づいて，ＣｉＰ管理に携わる者が力量を備えていることを確実にする。\nc) 教育・訓練の実施について，文書化した情報を保持する。",null,null,null,null,null,null,null,null,null,null,null,null,null,null,null,null,null,null,null,null,null,null,null,null,1,1,null,0,0,0,null,0,0]
[null,{"$f":"+B114+1","v":7},null,"共通管理","実施確認・記録確認","●",null,null,"(a) 運営管理の項目ごとに教育が必要な対象者，教育・訓練内容を定めていますか\n(b) 教育訓練を実施し記録していますか \n","＜適合判断基準＞\n適　合：教育訓練の実施を定めた文書化された情報に基づき実施，記録されている　　\n準適合：文書化された情報に洩れなどの不備がある\n不適合：教育に関するルールがなく，実績もない",null,null,"教育訓練の運用ルールを定めた文書及び，教育が必要な対象者，訓練の内容を記載して下さい ",null,null,null,null,null,null,null,null,null,null,null,null,null,null,4,{"$f":"+IF(H127=\"●\",3,1)","v":1},null,"●",0,0,null,0,0]
[null,null,null,null,null,null,null,null,null,null,null,null,"(a) 教育訓練の運用ルールを定めた文書名\n［　　　　　　　　　　　　　　　　　\n(b) 主な個別教育の訓練内容と記録\n1) 対象者：［　　　　　　　　　　　　　　\n　訓練内容：［\n　記録：[　　\n2) 対象者：［　　　　　　　　　　　　　　\n   訓練内容：［\n   記録：［\n3) 対象者：［　　　　　　　　　　　　　　\n  訓練内容：［\n  記録：［　　　　　　　　　　　　",null,null,null,null,null,null,null,null,null,null,null,null,null,null,4,{"$f":"+AC127","v":1},null,0,0,0,null,0,0]
[null,null,null,null,null,null,null,null,null,"＜回答例＞ \n(a) 「ＣｉＰ管理規程」（文書NO.XXXX　訂01）」 第○項：教育訓練  \n(b)\n   対象者 ：［材料担当者，製造担当者］　　　　　　　　　　　　　　\n   訓練内容：［併行生産時の識別管理（保管・生産切替・洗浄等）］\n   記録：[教育記録／受講記録　等]\n　　　　　　　　　　　　　　　　　\n＜管理の注意ポイント＞\n・ＣｉＰ管理に関する教育訓練のﾙｰﾙ，記録を定めた文書がある場合はその規程名称を記載することでもよい　　　　　　　　　　　　　　　　　　　　　　　　　　　　　　　　　　　　　　　　",null,null,null,null,null,null,null,null,null,null,null,null,null,null,null,null,null,4,{"$f":"+AC128","v":1},null,0,0,0,null,0,0]
[null,null,null,null,null,null,null,null,null,null,null,null,null,null,null,null,null,null,null,null,null,null,null,null,null,null,null,4,{"$f":"+AC129","v":1},null,0,0,0,null,0,0]
[null,null,null,null,null,null,null,null,null,null,null,null,null,null,null,null,null,null,null,null,null,null,null,null,null,null,null,1,1,null,0,0,0,null,0,0]
[null," 5.4.3 認識",null,null,null,null,null,null,null,null,null,null,null,null,null,null,null,null,null,null,null,null,null,null,null,null,1,1,1]
[null,null,"組織は，ＣｉＰ管理に携わる者が，次の事項に関して認識をもつことを確実にすること。\na) ＣｉＰ管理方針\nb) 関連するＣｉＰ管理に関する目標\nc) 自らの業務に関係し注意する必要があるリスク\nd) パフォーマンスの向上によって得られる便益を含む，ＣｉＰ管理の有効性に対する自らの貢献\ne) ＣｉＰ管理のＣｉＰ管理の基本的な考え方及び実施項目に適合しないことの意味",null,null,null,null,null,null,null,null,null,null,null,null,null,null,null,null,null,null,null,null,null,null,null,1,1,1]
[null,"-",null,"参考","参考",null,null,null,"(設問無し）",null,null,null,"（設問が無いため回答不要）",null,null,null,null,null,null,"（評価対象外）",null,null,null,null,null,null,1,2,1]
[null,null,null,null,null,null,null,null,null,null,null,null,null,null,null,null,null,null,null,null,null,null,null,null,null,null,1,2,1]
[null,null,null,null,null,null,null,null,null,null,null,null,null,null,null,null,null,null,null,null,null,null,null,null,null,null,1,1,1]
[null," 5.4.4 コミュニケーション",null,null,null,null,null,null,null,null,null,null,null,null,null,null,null,null,null,null,null,null,null,null,null,null,1,1,1]
[null,null,"組織は，次の事項を含む，ＣｉＰ管理に関連する組織の内部及び外部とのコミュニケーションを決定すること。\na) コミュニケーションの内容\nb) 実施時期\nc) 対象者\nd) 実施方法\ne) 担当者",null,null,null,null,null,null,null,null,null,null,null,null,null,null,null,null,null,null,null,null,null,null,null,1,1,1]
[null,"-",null,"参考","参考",null,null,null,"(設問無し）",null,null,null,"（設問が無いため回答不要）",null,null,null,null,null,null,"（評価対象外）",null,null,null,null,null,null,1,2,1]
[null,null,null,null,null,null,null,null,null,null,null,null,null,null,null,null,null,null,null,null,null,null,null,null,null,null,1,2,1]
[null,null,null,null,null,null,null,null,null,null,null,null,null,null,null,null,null,null,null,null,null,null,null,null,null,null,1,1,1]
[null," 5.4.4.1 内部コミュニケーション",null,null,null,null,null,null,null,null,null,null,null,null,null,null,null,null,null,null,null,null,null,null,null,null,1,1,1]
[null,null,"組織は，ＣｉＰ管理に関連する情報について，組織の種々の階層及び機能（部署）間でのコミュニケーションに関わる手順を確立し，実施すること。",null,null,null,null,null,null,null,null,null,null,null,null,null,null,null,null,null,null,null,null,null,null,null,1,1,1]
[null,"-",null,"参考","参考",null,null,null,"(設問無し）",null,null,null,"（設問が無いため回答不要）",null,null,null,null,null,null,"（評価対象外）",null,null,null,null,null,null,1,2,1]
[null,null,null,null,null,null,null,null,null,null,null,null,null,null,null,null,null,null,null,null,null,null,null,null,null,null,1,2,1]
[null,null,null,null,null,null,null,null,null,null,null,null,null,null,null,null,null,null,null,null,null,null,null,null,null,null,1,1,1]
[null," 5.4.4.2 外部とのコミュニケーション",null,null,null,null,null,null,null,null,null,null,null,null,null,null,null,null,null,null,null,null,null,null,null,null,1,1,1]
[null,null,"組織は，ＣｉＰ管理のために必要な情報について，外部との間で，コミュニケーションに関わる手順を確立し，実施すること。",null,null,null,null,null,null,null,null,null,null,null,null,null,null,null,null,null,null,null,null,null,null,null,1,1,1]
[null,"-","-","参考","参考",null,null,null,"(設問無し）",null,null,null,"（設問が無いため回答不要）",null,null,null,null,null,null,"（評価対象外）",null,null,null,null,null,null,1,2,1]
[null,null,null,null,null,null,null,null,null,null,null,null,null,null,null,null,null,null,null,null,null,null,null,null,null,null,1,2,1]
[null,null,null,null,null,null,null,null,null,null,null,null,null,null,null,null,null,null,null,null,null,null,null,null,null,null,1,1,1,null,{"$f":"+F151","v":0},{"$f":"+G151","v":0},{"$f":"+H151","v":0},null,{"$f":"+K151","v":0},{"$f":"+S151","v":0}]
[null," 5.4.5 文書化した情報",null,null,null,null,null,null,null,null,null,null,null,null,null,null,null,null,null,null,null,null,null,null,null,null,null,1,1,null,0,0,0,null,0,0]
[null,null,"組織は，このガイドラインが推奨する文書化した情報及びＣｉＰ管理の有効性のために必要であると組織が定めた文書化した情報を維持又は保持すること。",null,null,null,null,null,null,null,null,null,null,null,null,null,null,null,null,null,null,null,null,null,null,null,null,1,1,null,0,0,0,null,0,0]
[null,{"$f":"+B127+1","v":8},null,"共通管理","実施確認","●",null,null,"(1) ＣｉＰ管理に関わる文書（本チェックシートで確認した文書）を管理していますか\n","＜適合判断基準＞\n適　合：管理すべき文書及び管理方法を定めた文書化された情報がある\n準適合：記述に漏れなどの不備がある\n不適合：管理すべき文書及び管理方法を定めた文書化された情報がない",null,null,"(1) ＣｉＰ管理に関わる文書（本チェックシートで確認した文書）の体系及び管理方法が分かる文書化された情報を記載して下さい ",null,null,null,null,null,null,null,null,null,null,null,null,null,null,4,{"$f":"+IF(H154=\"●\",3,1)","v":1},null,"●",0,0,null,0,0]
[null,null,null,null,null,null,null,null,null,null,null,null,null,null,null,null,null,null,null,null,null,null,null,null,null,null,null,4,{"$f":"+AC154","v":1},null,0,0,0,null,0,0]
[null,null,null,null,null,null,null,null,null,"＜回答例＞\n・「○○○会社　ＣｉＰ文書体系図」\n・「○○○会社　ＣｉＰ関連文書一覧」\n\n＜管理の注意ポイント＞\n・文書は文書一覧や文書体系図等で体系的に管理するとよい \n・文書体系にはそれぞれの文書の改訂履歴を記載する \n・ＣｉＰ管理に関する文書類は，関係者が最新版を確認できる環境にあり必要に応じて見直しされている",null,null,null,null,null,null,null,null,null,null,null,null,null,null,null,null,null,4,{"$f":"+AC155","v":1},null,0,0,0,null,0,0]
[null,null,null,null,null,null,null,null,null,null,null,null,null,null,null,null,null,null,null,null,null,null,null,null,null,null,null,4,{"$f":"+AC156","v":1},null,0,0,0,null,0,0]
[null,{"$f":"+B154+1","v":9},null,"共通管理","記録確認",null,"●",null,"(2) ＣｉＰ管理に関する運用記録を保管していますか\n","＜適合判断基準＞\n適　合：自社の管理項目に対応する記録がある\n準適合：自社の管理項目に対応する記録等の漏れがある\n不適合：自社の管理項目に対応する記録がない",null,null,"(2) 保管している記録の名称とその保管期限を記載して下さい\n※回答欄に記載しきれない場合は，既存の記録（記録管理一覧等）で代用して頂いても良い",null,null,null,null,null,null,null,null,null,null,null,null,null,2,4,{"$f":"+IF(H158=\"●\",3,1)","v":1},null,0,"●",0,null,0,0]
[null,null,null,null,null,null,null,null,null,null,null,null,null,null,null,null,null,null,null,null,null,null,null,null,null,null,2,4,{"$f":"+AC158","v":1},null,0,0,0,null,0,0]
[null,null,null,null,null,null,null,null,null,"＜回答例＞\n・製品アセスメント報告書　（保管期限　XX年）\n・供給者評価結果　（保管期限　XX年）\n・外部委託先評価結果　（保管期限　XX年）\n・受入検査成績票　（保管期限　XX年）\n・テストピース分析レポート　（保管期限　XX年）\n・現品票　（保管期限　XX年）\n・ロット管理記録票　（保管期限　XX年）\n・顧客のグリーン調達基準書等の受領確認記録　（保管期限　XX年）\n・ＣｉＰ情報の調査回答記録　（保管期限　XX年）\n・顧客からのＣｉＰ管理に関する評価への回答記録（保管期限　XX年）\n・工程変更申請書　（保管期限　XX年）\n・ＣｉＰ　物品調査・判定者研修　（保管期限　XX年）\n・内部監査報告書　（保管期限　XX年）\n・マネジメントレビュー報告書　（保管期限　XX年）　　　\n\n＜管理の注意ポイント＞\n・運用記録とはそれぞれの項目で確認する記録のこと\n・運用記録ごとに保管期限等を設定して管理を行う\n・法令や顧客要求により保管期限が定められている場合は，それに従った保管期限を設定している",null,null,null,null,null,null,null,null,null,null,null,null,null,null,null,null,2,4,{"$f":"+AC159","v":1},null,0,0,0,null,0,0]
[null,null,null,null,null,null,null,null,null,null,null,null,null,null,null,null,null,null,null,null,null,null,null,null,null,null,2,4,{"$f":"+AC160","v":1},null,0,0,0,null,0,0]
[null,null,null,null,null,null,null,null,null,null,null,null,null,null,null,null,null,null,null,null,null,null,null,null,null,null,null,1,1]
[null," 5.5 運用",null,null,null,null,null,null,null,null,null,null,null,null,null,null,null,null,null,null,null,null,null,null,null,null,1,1,1]
[null," 5.5.1 運用の計画及び管理",null,null,null,null,null,null,null,null,null,null,null,null,null,null,null,null,null,null,null,null,null,null,null,null,1,1,1]
[null,null,"組織は，ＣｉＰ管理基準を満たすため，並びに5.3.1で決定した取組みを実施するために必要なプロセスを，計画し，実施し，管理し，及び維持すること（5.1.4参照）。\nそのプロセスが計画どおりに実施されたことを確認するために必要な程度の，文書化された情報を保持すること。\n組織は，外部委託したプロセスが管理されていることを確実にすること（5.5.4参照）。",null,null,null,null,null,null,null,null,null,null,null,null,null,null,null,null,null,null,null,null,null,null,null,1,1,1]
[null,"-","-","参考","参考",null,null,null,"(設問無し）",null,null,null,"（設問が無いため回答不要）",null,null,null,null,null,null,"（評価対象外）",null,null,null,null,null,null,1,2,1]
[null,null,null,null,null,null,null,null,null,null,null,null,null,null,null,null,null,null,null,null,null,null,null,null,null,null,1,2,1]
[null,null,null,null,null,null,null,null,null,null,null,null,null,null,null,null,null,null,null,null,null,null,null,null,null,null,1,1,1]
[null," 5.5.2 ＣｉＰ管理基準の策定",null,null,null,null,null,null,null,null,null,null,null,null,null,null,null,null,null,null,null,null,null,null,null,null,null,1,1,null,0,0,0,null,0,0]
[null," 5.5.2.1 顧客とのコミュニケーション",null,null,null,null,null,null,null,null,null,null,null,null,null,null,null,null,null,null,null,null,null,null,null,null,null,1,1,null,0,0,0,null,0,0]
[null,null,"組織は，次の事項に関して顧客とのコミュニケーションを図るための効果的な方法を明確にし，実施し，その内容を文書化した情報として保持すること。\na) 顧客が遵守する必要がある法規制及び業界基準の情報の入手\nb) ＣｉＰ情報の提供\nc) ＣｉＰ管理に関する情報の提供\nd) 苦情を含む製品に関する顧客からのフィードバックの取得\nＣｉＰ情報に変化が生じる場合には，組織は，事前にその情報を顧客に伝達すること。",null,null,null,null,null,null,null,null,null,null,null,null,null,null,null,null,null,null,null,null,null,null,null,null,1,1,null,0,0,0,null,0,0]
[null,{"$f":"+B158+1","v":10},null,"共通管理","実施確認","●",null,null,"(1) 下記 (a)～(d) の該当する項目について顧客，供給者への情報伝達，情報交換を図る効果的な方法があり，実施していますか\n(a) 顧客，供給者が順守する必要がある法規制及び業界基準の入手\n(b) ＣｉＰ情報の提供\n(c) ＣｉＰ管理に関する情報の提供\n(d) 苦情を含む顧客からのフィードバックの取得\n","＜適合判断基準＞\n適　合：顧客とのコミュニケーションに(a)から(d)の内容を定めた手順があり実施している\n準適合：一部未実施（手順無し)などの不備がある\n不適合：顧客とのコミュニケーションを定めた手順もなく実施していない",null,null,"(1) 下記 (a)～(d) について顧客，供給者との効率的な情報交換を行うための方法を定めた文書名を記載して下さい ",null,null,null,null,null,null,null,null,null,null,null,null,null,null,4,{"$f":"+IF(H172=\"●\",3,1)","v":1},null,"●",0,0,null,0,0]
[null,null,null,null,null,null,null,null,null,null,null,null,"(a) 顧客が順守する必要がある法規制及び業界基準：\n［　　　\n(b) ＣｉＰ情報：\n［\n(c) ＣｉＰ管理に関する情報：\n［\n(d) 顧客からの苦情等：\n［",null,null,null,null,null,null,null,null,null,null,null,null,null,null,4,{"$f":"+AC172","v":1},null,0,0,0,null,0,0]
[null,null,null,null,null,null,null,null,null,"＜回答例＞\n(a) 顧客が順守する必要がある法規制及び業界基準を規定した文書：　ＣｉＰ関連遵守法令管理基準\n(b) ＣｉＰ情報を規定した文書：　ＣｉＰランク指針管理手順書\n(c) ＣｉＰ管理に関する情報の提供ルールを規定した文書：ＣｉＰ情報管理・提供手段規程\n(d) 顧客からの苦情等の情報を管理する規定した文書：クレーム対応管理手順書\n\n＜管理の注意ポイント＞\n・情報交換を図る効率的な方法とは，問合せや評価に対して速やかに回答ができる等の効率的な体制が整えられていることを指す",null,null,null,null,null,null,null,null,null,null,null,null,null,null,null,null,null,4,{"$f":"+AC173","v":1},null,0,0,0,null,0,0]
[null,null,null,null,null,null,null,null,null,null,null,null,null,null,null,null,null,null,null,null,null,null,null,null,null,null,null,4,{"$f":"+AC174","v":1},null,0,0,0,null,0,0]
[null,{"$f":"+B172+1","v":11},null,"共通管理","記録確認","●",null,null,"(2) 上記 (1) の内容を記録していますか \n","＜適合判断基準＞\n適　合：前項の手順に対し，全て記録がある\n準適合：管理漏れ等の不備がある\n不適合：記録が管理されていない",null,null,"(2) エビデンスとなる記録名を記載して下さい",null,null,null,null,null,null,null,null,null,null,null,null,null,null,4,{"$f":"+IF(H176=\"●\",3,1)","v":1},null,"●",0,0,null,0,0]
[null,null,null,null,null,null,null,null,null,null,null,null,"(a) 顧客が順守する必要がある法規制及び業界基準：\n［\n(b) ＣｉＰ情報：\n［\n(c) ＣｉＰ管理に関する情報： \n［\n(d) 顧客からの苦情に関する情報：\n［",null,null,null,null,null,null,null,null,null,null,null,null,null,null,4,{"$f":"+AC176","v":1},null,0,0,0,null,0,0]
[null,null,null,null,null,null,null,null,null,"＜回答例＞\n(a) 顧客が順守する必要がある法規制及び業界基準：\n  ［顧客のグリーン調達基準書等の受領確認記録］\n(b) ＣｉＰ情報：\n  ［ＣｉＰ情報の調査回答記録］\n(c) ＣｉＰ管理に関する情報：\n  ［顧客からのＣｉＰ管理に関する評価への回答記録］\n(d) 顧客からの苦情に関する情報\n　［顧客からの苦情に関する回答記録］\n",null,null,null,null,null,null,null,null,null,null,null,null,null,null,null,null,null,4,{"$f":"+AC177","v":1},null,0,0,0,null,0,0]
[null,null,null,null,null,null,null,null,null,null,null,null,null,null,null,null,null,null,null,null,null,null,null,null,null,null,null,4,{"$f":"+AC178","v":1},null,0,0,0,null,0,0]
[null,null,null,null,null,null,null,null,null,null,null,null,null,null,null,null,null,null,null,null,null,null,null,null,null,null,null,1,1,null,0,0,0,null,0,0]
[null," 5.5.2.2 ＣｉＰ管理基準の明確化",null,null,null,null,null,null,null,null,null,null,null,null,null,null,null,null,null,null,null,null,null,null,null,null,null,1,1,null,0,0,0,null,0,0]
[null,null,"組織は，製品に対応するＣｉＰ管理基準を定め，文書化した情報として維持すること。\n組織は，ＣｉＰ管理基準を明確にするとき，次の事項を含む実施事項の内容を規定すること。\na) 適用される法規制の要求事項\nb) ＣｉＰ管理に関連する利害関係者の特定，そのニーズ及び期待\nc) その他，組織が必要とみなすもの",null,null,null,null,null,null,null,null,null,null,null,null,null,null,null,null,null,null,null,null,null,null,null,null,1,1,null,0,0,0,null,0,0]
[null,{"$f":"B176+1","v":12},null,"共通管理","基準の有無確認･文書化確認","●",null,null,"以下の要件を満たすＣｉＰ管理基準があり，実施する手順を定めた文書がありますか\n(a) 対象とする化学物質がリスト化されている\n(b) 基準に管理レベルが明確に示されている\n(c) 適用される法規制，業界基準を明確にしている\n(d) 必要に応じて，または定期的に基準を見直している\n(e) 基準を関係部署に伝達している\n","＜適合判断基準＞\n適　合：要件 (a)から(e) を全て満たす\n準適合：一つ以上満たす\n不適合：全く満たさない",null,null,"ＣｉＰ管理の対象とする化学物質，管理レベルを定めた文書名を記載して下さい ",null,null,null,null,null,null,null,null,null,null,null,null,null,null,4,{"$f":"+IF(H183=\"●\",3,1)","v":1},null,"●",0,0,null,0,0]
[null,null,null,null,null,null,null,null,null,null,null,null,"(a) リスト化された文書名：\n　[\n(b) 管理レベルが記載された文書名：\n　[\n(c) 参照標準類：\n　[\n(d) 基準の見直し手順が記載された文書名：\n　[\n(e) 関係部署への伝達手順が記載された文書名：\n　[",null,null,null,null,null,null,null,null,null,null,null,null,null,null,4,{"$f":"+AC183","v":1},null,0,0,0,null,0,0]
[null,null,null,null,null,null,null,null,null,"＜回答例＞(a)，(b)\n・「ＣｉＰ管理規程」 第○○項：「ＣｉＰ管理/使用禁止物質リスト」\n＜回答例＞(c)\n・法規制，業界基準に基づいて明確にしている\n・顧客要求に基づいて明確にしている\n・IEC62474DSLに基づき設定\n・GADSLに基づき設定\n・JAMP対象物質リスト等に基づいて明確にしている\n・JIG-101，JIG-201に基づいて対応している\n＜回答例＞(d)\n「ＣｉＰ管理規程」第○○項：「基準の見直し」\n＜回答例＞(e)\n・最新版をイントラネットで公開し，改訂時に関係部署へ周知している\n※JIS Z 7201 ＣｉＰ管理(原則及び指針) の「4.3.4 内部コミュニケーション」に基づく設問\n\n＜管理の注意ポイント＞\n・製品に含有される可能性がないことを科学的根拠に基づき判断している場合は，基準に反映されてなくても良いが，その事実を明記する \n・管理レベルとは「使用禁止」や「含有管理」等の管理レベルを指す \n・受託生産時においてもＣｉＰ管理基準は管理を行う上で必要となる",null,null,null,null,null,null,null,null,null,null,null,null,null,null,null,null,null,4,{"$f":"+AC184","v":1},null,0,0,0,null,0,0]
[null,null,null,null,null,null,null,null,null,null,null,null,null,null,null,null,null,null,null,null,null,null,null,null,null,null,null,4,{"$f":"+AC185","v":1},null,0,0,0,null,0,0]
[null,null,null,null,null,null,null,null,null,null,null,null,null,null,null,null,null,null,null,null,null,null,null,null,null,null,null,1,1,null,0,0,0,null,0,0]
[null," 5.5.3 設計・開発におけるＣｉＰ管理",null,null,null,null,null,null,null,null,null,null,null,null,null,null,null,null,null,null,null,null,null,null,null,null,null,1,1,null,0,0,0,null,0,0]
[null,null,"組織は，設計・開発段階において，ＣｉＰ基準を満たす製品を実現できるように，自らの製品及び業態に応じて，購買，製造及び引渡しの各段階におけるＣｉＰに関わる管理基準を明確にし，文書化した情報として利用可能な状態にし，維持すること。",null,null,null,null,null,null,null,null,null,null,null,null,null,null,null,null,null,null,null,null,null,null,null,null,1,1,null,0,0,0,null,0,0]
[null,{"$f":"B183+1","v":13},null,"工程管理","基準の有無確認","●",null,null,"新たな製品を生産する際には量産前に下記のＣｉＰ管理基準を定めていること\n(a) 購買段階での管理基準\n(b) 製造段階での管理基準\n(c) 引渡し段階での管理基準\n\n※設計・開発段階とは，設計・開発部門の業務だけではない\n","＜適合判断基準＞\n適　合：各段階のＣｉＰ管理基準について定められている\n準適合：ＣｉＰ管理基準に不備がある\n不適合：定められていない",null,null,"製品毎 又は段階ごとに基準を定める手順を明示した文書名 を記載して下さい",null,null,null,null,null,null,null,null,null,null,null,null,null,null,4,{"$f":"+IF(H190=\"●\",3,1)","v":1},null,"●",0,0,null,0,0]
[null,null,null,null,null,null,null,null,null,null,null,null,"[\n※段階毎に手順が異なる場合は，下記に記載して下さい\n(a) 購買段階：\n［\n(b) 製造段階：\n［\n(c) 引渡し段階：\n［",null,null,null,null,null,null,null,null,null,null,null,null,null,null,4,{"$f":"+AC190","v":1},null,0,0,0,null,0,0]
[null,null,null,null,null,null,null,null,null,"＜回答例＞\n(a) 購買段階：購入品の仕様書，図面などへの要求仕様として明示\n(b) 製造段階：濃度が変化する変換反応工程のＣｉＰ管理基準が作業指導者にて制定\n(c) 引渡し段階：完成品の引渡し仕様書に保証水準を明記\n\n＜管理の注意ポイント＞\n・量産時の仕様で判定・管理すること\n・変換工程，併行生産，リサイクル材の採用がある場合は，管理基準を超える可能性があることを認識する\n・製品の構成部材を自社で選定している場合は「設計機能」を有することになる",null,null,null,null,null,null,null,null,null,null,null,null,null,null,null,null,null,4,{"$f":"+AC191","v":1},null,0,0,0,null,0,0]
[null,null,null,null,null,null,null,null,null,null,null,null,null,null,null,null,null,null,null,null,null,null,null,null,null,null,null,4,{"$f":"+AC192","v":1},null,0,0,0,null,0,0]
[null,null,null,null,null,null,null,null,null,null,null,null,null,null,null,null,null,null,null,null,null,null,null,null,null,null,null,1,1,null,0,0,0,null,0,0]
[null," 5.5.4 外部から提供される製品の管理",null,null,null,null,null,null,null,null,null,null,null,null,null,null,null,null,null,null,null,null,null,null,null,null,null,1,1,null,0,0,0,null,0,0]
[null," 5.5.4.1 ＣｉＰ情報の入手及び確認",null,null,null,null,null,null,null,null,null,null,null,null,null,null,null,null,null,null,null,null,null,null,null,null,null,1,1,null,0,0,0,null,0,0]
[null,null,"組織は，ＣｉＰ情報の入手及び確認の結果に対する処置をあらかじめ規定した上で，購買におけるＣｉＰに関わる管理基準を供給者に提示し，ＣｉＰ情報を入手すること。組織は，入手したＣｉＰ情報が，購買におけるＣｉＰに関わる管理基準を満たしていることを確認し，その結果を文書化した情報として保持すること。\n購買におけるＣｉＰに関わる管理基準に沿ったＣｉＰ情報の入手及び確認は，製造開始前までに完了すること。",null,null,null,null,null,null,null,null,null,null,null,null,null,null,null,null,null,null,null,null,null,null,null,null,1,1,null,0,0,0,null,0,0]
[null,{"$f":"+B190+1","v":14},null,"工程管理","基準の有無確認","●",null,null,"(1) ＣｉＰ管理基準を定めた，化学物質及び，管理レベルを含む，購買に関する管理基準がありますか\n","＜適合判断基準＞\n適　合：管理基準が定められており，かつ，明文化されている\n不適合：管理基準はあるが，明文化されていない。または，化学物質及び，管理レベルを含む管理基準が定められていない",null,null,"(1) 購買に関する管理基準を定めた文書名または管理の概要を記載して下さい ",null,null,null,null,null,null,null,null,null,null,null,null,null,null,4,{"$f":"+IF(H198=\"●\",3,1)","v":1},null,{"$f":"+F198","v":"●"},{"$f":"+G198","v":0},{"$f":"+H198","v":0},null,{"$f":"+K198","v":0},{"$f":"+S198","v":0}]
[null,null,null,null,null,null,null,null,null,null,null,null,null,null,null,null,null,null,null,null,null,null,null,null,null,null,null,4,{"$f":"+AC198","v":1},null,0,0,0,null,0,0]
[null,null,null,null,null,null,null,null,null,"＜回答例＞\n・管理対象物質一覧(グリーン調達基準書)を作成して管理基準を定めている\n・グリーン調達化学物質調査票に管理基準も定めている\n・管理基準はRoHSの指令遵守で，全ての図面と，購買契約書に，遵守するよう記載している\n\n＜管理の注意ポイント＞\n・購買管理基準の対象には，ＣｉＰ管理が必要となる包装材，副資材，補助材料も含める",null,null,null,null,null,null,null,null,null,null,null,null,null,null,null,null,null,4,{"$f":"+AC199","v":1},null,0,0,0,null,0,0]
[null,null,null,null,null,null,null,null,null,null,null,null,null,null,null,null,null,null,null,null,null,null,null,null,null,null,null,4,{"$f":"+AC200","v":1},null,0,0,0,null,0,0]
[null,{"$f":"+B198+1","v":15},null,"工程管理","周知確認","●",null,null,"(2) 上記の「購買に関する管理基準」は供給者に対し，どのように周知していますか\n","＜適合判断基準＞\n適　合：周知の時期，及び周知の手段が定まっており，かつ，周知を供給者に行ってる\n不適合：周知の時期，または，周知の手段が定まっていない場合や，周知がされていない",null,null,"(2) 「購買に関する管理基準」の供給者への周知方法と周知時期を記載して下さい ",null,null,null,null,null,null,null,null,null,null,null,null,null,null,4,{"$f":"+IF(H202=\"●\",3,1)","v":1},null,"●",0,0,null,0,0]
[null,null,null,null,null,null,null,null,null,null,null,null,"(a) 周知方法：［\n(b) 周知時期：［",null,null,null,null,null,null,null,null,null,null,null,null,null,null,4,{"$f":"+AC202","v":1},null,0,0,0,null,0,0]
[null,null,null,null,null,null,null,null,null,"＜回答例＞\n(a) 周知方法：\n・「グリーン調達基準書」を供給者へ送付し，受領確認書を入手している \n・新しく取引を開始する前に，事前に配布し，遵守するよう要求している\n(b) 周知時期：\n・新規取引開始時と基準改訂時に行っている",null,null,null,null,null,null,null,null,null,null,null,null,null,null,null,null,null,4,{"$f":"+AC203","v":1},null,0,0,0,null,0,0]
[null,null,null,null,null,null,null,null,null,null,null,null,null,null,null,null,null,null,null,null,null,null,null,null,null,null,null,4,{"$f":"+AC204","v":1},null,0,0,0,null,0,0]
[null,{"$f":"+B202+1","v":16},null,"工程管理","実施確認","●",null,null,"(3) 製品を構成する全ての構成要素に対し，要否を確認の上，必要なＣｉＰ情報を購買先より，入手する時期・手段・部署(人)・構成要素の確認方法が明確になっていますか\n","＜適合判断基準＞\n適　合：製品を構成する全ての構成要素についてＣｉＰ情報を入手する時期・手段・部署(人)が明確になっており，かつ，入手を行ってる\n準適合：入手は行っているが，時期・手段・部署(人)のいずれかが定まっていない\n不適合：入手を行っていない",null,null,"(3) 製品を構成する全ての構成要素に対し，ＣｉＰ情報の入手していることを確認している方法を記載して下さい\n※本項が，ＣｉＰ管理上，必要でないと判断される場合には，その理由を記載して下さい",null,null,null,null,null,null,null,null,null,null,null,null,null,null,4,{"$f":"+IF(H206=\"●\",3,1)","v":1},null,"●",0,0,null,0,0]
[null,null,null,null,null,null,null,null,null,null,null,null,"(a) 入手時期：［　　　　　　　　　　　　　　　　\n(b) 入手手段：［　　　　　　　　　　　　　　\n(c) 入手部署：［　　　\n(d) 全ての構成要素の確認方法：［　　　　　　　\n　　　　　　　　　　　　　",null,null,null,null,null,null,null,null,null,null,null,null,null,null,4,{"$f":"+AC206","v":1},null,0,0,0,null,0,0]
[null,null,null,null,null,null,null,null,null,"＜回答例＞\n(a) 入手時期：依頼時の設定期限（部品毎），量産開始前（製品毎）\n(b) 入手手段：メールなどにて入手\n(c) 入手部署：製品担当技術者\n(d) 全ての構成要素の確認方法：製品のBOM（部品表）情報と調査結果を紐づけて，全ての部品，材料が調査されていることを確認している　また，BOM（部品表）に紐づかない補助材は別リストで管理をしている \n\n＜管理の注意ポイント＞\n・製品構成要素のうち調査対象外となる要素がある場合には，その理由を記載されている \n 　例：顧客から指定された部品，材料であり，調査対象外にすることを顧客と合意しているため\n・購入品（原材料/部材）の含有化学物質情報を入手する担当，手順，手段等を明確にしている",null,null,null,null,null,null,null,null,null,null,null,null,null,null,null,null,null,4,{"$f":"+AC207","v":1},null,0,0,0,null,0,0]
[null,null,null,null,null,null,null,null,null,null,null,null,null,null,null,null,null,null,null,null,null,null,null,null,null,null,null,4,{"$f":"+AC208","v":1},null,0,0,0,null,0,0]
[null,{"$f":"+B206+1","v":17},null,"工程管理","実施確認",null,"●",null,"(4)上記 (3) で入手すべきＣｉＰ情報の報告内容（含有有無，含有量，濃度，使用用途等）を，どのようなフォーマットで入手するか定められていますか\n","＜適合判断基準＞\n適　合：供給者より入手するフォーマットが明確になっている\n不適合：供給者より入手するフォーマットが明確になっていない",null,null,"(4)調査フォーマットの名称を記載して下さい \n※購入部材の種類毎に調査フォーマットが異なる場合は，購入部材の種類別に記載して下さい ",null,null,null,null,null,null,null,null,null,null,null,null,null,2,4,{"$f":"+IF(H210=\"●\",3,1)","v":1},null,0,"●",0,null,0,0]
[null,null,null,null,null,null,null,null,null,null,null,null,"フォーマット名：［",null,null,null,null,null,null,null,null,null,null,null,null,null,2,4,{"$f":"+AC210","v":1},null,0,0,0,null,0,0]
[null,null,null,null,null,null,null,null,null,"＜回答例＞\n・chemSHERPA\n・JAMA/JAPIAシート\n・不使用証明書/成分表\n\n＜管理の注意ポイント＞\n・管理基準に対する適合・不適合が判断できる情報を入手しているかを確認する事",null,null,null,null,null,null,null,null,null,null,null,null,null,null,null,null,2,4,{"$f":"+AC211","v":1},null,0,0,0,null,0,0]
[null,null,null,null,null,null,null,null,null,null,null,null,null,null,null,null,null,null,null,null,null,null,null,null,null,null,2,4,{"$f":"+AC212","v":1},null,0,0,0,null,0,0]
[null,{"$f":"+B210+1","v":18},null,"工程管理","実施確認","●",null,null,"(5) 上記 (3) で入手したＣｉＰ情報について，購買製品毎に管理基準の適合状況を，いつ，どのような方法でどの部署(人)が判定しているか明確になっていますか\n","＜適合判断基準＞\n適　合：製造開始前までに情報を判定する事が明文化されており，判定の方法及び部署(人)が明確になっており，かつ，判定を行って記録している\n不適合：判定の方法及び部署(人)が定まっていない場合や，判定を行っていない  ",null,null,"(5）購買製品ごとに管理基準の適合状況の判定方法と記録方法を記載して下さい ",null,null,null,null,null,null,null,null,null,null,null,null,null,null,4,{"$f":"+IF(H214=\"●\",3,1)","v":1},null,"●",0,0,null,0,0]
[null,null,null,null,null,null,null,null,null,null,null,null,"(a) 判定手順を規定している文書：［\n(b) 判定方法：［\n(c) 判定部署：［\n(d) 判定時期：［\n(e) 判定記録：［\n",null,null,null,null,null,null,null,null,null,null,null,null,null,null,4,{"$f":"+AC214","v":1},null,0,0,0,null,0,0]
[null,null,null,null,null,null,null,null,null,"＜回答例＞\n(a) 判定手順を規定している文書：部材の含有化学物質調査規定\n(b) 判定方法：部品ごと：社内基準との整合性確認，製品毎：構成部品が社内基準に適合していることを確認\n(c) 判定部署：製品環境担当\n(d) 判定時期：引渡し前まで\n(e) 判定記録：部品ごと　：　社内システム(部品判定）　製品毎　：社内システム（製品判定）\n",null,null,null,null,null,null,null,null,null,null,null,null,null,null,null,null,null,4,{"$f":"+AC215","v":1},null,0,0,0,null,0,0]
[null,null,null,null,null,null,null,null,null,null,null,null,null,null,null,null,null,null,null,null,null,null,null,null,null,null,null,4,{"$f":"+AC216","v":1},null,0,0,0,null,0,0]
[null,{"$f":"+B214+1","v":19},null,"工程管理","実施確認","●",null,null,"(6) 上記 (3) で情報を入手できなかった場合，または，判定の結果，購買管理基準を満たさなかった場合の対応を明確にしていますか　\n","＜適合判断基準＞\n適　合：情報の入手が出来なかった場合または，(最終的に)管理基準が満たせない場合の処置について明文化されている\n不適合：情報の入手が出来なかった場合の処置や，(最終的に)管理基準が満たせない場合の処置が明文化されていない",null,null,"(6) 入手した情報を判定する時期を記載して下さい。情報を入手できなかった場合，または購買管理基準を満たさなかった場合の対応方法を記載して下さい。また，それらを規定した文書を記載して下さい",null,null,null,null,null,null,null,null,null,null,null,null,null,null,4,{"$f":"+IF(H218=\"●\",3,1)","v":1},null,"●",0,0,null,0,0]
[null,null,null,null,null,null,null,null,null,null,null,null,"(a) 判定時期：[\n(b) 判定時期が規定されている文書：[\n(c) 情報を入手できない場合，または管理基準を満たせない場合の対応：\n[\n(d) 対応方法を規定した文書：[",null,null,null,null,null,null,null,null,null,null,null,null,null,null,4,{"$f":"+AC218","v":1},null,0,0,0,null,0,0]
[null,null,null,null,null,null,null,null,null,"＜回答例＞\n(a) 判定時期：生産開始前\n(b) 判定時期が規定されている文書：ＣｉＰ管理基準\n(c) 情報を入手できない場合，または管理基準を満たせない場合の対応：採用不可とする。ただし，未入手時に技術知見により基準を満たしたものと判断する場合はそのエビデンスにて補完可とする\n(d) 対応方法を規定した文書：ＣｉＰ管理規定\n\n＜管理の注意ポイント＞\n・管理基準に適合しない場合に「購入しない」等の対応が定められている",null,null,null,null,null,null,null,null,null,null,null,null,null,null,null,null,null,4,{"$f":"+AC219","v":1},null,0,0,0,null,0,0]
[null,null,null,null,null,null,null,null,null,null,null,null,null,null,null,null,null,null,null,null,null,null,null,null,null,null,null,4,{"$f":"+AC220","v":1},null,0,0,0,null,0,0]
[null,{"$f":"+B218+1","v":20},null,"工程管理","実施確認",null,"●",null,"(7) 自社製品のＣｉＰ情報毎に適合状況を判定していますか\n","＜適合判断基準＞\n適　合：全ての製品において，ＣｉＰ情報の集計を行っており，かつ，製品の適合状況の判定を行った記録がある\n準適合：ＣｉＰ情報について集計・判定を行っているが，判定を行った記録が一部で見当たらない\n不適合：製品に対する適合状況の判定を行った記録がない。また，製造開始前に判定が行われてない",null,null,"(7) ＣｉＰ情報を集計した記録と判定を行った記録及び，承認担当を記載して下さい ",null,null,null,null,null,null,null,null,null,null,null,null,null,2,4,{"$f":"+IF(H222=\"●\",3,1)","v":1},null,0,"●",0,null,0,0]
[null,null,null,null,null,null,null,null,null,null,null,null,"(a) 集計記録：［\n(b) 判定記録：［\n(c) 承認担当：［",null,null,null,null,null,null,null,null,null,null,null,null,null,2,4,{"$f":"+AC222","v":1},null,0,0,0,null,0,0]
[null,null,null,null,null,null,null,null,null,"＜回答例＞\n(a) 集計記録：ＣｉＰ情報集計結果書/化学物質情報管理システム製品集計管理画面\n(b) 判定記録：ＣｉＰ情報集計結果書/化学物質情報管理システム製品集計管理画面\n(c) 承認担当：品質管理部署長\n\n＜管理の注意ポイント＞\n・完成品ごとの集計とは「ＣｉＰ管理基準」に規定される含有管理等の基準に対し集計を行うことをいう\n・適合状況の判定とは「ＣｉＰ管理基準」に規定される使用禁止等の基準に対する適合状況の判定を行うことをいう ",null,null,null,null,null,null,null,null,null,null,null,null,null,null,null,null,2,4,{"$f":"+AC223","v":1},null,0,0,0,null,0,0]
[null,null,null,null,null,null,null,null,null,null,null,null,null,null,null,null,null,null,null,null,null,null,null,null,null,null,2,4,{"$f":"+AC224","v":1},null,0,0,0,null,0,0]
[null,null,null,null,null,null,null,null,null,null,null,null,null,null,null,null,null,null,null,null,null,null,null,null,null,null,null,1,1,null,0,0,0,null,0,0]
[null," 5.5.4.2 供給者におけるＣｉＰの管理状況の確認",null,null,null,null,null,null,null,null,null,null,null,null,null,null,null,null,null,null,null,null,null,null,null,null,null,1,1,null,0,0,0,null,0,0]
[null,null,"組織は，供給者におけるＣｉＰの管理状況の確認結果に対する処置をあらかじめ規定し，供給者を選定する際に，そのＣｉＰの管理状況を確認し，結果を文書化した情報として保持すること。\n組織は，購買を継続する場合においても，ＣｉＰ管理基準を満たすために，必要に応じて供給者のＣｉＰ管理の状況を再確認し，文書化した情報として保持すること。",null,null,null,null,null,null,null,null,null,null,null,null,null,null,null,null,null,null,null,null,null,null,null,null,1,1,null,0,0,0,null,0,0]
[null,{"$f":"+B222+1","v":21},null,"工程管理","実施確認","●",null,null,"(1) 供給者に対し，ＣｉＰ管理基準を満たすために，ＣｉＰ管理の仕組みの構築と運用を要求していますか\n","<適合判断基準＞\n適　合：供給者に対しＣｉＰ管理基準を満たすためにＣｉＰ管理の仕組の構築と運用を要求している文書がある\n準適合：供給者に対しＣｉＰ管理基準を満たすためにＣｉＰ管理の仕組の構築と運用を要求している文書はあるが，要求内容に不備がある\n不適合：要求文書がない",null,null,"(1) CiP管理について供給者に要求する文書名を記載してください",null,null,null,null,null,null,null,null,null,null,null,null,null,null,4,{"$f":"+IF(H229=\"●\",3,1)","v":1},null,"●",0,0,null,0,0]
[null,null,null,null,null,null,null,null,null,null,null,null,null,null,null,null,null,null,null,null,null,null,null,null,null,null,null,4,{"$f":"+AC229","v":1},null,0,0,0,null,0,0]
[null,null,null,null,null,null,null,null,null,"＜回答例＞\n・「ＣｉＰ管理ガイドライン」に基づく仕組みの構築と運用を要求\n\n＜管理の注意ポイント＞　\n・ＣｉＰの管理基準を満たすための，ＣｉＰ管理の仕組みとは，製品に含有される化学物質を購入・製造・販売の各段階において適切に管理するための仕組みを指す \n例：「ＣｉＰ管理ガイドライン（第4.0版）」5.5.4.2の注記(1)のうち，主な要求内容として次の項目がある \n　A.管理基準の明確化\n　B.ＣｉＰ情報入手・確認\n　C.供給者の管理状況の確認\n　D.受入確認\n　E.誤使用，混入，汚染防止\n　F.変換工程の適切な管理\n　G.トレーサビリティ\n　H.変更管理　\n　I.不適合時の対応　\n\n・対象外になっている場合はその理由と対応を明確にする\n・複数社購買の場合も対象に含める ",null,null,null,null,null,null,null,null,null,null,null,null,null,null,null,null,null,4,{"$f":"+AC230","v":1},null,0,0,0,null,0,0]
[null,null,null,null,null,null,null,null,null,null,null,null,null,null,null,null,null,null,null,null,null,null,null,null,null,null,null,4,{"$f":"+AC231","v":1},null,0,0,0,null,0,0]
[null,{"$f":"+B229+1","v":22},null,"工程管理","実施確認","●",null,null,"(2) 新規に供給者を選定する場合，供給者に対しＣｉＰ管理の状況を確認していますか\n","<適合判断基準＞\n適　合：供給者を選定する際にCｉP管理の状況確認を行う仕組みがあり実施している。仕組みには確認内容(基準)，確認の方法(手順)が定められていること\n準適合：仕組みがあり実施しているが，確認内容(基準），確認の方法(手順）のいずれかに不備がある\n不適合：仕組み（確認内容，確認方法）がない",null,null,"(2) 新規に供給者を選定する場合の確認内容，方法を記載して下さい ",null,null,null,null,null,null,null,null,null,null,null,null,null,null,4,{"$f":"+IF(H233=\"●\",3,1)","v":1},null,"●",0,0,null,0,0]
[null,null,null,null,null,null,null,null,null,null,null,null,"(a) 確認内容，項目：［\n(b) 確認方法：［",null,null,null,null,null,null,null,null,null,null,null,null,null,null,4,{"$f":"+AC233","v":1},null,0,0,0,null,0,0]
[null,null,null,null,null,null,null,null,null,"＜回答例＞\n(a) 確認内容，項目\n・ＣｉＰ管理ガイドライン第4.0版のチェックシート\n・その他のチェックシート\n・使用禁止物質を含有しない仕組みの確認\n(b) 確認方法\n・上記のツール等の内容を，メールや紙媒体で確認している\n・必要に応じて，上記のツール等の内容を現地にて確認している\n・ウェブサイト等の管理状況を示す公開情報で確認している\n\n<管理の注意ポイント>\n・複数社購買（マルチソース）の場合も各供給者を対象に含めていること",null,null,null,null,null,null,null,null,null,null,null,null,null,null,null,null,null,4,{"$f":"+AC234","v":1},null,0,0,0,null,0,0]
[null,null,null,null,null,null,null,null,null,null,null,null,null,null,null,null,null,null,null,null,null,null,null,null,null,null,null,4,{"$f":"+AC235","v":1},null,0,0,0,null,0,0]
[null,{"$f":"+B233+1","v":23},null,"工程管理","実施確認","●",null,null,"(3) 取り引きを継続する場合，必要に応じて定期的にＣｉＰ管理の状況を再確認していますか\n","<適合判断基準＞\n適　合：取引を継続する際にも定期的にＣｉＰ管理を行う仕組みがあり実施されている。仕組みには管理の対象，確認の頻度，確認内容(基準)，確認の方法(手順)が定められていること\n準適合：管理の対象，確認の頻度，確認内容(基準)，確認の方法(手順)のいずれかに不備がある\n不適合：仕組み（確認内容，確認方法）がない",null,null,"(3) 再確認の方法を，下記観点で記載して下さい",null,null,null,null,null,null,null,null,null,null,null,null,null,null,4,{"$f":"+IF(H237=\"●\",3,1)","v":1},null,"●",0,0,null,0,0]
[null,null,null,null,null,null,null,null,null,null,null,null,"(a) 確認対象：［\n(b) 確認内容，項目：［\n(c) 確認方法：［\n(d) 確認頻度：［",null,null,null,null,null,null,null,null,null,null,null,null,null,null,4,{"$f":"+AC237","v":1},null,0,0,0,null,0,0]
[null,null,null,null,null,null,null,null,null,"＜回答例（確認対象）＞\n(a) 確認対象\n・全ての供給者を対象としている\n・必要と判断した供給者のみ対象としている\n(b) 確認内容，項目\n・ＣｉＰ管理ガイドライン第4.0版のチェックシート\n・その他のチェックシート\n・使用禁止物質を含有しない仕組みの確認\n(c) 確認方法\n・上記のツール等の内容を，メールや紙媒体で確認している\n・必要に応じて，上記のツール等の内容を現地にて確認している\n・ウェブサイト等の管理状況を示す公開情報で確認している\n(d) 確認頻度\n・年1回",null,null,null,null,null,null,null,null,null,null,null,null,null,null,null,null,null,4,{"$f":"+AC238","v":1},null,0,0,0,null,0,0]
[null,null,null,null,null,null,null,null,null,null,null,null,null,null,null,null,null,null,null,null,null,null,null,null,null,null,null,4,{"$f":"+AC239","v":1},null,0,0,0,null,0,0]
[null,{"$f":"+B237+1","v":24},null,"工程管理","記録確認","●",null,null,"(4) 上記 (2)，(3) について，供給者に対するＣｉＰ管理の状況の確認結果を記録していますか \n","<適合判断基準＞\n適　合：上記 (2)，(3) の記録が管理されている\n準適合：記録　または記録の管理に不備がある\n不適合：記録が無い",null,null,"(4) 供給者を評価した記録名を記載して下さい ",null,null,null,null,null,null,null,null,null,null,null,null,null,null,4,{"$f":"+IF(H241=\"●\",3,1)","v":1},null,"●",0,0,null,0,0]
[null,null,null,null,null,null,null,null,null,null,null,null,null,null,null,null,null,null,null,null,null,null,null,null,null,null,null,4,{"$f":"+AC241","v":1},null,0,0,0,null,0,0]
[null,null,null,null,null,null,null,null,null,"＜回答例＞\n・合否判定記録\n・供給者評価結果一覧",null,null,null,null,null,null,null,null,null,null,null,null,null,null,null,null,null,4,{"$f":"+AC242","v":1},null,0,0,0,null,0,0]
[null,null,null,null,null,null,null,null,null,null,null,null,null,null,null,null,null,null,null,null,null,null,null,null,null,null,null,4,{"$f":"+AC243","v":1},null,0,0,0,null,0,0]
[null,{"$f":"+B241+1","v":25},null,"工程管理","実施確認","●",null,null,"(5) 上記 (2)，(3) についてＣｉＰ管理の状況の確認が未完了，または確認した内容，結果に問題がある場合の処置を定めていますか\n","＜適合判断基準＞\n適　合：対象となる事象に対する処置内容が定められている\n不適合：処置内容が決められていない",null,null,"(5) 管理状況の確認が未完了，または確認した内容，結果に問題がある場合の処置方法を記載して下さい ",null,null,null,null,null,null,null,null,null,null,null,null,null,null,4,{"$f":"+IF(H245=\"●\",3,1)","v":1},null,"●",0,0,null,0,0]
[null,null,null,null,null,null,null,null,null,null,null,null,null,null,null,null,null,null,null,null,null,null,null,null,null,null,null,4,{"$f":"+AC245","v":1},null,0,0,0,null,0,0]
[null,null,null,null,null,null,null,null,null,"＜回答例＞\n・供給者に対し，改善要請，改善指導，または取引停止の処置を行う\n・供給者に対し，改善指導を行うとともに，改善が完了するまではロットごとの分析を行い購入製品に問題が無いことを確認する",null,null,null,null,null,null,null,null,null,null,null,null,null,null,null,null,null,4,{"$f":"+AC246","v":1},null,0,0,0,null,0,0]
[null,null,null,null,null,null,null,null,null,null,null,null,null,null,null,null,null,null,null,null,null,null,null,null,null,null,null,4,{"$f":"+AC247","v":1},null,0,0,0,null,0,0]
[null,{"$f":"+B245+1","v":26},null,"工程管理","実施確認",null,"●",null,"(6) 供給者(一次供給者)は購買する製品の供給者(二次供給者)がＣｉＰ管理の仕組みを構築し，運用していることを確認していますか\n","＜適合判断基準＞\n適　合：供給者(一次供給者)に対し，さらに購買品の供給者(二次供給者)にCｉP管理の仕組みを構築し運用することを要求している文書があり，運用している\n準適合：要求文書のみで確認できていない\n不適合：要求していない",null,null,"(6) どのように確認しているかを記載して下さい ",null,null,null,null,null,null,null,null,null,null,null,null,null,2,4,{"$f":"+IF(H249=\"●\",3,1)","v":1},null,0,"●",0,null,0,0]
[null,null,null,null,null,null,null,null,null,null,null,null,null,null,null,null,null,null,null,null,null,null,null,null,null,null,2,4,{"$f":"+AC249","v":1},null,0,0,0,null,0,0]
[null,null,null,null,null,null,null,null,null,"＜回答例＞\n・一次取引先が使用している評価チェック項目を確認し，ＣｉＰ管理の必要な項目が含まれていることを確認している\n\n＜管理の注意ポイント＞\n・確認内容は，供給者に対する要求内容(上記(1)の管理の注意ポイント参照)内容と同等であり，要求内容に当項目を含める旨記述があれば効果的である\n",null,null,null,null,null,null,null,null,null,null,null,null,null,null,null,null,2,4,{"$f":"+AC250","v":1},null,0,0,0,null,0,0]
[null,null,null,null,null,null,null,null,null,null,null,null,null,null,null,null,null,null,null,null,null,null,null,null,null,null,2,4,{"$f":"+AC251","v":1},null,0,0,0,null,0,0]
[null,{"$f":"+B249+1","v":27},null,"工程管理","実施確認",null,"●",null,"(7) 新規採用時と継続採用時の評価において，供給者がＣｉＰ管理基準で定める使用禁止物質の汚染の恐れのある工程・材料の有無について把握していることを確認していますか \n","＜適合判断基準＞\n適　合：変換工程，併行生産について適切に管理基準が定められて，管理基準に基づきもれなく把握していることを確認している\n準適合：管理基準，または確認のいずれかに不備がある\n不適合：変換工程，併行生産についての管理基準が定められていない，もしくは，確認を行った記録がない",null,null,"(7) 供給者がＣｉＰ管理基準で定める使用禁止物質の汚染の恐れのある工程・材料の有無について把握するために確認している内容を記載して下さい ",null,null,null,null,null,null,null,null,null,null,null,null,null,2,4,{"$f":"+IF(H253=\"●\",3,1)","v":1},null,0,"●",0,null,0,0]
[null,null,null,null,null,null,null,null,null,null,null,null,null,null,null,null,null,null,null,null,null,null,null,null,null,null,2,4,{"$f":"+AC253","v":1},null,0,0,0,null,0,0]
[null,null,null,null,null,null,null,null,null,"＜回答例＞\n・以下の内容について確認している\n1) 使用禁止物質の汚染の恐れがある併行生産工程の有無\n2) 使用禁止物質の汚染の恐れがあるはんだ槽の有無",null,null,null,null,null,null,null,null,null,null,null,null,null,null,null,null,2,4,{"$f":"+AC254","v":1},null,0,0,0,null,0,0]
[null,null,null,null,null,null,null,null,null,null,null,null,null,null,null,null,null,null,null,null,null,null,null,null,null,null,2,4,{"$f":"+AC255","v":1},null,0,0,0,null,0,0]
[null,{"$f":"+B253+1","v":28},null,"工程管理","実施確認",null,"●",null,"(8) 上記 (7) の確認結果，供給者においてＣｉＰ管理基準で定める使用禁止物質の汚染の恐れがある場合，混入・汚染防止の適切な管理ができていることを確認していますか \n","＜適合判断基準＞\n適　合：供給者の変換工程，併行生産などの適切性を判断する管理基準を定められており，それに基づき実施されている\n　※管理対象及び適切性については，業種，対象工程，材料などから要否を含め個別に判断すること\n不適合：供給者への管理基準が定められていない。もしくは，確認を行った記録がない",null,null,"(8) 適切と判断している誤使用・汚染防止の管理方法の例を記載して下さい ",null,null,null,null,null,null,null,null,null,null,null,null,null,2,4,{"$f":"+IF(H257=\"●\",3,1)","v":1},null,0,"●",0,null,0,0]
[null,null,null,null,null,null,null,null,null,null,null,null,null,null,null,null,null,null,null,null,null,null,null,null,null,null,2,4,{"$f":"+AC257","v":1},null,0,0,0,null,0,0]
[null,null,null,null,null,null,null,null,null,"＜回答例＞\n・使用禁止物質の汚染の恐れがある併行生産をしている場合の管理方法の例\n　　使用禁止物質を含む製品保管棚の区分，製品包装区分（ラベルなど）をしている \n　　使用禁止物質を含む部材の隔離をしている \n　　使用禁止物質含有部材は定められた担当者のみが取り扱う管理をしている \n　　使用禁止物質含有部材を使用した洗浄困難な設備・治工具・容器で使用禁止物質非含有部材を使用した製品を生産していないことを確認している \n　　使用禁止物質含有部材を使用した洗浄可能な設備・治工具・容器などの汚染防止のための洗浄基準を定め，実施している \n\n・リサイクル材を使用している場合の管理方法の例\n　　受入時にロットごとの分析を実施している\n\n・はんだ槽を持っている場合の管理方法の例；\n　　はんだ槽の定期分析",null,null,null,null,null,null,null,null,null,null,null,null,null,null,null,null,2,4,{"$f":"+AC258","v":1},null,0,0,0,null,0,0]
[null,null,null,null,null,null,null,null,null,null,null,null,null,null,null,null,null,null,null,null,null,null,null,null,null,null,2,4,{"$f":"+AC259","v":1},null,0,0,0,null,0,0]
[null,{"$f":"+B257+1","v":29},null,"工程管理","実施確認",null,"●",null,"(9) 上記 (8) の結果，供給者における管理が確認できない場合，自ら「購買製品が購買に関する管理基準を満たすこと」を適切なエビデンスに基づいて確認・管理していますか \n","＜適合判断基準＞\n適　合：管理の確認出来ない供給者から購入する部材を確認する基準があり，適切に運用されている\n　※適切性については，業種，対象工程，材料などから実施の要否，エビデンス内容，頻度などを個別に判断すること\n不適合：確認する仕組みがない。もしくは，仕組みに基づいた記録がない",null,null,"(9) 供給者における管理が不十分な場合，組織自らが実施しているエビデンスに基づいた検証・管理方法を記載して下さい",null,null,null,null,null,null,null,null,null,null,null,null,null,2,4,{"$f":"+IF(H261=\"●\",3,1)","v":1},null,0,"●",0,null,0,0]
[null,null,null,null,null,null,null,null,null,null,null,null,null,null,null,null,null,null,null,null,null,null,null,null,null,null,2,4,{"$f":"+AC261","v":1},null,{"$f":"+F262","v":0},{"$f":"+G262","v":0},{"$f":"+H262","v":0},null,{"$f":"+K262","v":0},{"$f":"+S262","v":0}]
[null,null,null,null,null,null,null,null,null,"＜回答例＞\n・併行生産，リサイクル材(プレコンシューマ材/ポストコンシューマ材(オープン／クローズド))，はんだ槽の濃度変化など使用禁止物質の汚染の恐れがあり，供給者における管理が不十分な場合は適切に指導している\n・分析データを入手し，使用禁止物質の混入がないことを確認\n\n<管理の注意ポイント>\n適切なエビデンスとは以下の例のような内容である \n　・供給者から初期出荷時の分析データを入手，確認と製品ロットごと等の定期的な受入分析\n　・最終製品の定期的な分析\n　・購買製品が材料の場合，材料メーカーの発行した材料証明書の入手",null,null,null,null,null,null,null,null,null,null,null,null,null,null,null,null,2,4,{"$f":"+AC262","v":1},null,0,0,0,null,0,0]
[null,null,null,null,null,null,null,null,null,null,null,null,null,null,null,null,null,null,null,null,null,null,null,null,null,null,2,4,{"$f":"+AC263","v":1},null,0,0,0,null,0,0]
[null,{"$f":"+B261+1","v":30},null,"工程管理","文書化確認",null,"●",null,"(10) 上記 (1)～(9) を実施する手順を定めた文書がありますか \n","＜適合判断基準＞\n適　合：(1)～(9) を実施する全ての手順が文書化されている\n　※適切性の判断から実施不要と判断されるものは自己評価結果の欄を対象外としてもよい\n不適合：(1)～(9) において，１つでも不適合がある場合",null,null,"(10) 供給者評価を実施する手順を定めた文書名，文書NO，項目名，訂番を記載して下さい ",null,null,null,null,null,null,null,null,null,null,null,null,null,2,4,{"$f":"+IF(H265=\"●\",3,1)","v":1},null,0,"●",0,null,0,0]
[null,null,null,null,null,null,null,null,null,null,null,null,null,null,null,null,null,null,null,null,null,null,null,null,null,null,2,4,{"$f":"+AC265","v":1},null,0,0,0,null,0,0]
[null,null,null,null,null,null,null,null,null,"＜回答例＞\n ・「供給者管理規程（文書NO.XXXX　訂01）」 第○○項：要求内容，第○○項：評価の更新，第○○項：評価未実施の対応",null,null,null,null,null,null,null,null,null,null,null,null,null,null,null,null,2,4,{"$f":"+AC266","v":1},null,0,0,0,null,0,0]
[null,null,null,null,null,null,null,null,null,null,null,null,null,null,null,null,null,null,null,null,null,null,null,null,null,null,2,4,{"$f":"+AC267","v":1},null,0,0,0,null,0,0]
[null,null,null,null,null,null,null,null,null,null,null,null,null,null,null,null,null,null,null,null,null,null,null,null,null,null,null,1,1,null,0,0,0,null,0,0]
[null," 5.5.4.3 受入れ時におけるＣｉＰ管理",null,null,null,null,null,null,null,null,null,null,null,null,null,null,null,null,null,null,null,null,null,null,null,null,null,1,1,null,0,0,0,null,0,0]
[null,null,"組織は，受入れ時における購買製品の確認結果に対する処置をあらかじめ規定し，受入れ時に，購買製品が組織の購買におけるＣｉＰに関わる管理基準を満たしていることを確認し，その結果を文書化した情報として保持すること。",null,null,null,null,null,null,null,null,null,null,null,null,null,null,null,null,null,null,null,null,null,null,null,null,1,1,null,0,0,0,null,0,0]
[null,{"$f":"+B265+1","v":31},null,"工程管理","実施確認","●",null,null,"(1) 受入時に購買製品が購買管理基準を満たしていることを確認していますか\n","＜適合判断基準＞\n適　合：全ての購買製品に対し基準を満たしていることを確認していること\n準適合：確認に漏れがある\n不適合：確認を行っていない",null,null,"(1) 具体的な確認方法を記載して下さい ",null,null,null,null,null,null,null,null,null,null,null,null,null,null,4,{"$f":"+IF(H272=\"●\",3,1)","v":1},null,"●",0,0,null,0,0]
[null,null,null,null,null,null,null,null,null,null,null,null,null,null,null,null,null,null,null,null,null,null,null,null,null,null,null,4,{"$f":"+AC272","v":1},null,0,0,0,null,0,0]
[null,null,null,null,null,null,null,null,null,"＜回答例＞\n・購買製品が購買管理基準を満たしていることを発注前に確認済であるため，型名，型番等で発注品との照合をしている \n\n＜管理の注意ポイント＞\n・受け入れ確認の対象には生産委託品も含める\n・確認対象，基準，方法，頻度はリスクのレベルに応じた方法を選択しても良い \n・管理基準に適合した部品・材料のみ発注する仕組みがあり，受け入れ時に発注NO，型名等の照合をしていることでも良い\n・ＣｉＰ管理上のリスクがある場合，製品の梱包材などの副資材も適用範囲にある場合もあり，注意が必要",null,null,null,null,null,null,null,null,null,null,null,null,null,null,null,null,null,4,{"$f":"+AC273","v":1},null,0,0,0,null,0,0]
[null,null,null,null,null,null,null,null,null,null,null,null,null,null,null,null,null,null,null,null,null,null,null,null,null,null,null,4,{"$f":"+AC274","v":1},null,0,0,0,null,0,0]
[null,{"$f":"+B272+1","v":32},null,"工程管理","記録確認","●",null,null,"(2) 上記 (1) の結果を記録していますか \n","＜適合判断基準＞\n適　合：受入検査の結果の記録があること\n準適合：記録に不備がある場合\n不適合：記録の仕組みがない場合",null,null,"(2) 受け入れ確認した記録名を記載して下さい ",null,null,null,null,null,null,null,null,null,null,null,null,null,null,4,{"$f":"+IF(H276=\"●\",3,1)","v":1},null,"●",0,0,null,0,0]
[null,null,null,null,null,null,null,null,null,null,null,null,null,null,null,null,null,null,null,null,null,null,null,null,null,null,null,4,{"$f":"+AC276","v":1},null,0,0,0,null,0,0]
[null,null,null,null,null,null,null,null,null,"＜回答例＞\n・受入検査成績票，測定記録\n\n＜管理の注意ポイント＞\n・購入実績がない場合は，手順の文書化が出来ており，記録の書式が決められていれば適合として可能",null,null,null,null,null,null,null,null,null,null,null,null,null,null,null,null,null,4,{"$f":"+AC277","v":1},null,0,0,0,null,0,0]
[null,null,null,null,null,null,null,null,null,null,null,null,null,null,null,null,null,null,null,null,null,null,null,null,null,null,null,4,{"$f":"+AC278","v":1},null,0,0,0,null,0,0]
[null,null,null,null,null,null,null,null,null,null,null,null,null,null,null,null,null,null,null,null,null,null,null,null,null,null,null,1,1,null,0,0,0,null,0,0]
[null," 5.5.4.4 外部委託先におけるＣｉＰの管理状況の確認",null,null,null,null,null,null,null,null,null,null,null,null,null,null,null,null,null,null,null,null,null,null,null,null,null,1,1,null,0,0,0,null,0,0]
[null,null,"組織は，製品の設計・開発，製造などのプロセスを他の組織へ委託する場合，ＣｉＰ管理基準を遵守できるように外部委託先のＣｉＰの管理状況を確認し，その結果を文書化した情報として保持すること。組織は，確認の結果に対する処置をあらかじめ規定しておくこと。",null,null,null,null,null,null,null,null,null,null,null,null,null,null,null,null,null,null,null,null,null,null,null,null,1,1,null,0,0,0,null,0,0]
[null,{"$f":"+B276+1","v":33},null,"工程管理","実施確認","●",null,null,"(1) ＣｉＰ管理に関する管理項目/管理内容を外部委託先に文書等で伝達していますか\n","＜適合判断基準＞\n適　合：ＣｉＰ管理に関する管理項目/管理内容が文書等で伝達されている\n準適合：伝達する文書等の内容に洩れ等の不備がある\n不適合：文書等で伝達されていない",null,null,"(1) ＣｉＰ管理に関する管理方法を外部委託先に伝達した文書名等を記載して下さい ",null,null,null,null,null,null,null,null,null,null,null,null,null,null,4,{"$f":"+IF(H283=\"●\",3,1)","v":1},null,"●",0,0,null,0,0]
[null,null,null,null,null,null,null,null,null,null,null,null,null,null,null,null,null,null,null,null,null,null,null,null,null,null,null,4,{"$f":"+AC283","v":1},null,0,0,0,null,0,0]
[null,null,null,null,null,null,null,null,null,"＜回答例＞\n・生産委託契約書\n・仕様書\n・ＣｉＰ管理基準\n\n＜管理の注意ポイント＞\n・外部委託先には，委託する業務内容に応じて，必要なＣｉＰ管理上の管理項目/管理内容を伝達する\n・部品材料の調達を委託している場合は，責任と権限を明確にする ",null,null,null,null,null,null,null,null,null,null,null,null,null,null,null,null,null,4,{"$f":"+AC284","v":1},null,0,0,0,null,0,0]
[null,null,null,null,null,null,null,null,null,null,null,null,null,null,null,null,null,null,null,null,null,null,null,null,null,null,null,4,{"$f":"+AC285","v":1},null,0,0,0,null,0,0]
[null,{"$f":"+B283+1","v":34},null,"工程管理","実施確認","●",null,null,"(2) 上記 (1) で伝達した内容の実施状況を確認していますか\n","＜適合判断基準＞ \n適　合：ＣｉＰ管理に関する管理項目/管理内容の実施状況を確認し記録している\n準適合：確認内容に洩れ，不備がある                                                                                                        　　　　　　　　　　　　　　　　　　　　　　　　                                        \n不適合：確認していない",null,null,"(2)確認内容と確認頻度を記載して下さい ",null,null,null,null,null,null,null,null,null,null,null,null,null,null,4,{"$f":"+IF(H287=\"●\",3,1)","v":1},null,"●",0,0,null,0,0]
[null,null,null,null,null,null,null,null,null,null,null,null,null,null,null,null,null,null,null,null,null,null,null,null,null,null,null,4,{"$f":"+AC287","v":1},null,0,0,0,null,0,0]
[null,null,null,null,null,null,null,null,null,"＜回答例（確認内容）＞\n・ＣｉＰ管理ガイドライン第4.0版のチェックシート\n・指定した部品，材料を指定した正規代理店で購入し，指定した工程条件（生産工程，手直し工程，検査工程条件）で生産している \n\n＜回答例（確認頻度）＞\n・１回/2年以上の頻度\n※但し，外部委託先のリスクに応じて確認の頻度を上げている",null,null,null,null,null,null,null,null,null,null,null,null,null,null,null,null,null,4,{"$f":"+AC288","v":1},null,0,0,0,null,0,0]
[null,null,null,null,null,null,null,null,null,null,null,null,null,null,null,null,null,null,null,null,null,null,null,null,null,null,null,4,{"$f":"+AC289","v":1},null,0,0,0,null,0,0]
[null,{"$f":"B287+1","v":35},null,"工程管理","文書化確認",null,"●",null,"(3) 上記 (1)～(2) を実施する手順を定めた文書がありますか\n","＜適合判断基準＞\n適　合：ＣｉＰ管理に関する管理項目/管理内容を文書化し管理されている\n準適合：文書化された内容に洩れ，不備等がある                                                                                                                        　                                                            \n不適合：文書化されていない",null,null,"(3) ｢ＣｉＰ管理｣に関する外部委託先の管理方法について定めた文書名，項目名を記載して下さい ",null,null,null,null,null,null,null,null,null,null,null,null,null,2,4,{"$f":"+IF(H291=\"●\",3,1)","v":1},null,0,"●",0,null,0,0]
[null,null,null,null,null,null,null,null,null,null,null,null,null,null,null,null,null,null,null,null,null,null,null,null,null,null,2,4,{"$f":"+AC291","v":1},null,0,0,0,null,0,0]
[null,null,null,null,null,null,null,null,null,"＜回答例＞\n・「外部委託先管理規程」\n  第○○項：情報伝達，第○○項：要求事項，第○○項：評価",null,null,null,null,null,null,null,null,null,null,null,null,null,null,null,null,2,4,{"$f":"+AC292","v":1},null,0,0,0,null,0,0]
[null,null,null,null,null,null,null,null,null,null,null,null,null,null,null,null,null,null,null,null,null,null,null,null,null,null,2,4,{"$f":"+AC293","v":1},null,0,0,0,null,0,0]
[null,null,null,null,null,null,null,null,null,null,null,null,null,null,null,null,null,null,null,null,null,null,null,null,null,null,null,1,1,null,0,0,0,null,0,0]
[null," 5.5.5 製造及び保管におけるＣｉＰ管理",null,null,null,null,null,null,null,null,null,null,null,null,null,null,null,null,null,null,null,null,null,null,null,null,null,1,1,null,0,0,0,null,0,0]
[null," 5.5.5.1 製造工程における管理　（変換工程の管理）",null,null,null,null,null,null,null,null,null,null,null,null,null,null,null,null,null,null,null,null,null,null,null,null,null,1,1,null,0,0,0,null,0,0]
[null,null,"組織は，製造工程におけるＣｉＰに関わる管理基準に基づいて，製造工程を管理し，その結果を文書化した情報として保持すること。",null,null,null,null,null,null,null,null,null,null,null,null,null,null,null,null,null,null,null,null,null,null,null,null,1,1,null,0,0,0,null,0,0]
[null,{"$f":"+B291+1","v":36},null,"工程管理","実施確認","―","―",null,"(1) 化学物質/混合物を用いて製造する工程において，組成変化，濃度変化が生じる工程(変換工程)があり，かつその該当工程の管理を怠った場合に，ＣｉＰ管理基準の対象物質が管理基準を超えて残留または生成する可能性がありますか \n\n※上記条件に該当しない場合には (2)～(4) は「非該当」と記載して下さい \n",null,null,null,"(1) 当設問に該当する場合は，該当工程，使用材料，反応の内容を記載して下さい",null,null,null,null,null,null,null,null,null,null,null,null,null,null,4,{"$f":"+IF(H299=\"●\",3,1)","v":1},null,"―","―",0,null,0,0]
[null,null,null,null,null,null,null,null,null,null,null,null,"(a) 該当工程：［\n(b) 使用材料：［\n(c) 管理対象物質：［\n(d) 反応の内容：［",null,null,null,null,null,null,null,null,null,null,null,null,null,null,4,{"$f":"+AC299","v":1},null,0,0,0,null,0,0]
[null,null,null,null,null,null,null,null,null,"＜回答例＞\n(a) 該当工程：無電解ニッケルめっき\n(b) 使用材料：めっき液（Ni90～92％，P8～10％，Pb1000ppm以下）\n(c) 管理対象物質：鉛\n(d) 反応の内容：微量の鉛化合物（浴の安定化を目的に添加）が，反応時に皮膜中に取り込まれる \n\n＜管理の注意ポイント＞\n・ＣｉＰ管理基準の対象物質が，管理基準を超えて残留または生成する可能性がある濃度変化，変換工程の例\n　　ポリマー重合（PVC：塩化ビニルによる化学反応）\n　　無電解ニッケルめっき工程（鉛：めっき液の濃度変化）\n　　インク塗料（鉛，カドミウム等：溶剤等の揮発による濃度変化）\n　　シーラント剤（DBT，DOT：２液混合型のシーラント剤の硬化反応）\n　　焼き付け塗装工程\n　　硬化性樹脂の硬化成型工程\n",null,null,null,null,null,null,null,null,null,null,null,null,null,null,null,null,null,4,{"$f":"+AC300","v":1},null,0,0,0,null,0,0]
[null,null,null,null,null,null,null,null,null,null,null,null,null,null,null,null,null,null,null,null,null,null,null,null,null,null,null,4,{"$f":"+AC301","v":1},null,0,0,0,null,0,0]
[null,{"$f":"+B299+1","v":37},null,"工程管理","基準の有無確認","●",null,null,"(2) 上記 (1) に該当する工程に対し，製造工程におけるＣｉＰに関わる管理基準を定めていますか\n","＜適合判断基準＞\n適　合：変換工程の管理基準が適切に定められている\n準適合：管理基準に対し一部不備がある\n不適合：管理基準が定められていない\n　※適切性の判断は，判定者が知見及び製品ガイドライン等を参考に判断する",null,null,"(2) 該当する工程に対する，製造段階における管理基準を定めた文書とその具体的な管理方法を記載して下さい",null,null,null,null,null,null,null,null,null,null,null,null,null,null,4,{"$f":"+IF(H303=\"●\",3,1)","v":1},null,"●",0,0,null,0,0]
[null,null,null,null,null,null,null,null,null,null,null,null,"(a) 製造段階における管理基準を明確にしている文書：［\n(b) 具体的な管理方法：［",null,null,null,null,null,null,null,null,null,null,null,null,null,null,4,{"$f":"+AC303","v":1},null,0,0,0,null,0,0]
[null,null,null,null,null,null,null,null,null,"＜回答例＞\n(a) 製造段階における管理基準を明確にしている文書：［めっき工程作業標準］\n(b) 具体的な管理方法：［めっき液に安定材として添加している鉛（Pb）の基準値を「XXXppm」に設定し，１カ月に１度液の分析を行い確認している］ \n\n＜管理の注意ポイント＞\n・化学物質／混合物の製造の場合は，原材料や副資材に含有している化学物質／混合物及び工程内で添加・発生・除去される化学物質／混合物を考慮し，製品の管理基準を満たす購買・調達条件，製造工程，製造条件，検査・出荷条件等を定めているか \n・化学物質／混合物を用いた成形品製造の場合は，工程における成形品の含有化学物質の濃度や種類の変化を論理的根拠に基づき考慮して製品設計，工程設計を行っているか 　\n※はんだ，接着剤，グリス，インク等を使用している場合に該当する\n・「製造段階におけるＣｉＰ管理に関わる管理基準」は，QC工程図，管理工程図，管理フロー図，作業手順などに対し反映されていれば良い ",null,null,null,null,null,null,null,null,null,null,null,null,null,null,null,null,null,4,{"$f":"+AC304","v":1},null,0,0,0,null,0,0]
[null,null,null,null,null,null,null,null,null,null,null,null,null,null,null,null,null,null,null,null,null,null,null,null,null,null,null,4,{"$f":"+AC305","v":1},null,0,0,0,null,0,0]
[null,{"$f":"+B303+1","v":38},null,"工程管理","記録確認","●",null,null,"(3) 上記 (2) の管理の結果を記録していますか\n","＜適合判断基準＞\n適　合：変換工程にて管理基準との判定を行った記録を管理している\n不適合：判定記録が管理されていない",null,null,"(3) 管理の結果の記録名を記載して下さい ",null,null,null,null,null,null,null,null,null,null,null,null,null,null,4,{"$f":"+IF(H307=\"●\",3,1)","v":1},null,"●",0,0,null,0,0]
[null,null,null,null,null,null,null,null,null,null,null,null,null,null,null,null,null,null,null,null,null,null,null,null,null,null,null,4,{"$f":"+AC307","v":1},null,0,0,0,null,0,0]
[null,null,null,null,null,null,null,null,null,"＜回答例＞\n・テストピース分析レポート（めっき工程の場合）",null,null,null,null,null,null,null,null,null,null,null,null,null,null,null,null,null,4,{"$f":"+AC308","v":1},null,0,0,0,null,0,0]
[null,null,null,null,null,null,null,null,null,null,null,null,null,null,null,null,null,null,null,null,null,null,null,null,null,null,null,4,{"$f":"+AC309","v":1},null,0,0,0,null,0,0]
[null,{"$f":"+B307+1","v":39},null,"工程管理","文書化確認",null,"●",null,"(4) 上記(2)～(3)の管理を実施する手順が文書化されていますか\n","＜適合判断基準＞\n適　合：手順が文書化されている\n準適合：一部不備がある\n不適合：文書化されていない",null,null,"(4) 工程管理を定めた文書名，項目名を記載して下さい ",null,null,null,null,null,null,null,null,null,null,null,null,null,2,4,{"$f":"+IF(H311=\"●\",3,1)","v":1},null,0,"●",0,null,0,0]
[null,null,null,null,null,null,null,null,null,null,null,null,null,null,null,null,null,null,null,null,null,null,null,null,null,null,2,4,{"$f":"+AC311","v":1},null,0,0,0,null,0,0]
[null,null,null,null,null,null,null,null,null,"＜回答例＞\n・「工程管理規程」 第○○項：変換工程管理 「作業手順書」",null,null,null,null,null,null,null,null,null,null,null,null,null,null,null,null,2,4,{"$f":"+AC312","v":1},null,0,0,0,null,0,0]
[null,null,null,null,null,null,null,null,null,null,null,null,null,null,null,null,null,null,null,null,null,null,null,null,null,null,2,4,{"$f":"+AC313","v":1},null,0,0,0,null,0,0]
[null,null,null,null,null,null,null,null,null,null,null,null,null,null,null,null,null,null,null,null,null,null,null,null,null,null,null,1,1,null,0,0,0,null,0,0]
[null," 5.5.5.2 誤使用及び汚染の防止　（併行生産及び使用禁止物質の誤使用・汚染の管理）",null,null,null,null,null,null,null,null,null,null,null,null,null,null,null,null,null,null,null,null,null,null,null,null,null,1,1,null,0,0,0,null,0,0]
[null,null,"組織は，ＣｉＰ管理基準で対象とした化学物質の誤使用及び汚染の防止策を実施すること。",null,null,null,null,null,null,null,null,null,null,null,null,null,null,null,null,null,null,null,null,null,null,null,null,1,1,null,0,0,0,null,0,0]
[null,{"$f":"+B311+1","v":40},null,"工程管理","実施確認","●",null,null,"(1) ＣｉＰ管理基準で対象とした化学物質の，誤使用・汚染防止策を実施していますか \n\n※ＣｉＰ管理基準で定めた「使用禁止物質」の対応は (2)～(6) で確認します\n\n","＜適合判断基準＞\n適　合：誤使用・汚染防止策の必要な対象と管理方法が定められており，実施している\n不適合：適切な管理及び実施されていない",null,null,"(1) 管理方法の概要・全体像を記載して下さい \n※ＣｉＰ管理基準で定めた「使用禁止物質」の誤使用・汚染の恐れがある工程の具体的な管理方法は（3）～（6）に記載して下さい ",null,null,null,null,null,null,null,null,null,null,null,null,null,null,4,{"$f":"+IF(H318=\"●\",3,1)","v":1},null,"●",0,0,null,0,0]
[null,null,null,null,null,null,null,null,null,null,null,null,null,null,null,null,null,null,null,null,null,null,null,null,null,null,null,4,{"$f":"+AC318","v":1},null,0,0,0,null,0,0]
[null,null,null,null,null,null,null,null,null,"＜回答例＞\n・ＱＣ工程図に則った管理をしている\n\n＜管理の注意ポイント＞\n・誤使用・汚染防止の対策内容は，汚染の恐れのある物質の管理レベル（使用禁止，含有管理）に応じた内容で設定していれば良い \n・ＣｉＰ管理基準で定めた「使用禁止物質」の誤使用・汚染の恐れが無い場合は一般的な工程管理により誤使用・汚染防止を実施していれば良い \n・ＣｉＰ管理基準で定めた「使用禁止物質」の誤使用・汚染の恐れがある工程，材料がある場合は下記(3)～(6)の対応が必要 ",null,null,null,null,null,null,null,null,null,null,null,null,null,null,null,null,null,4,{"$f":"+AC319","v":1},null,0,0,0,null,0,0]
[null,null,null,null,null,null,null,null,null,null,null,null,null,null,null,null,null,null,null,null,null,null,null,null,null,null,null,4,{"$f":"+AC320","v":1},null,0,0,0,null,0,0]
[null,{"$f":"+B318+1","v":41},null,"工程管理","実施確認","―","―",null,"＜使用禁止物質対応＞\n\n(2) ＣｉＰ管理基準で定めた「使用禁止物質」の誤使用，汚染の恐れがある，または未確認の工程，材料がありますか \n\n※誤使用，汚染の恐れが無く，かつそれが未確認の工程，材料が無い場合には (3)～(6) は「非該当」と記載して下さい \n",null,null,null,"(2) 使用禁止物質を含有する部品，材料がある場合は使用禁止物質を含有する部品・材料の名，対象使用禁止物質名，工程，使用用途を記載して下さい ",null,null,null,null,null,null,null,null,null,null,null,null,null,null,4,{"$f":"+IF(H322=\"●\",3,1)","v":1},null,"―","―",0,null,0,0]
[null,null,null,null,null,null,null,null,null,null,null,null,null,null,null,null,null,null,null,null,null,null,null,null,null,null,null,4,{"$f":"+AC322","v":1},null,0,0,0,null,0,0]
[null,null,null,null,null,null,null,null,null,"＜回答例＞\n・部品材料名：電線\n・対象使用禁止物質名：鉛\n・工程：実装工程\n・使用用途：自動車向けの製品に使用\n\n＜管理の注意ポイント＞\n・「使用禁止物質」の誤使用，汚染の恐れがあるか否かは対象の顧客向け以外の工程も含めて判断する必要がある \n・ＣｉＰ管理基準で定めた「使用禁止物質」の誤使用，汚染の恐れがある例として次のような例がある \n  例：規制対象外の顧客向けラインで「使用禁止物質」を使用した併行生産がされている\n  例：リサイクル材（オープン，クローズド）を使用している",null,null,null,null,null,null,null,null,null,null,null,null,null,null,null,null,null,4,{"$f":"+AC323","v":1},null,0,0,0,null,0,0]
[null,null,null,null,null,null,null,null,null,null,null,null,null,null,null,null,null,null,null,null,null,null,null,null,null,null,null,4,{"$f":"+AC324","v":1},null,0,0,0,null,0,0]
[null,{"$f":"+B322+1","v":42},null,"工程管理","実施確認","●",null,null,"＜使用禁止物質対応＞\n\n(3) 部品・材料の受入，置き場（副資材，包装用材料含む）において，誤使用・汚染防止の適切な管理ができていますか \n","＜適合判断基準＞\n適　合：部品材料の受入，置場において，誤使用・汚染防止の適切な管理が実施されている\n　※適切性については，業種，対象工程，材料などから実施の要否，エビデンス内容，頻度などを個別に判断すること\n不適合：適切な管理が実施されていない",null,null,"(3) 「部品，材料置き場（副資材，包装用材料含む）」の誤使用，混入，混在，汚染防止の具体的な管理方法を記載して下さい ",null,null,null,null,null,null,null,null,null,null,null,null,null,null,4,{"$f":"+IF(H326=\"●\",3,1)","v":1},null,{"$f":"+F326","v":"●"},{"$f":"+G326","v":0},{"$f":"+H326","v":0},null,{"$f":"+K326","v":0},{"$f":"+S326","v":0}]
[null,null,null,null,null,null,null,null,null,null,null,null,null,null,null,null,null,null,null,null,null,null,null,null,null,null,null,4,{"$f":"+AC326","v":1},null,0,0,0,null,0,0]
[null,null,null,null,null,null,null,null,null,"＜回答例（管理方法）＞\n・受入時に非対応の製品（鉛含有の電線）に「非対応」の表示を貼る\n・使用禁止物質非対応品の部品・材料の置場に仕切りを設置\n・オープンリサイクル材は受入時に，ロット毎にXRF分析装置，GC/MS分析装置などにて分析を行い，禁止物質の濃度がばらつきにより閾値を超えないことを確認している\n\n＜管理の注意ポイント＞\n・誤使用，混入しないための管理方法が適切か否かは，誰が作業しても間違わないような管理方法であり，表示，専用化，取扱者の限定等がある",null,null,null,null,null,null,null,null,null,null,null,null,null,null,null,null,null,4,{"$f":"+AC327","v":1},null,0,0,0,null,0,0]
[null,null,null,null,null,null,null,null,null,null,null,null,null,null,null,null,null,null,null,null,null,null,null,null,null,null,null,4,{"$f":"+AC328","v":1},null,0,0,0,null,0,0]
[null,{"$f":"+B326+1","v":43},null,"工程管理","実施確認","●",null,null,"＜使用禁止物質対応＞\n\n(4) 下記の関係する全ての製造工程において誤使用・汚染防止の適切な管理ができていますか\n(a) ライン工程，（その周辺を含む）\n(b) 仕掛品置き場（長期仕掛り品置場含む）\n(c) 手直し工程（例：はんだ付けを補正するための通常ラインではない工程）\n(d) 生産設備及び治工具（部品，材料に付着（接触）する場合）\n","＜適合判断基準＞\n適　合：(a)(b)(c)(d) のうち関係する製造工程において，誤使用・汚染防止の適切な管理が実施されている\n　※適切性については，業種，対象工程，材料などから実施の要否，エビデンス内容，頻度などを個別に判断すること\n不適合：適切な管理が実施されていない",null,null,"(4）下記の製造工程における誤使用・混入・混在・汚染防止の具体的な管理方法を記載して下さい ",null,null,null,null,null,null,null,null,null,null,null,null,null,null,4,{"$f":"+IF(H330=\"●\",3,1)","v":1},null,"●",0,0,null,0,0]
[null,null,null,null,null,null,null,null,null,null,null,null,"(a) ライン工程（その周辺を含む）\n[\n\n(b) 仕掛品置き場（長期仕掛り品置場含む）\n[\n\n(c) 手直し工程\n[\n\n(d) 生産設備及び治工具（部品，材料に付着（接触）する場合）\n[\n",null,null,null,null,null,null,null,null,null,null,null,null,null,null,4,{"$f":"+AC330","v":1},null,0,0,0,null,0,0]
[null,null,null,null,null,null,null,null,null,"＜回答例（管理方法）＞\n(a) ライン工程，（その周辺を含む）\n・「使用禁止物質」を使用しているライン（規制対象外の顧客向けライン）を専用化し識別表示をする\n・はんだごてやその洗浄用のスポンジ等も専用化し識別シールを貼る\n\n(b) 仕掛品置き場（長期仕掛り品置場含む）\n・「使用禁止物質」の規制対象外の仕掛り品置場を専用化し識別表示をする\n・長期仕掛り品は鍵をかけて管理し，取扱担当者を限定\n\n(c) 手直し工程\n・「使用禁止物質」の規制対象外の手直し工程を専用化\n\n(d) 生産設備及び治工具（部品，材料に付着（接触）する場合）\n・「使用禁止物質」の規制対象外向けで使用する生産設備及び治工具を識別表示（シール）をして専用化\n・「使用禁止物質」の規制対象外向けで使用した生産設備及び治工具の洗浄基準を定めて管理を実施\n\n＜管理の注意ポイント＞\n・誤使用，汚染しないための管理方法が適切か否かは，誰が作業しても間違わないような管理方法であり，表示，専用化，取扱者の限定等がある",null,null,null,null,null,null,null,null,null,null,null,null,null,null,null,null,null,4,{"$f":"+AC331","v":1},null,0,0,0,null,0,0]
[null,null,null,null,null,null,null,null,null,null,null,null,null,null,null,null,null,null,null,null,null,null,null,null,null,null,null,4,{"$f":"+AC332","v":1},null,0,0,0,null,0,0]
[null,{"$f":"+B330+1","v":44},null,"工程管理","実施確認","●",null,null,"＜使用禁止物質対応＞\n\n(5) 出荷用倉庫における製品置き場においても，誤使用・汚染防止の適切な管理ができていますか \n","＜適合判断基準＞\n適　合：出荷倉庫において，誤使用・汚染防止の適切な管理が実施されている\n　※適切性については，業種，対象工程，材料などから実施の要否，エビデンス内容，頻度などを個別に判断すること\n不適合：適切な管理が実施されていない",null,null,"(5) ｢出荷用倉庫における製品置き場｣の誤使用，混入，混在，汚染防止の具体的な管理方法を記載して下さい ",null,null,null,null,null,null,null,null,null,null,null,null,null,null,4,{"$f":"+IF(H334=\"●\",3,1)","v":1},null,"●",0,0,null,0,0]
[null,null,null,null,null,null,null,null,null,null,null,null,null,null,null,null,null,null,null,null,null,null,null,null,null,null,null,4,{"$f":"+AC334","v":1},null,0,0,0,null,0,0]
[null,null,null,null,null,null,null,null,null,"＜回答例（管理方法）＞\n・製品，包装区分（ラベル等）への表示と置き場の専用化\n\n＜管理の注意ポイント＞\n・誤使用，汚染しないための管理方法が適切か否かは，誰が作業しても間違わないような管理方法であり，表示，専用化，取扱者の限定等がある",null,null,null,null,null,null,null,null,null,null,null,null,null,null,null,null,null,4,{"$f":"+AC335","v":1},null,0,0,0,null,0,0]
[null,null,null,null,null,null,null,null,null,null,null,null,null,null,null,null,null,null,null,null,null,null,null,null,null,null,null,4,{"$f":"+AC336","v":1},null,0,0,0,null,0,0]
[null,{"$f":"B334+1","v":45},null,"工程管理","文書化確認",null,"●",null,"＜使用禁止物質対応＞\n\n(6) 上記 (3)～(5) の管理を実施する手順が文書化されていますか ","＜適合判断基準＞\n適　合：誤使用・汚染防止の適切な管理方法が文書化されている\n不適合：文書化されていない",null,null,"(6) 該当する工程の誤使用，汚染防止の管理手順を定めた文書名，項目名を記載して下さい ",null,null,null,null,null,null,null,null,null,null,null,null,null,2,4,{"$f":"+IF(H338=\"●\",3,1)","v":1},null,0,"●",0,null,0,0]
[null,null,null,null,null,null,null,null,null,null,null,null,null,null,null,null,null,null,null,null,null,null,null,null,null,null,2,4,{"$f":"+AC338","v":1},null,0,0,0,null,0,0]
[null,null,null,null,null,null,null,null,null,"＜回答例＞\n・「工程管理規程」  第○○項：使用禁止物質管理 切替生産手順",null,null,null,null,null,null,null,null,null,null,null,null,null,null,null,null,2,4,{"$f":"+AC339","v":1},null,0,0,0,null,0,0]
[null,null,null,null,null,null,null,null,null,null,null,null,null,null,null,null,null,null,null,null,null,null,null,null,null,null,2,4,{"$f":"+AC340","v":1},null,0,0,0,null,0,0]
[null,null,null,null,null,null,null,null,null,null,null,null,null,null,null,null,null,null,null,null,null,null,null,null,null,null,null,1,1,null,0,0,0,null,0,0]
[null," 5.5.5.3 識別及びトレーサビリティ",null,null,null,null,null,null,null,null,null,null,null,null,null,null,null,null,null,null,null,null,null,null,null,null,null,1,1,null,0,0,0,null,0,0]
[null,null,"組織は，ＣｉＰ情報を把握し，その情報を速やかに利用，開示及び伝達できるように，適切な手段によって，ＣｉＰ情報のトレーサビリティを確実にすること。\n組織の製品に関するＣｉＰ情報を管理する方法を規定し，保存し，実施すること。",null,null,null,null,null,null,null,null,null,null,null,null,null,null,null,null,null,null,null,null,null,null,null,null,1,1,null,0,0,0,null,0,0]
[null,{"$f":"+B338+1","v":46},null,"共通管理","実施確認・記録確認","●",null,null,"引渡しされた製品から構成部材・原材料の受入れロット，製造時期・製造工程，外部委託先に関するＣｉＰ情報を速やかに把握，利用，開示及び伝達できるようになっていますか\n(a) 管理の方法が定められている\n(b) 記録を作成している\n","＜適合判断基準＞\n適　合：手順と対象となる記録が定められ運用が確認できている\n準適合：記録に不備がある\n不適合：管理の方法が定められていない。もしくは，記録がない",null,null,"引渡しされた製品から構成部材・原材料の受入れロット，製造時期，製造場所（工程），外部委託先を特定するための管理方法を定めた文書名と記録を記載して下さい",null,null,null,null,null,null,null,null,null,null,null,null,null,null,4,{"$f":"+IF(H345=\"●\",3,1)","v":1},null,"●",0,0,null,0,0]
[null,null,null,null,null,null,null,null,null,null,null,null,"(a) 文書名　／　管理方法概要：\n[\n[\n\n\n(b) 記録：\n[",null,null,null,null,null,null,null,null,null,null,null,null,null,null,4,{"$f":"+AC345","v":1},null,0,0,0,null,0,0]
[null,null,null,null,null,null,null,null,null,"＜回答例＞\n(a)\n・「工程管理規程」 第○項：トレーサビリティ\n・「製造管理規程」 第○項：トレーサビリティ 「作業手順書」\n・ロット番号または，シリアル番号で管理\n(b) \n・部品受入記録票\n・ロット管理記録票\n・生産記録票\n\n<管理の注意ポイント>\n・詳細な管理方法を記載することが難しい場合は，手順書名の回答で良い",null,null,null,null,null,null,null,null,null,null,null,null,null,null,null,null,null,4,{"$f":"+AC346","v":1},null,0,0,0,null,0,0]
[null,null,null,null,null,null,null,null,null,null,null,null,null,null,null,null,null,null,null,null,null,null,null,null,null,null,null,4,{"$f":"+AC347","v":1},null,0,0,0,null,0,0]
[null,null,null,null,null,null,null,null,null,null,null,null,null,null,null,null,null,null,null,null,null,null,null,null,null,null,null,1,1,null,0,0,0,null,0,0]
[null," 5.5.6 変更の管理",null,null,null,null,null,null,null,null,null,null,null,null,null,null,null,null,null,null,null,null,null,null,null,null,null,1,1,null,0,0,0,null,0,0]
[null,null,"組織は，ＣｉＰ管理基準で対象とした化学物質に影響を及ぼす可能性のある変更の要素を抽出すること。組織は，変更に対して，ＣｉＰの変化の確認を適切に行い，その変更を実施する前にＣｉＰ管理基準によるレビューをすること。\n組織は，変更のレビューの結果，変更を正式に許可した人（又は人々）及びレビューから生じた必要な処置を記載した文書化した情報を保持すること。",null,null,null,null,null,null,null,null,null,null,null,null,null,null,null,null,null,null,null,null,null,null,null,null,1,1,null,0,0,0,null,0,0]
[null,{"$f":"+B345+1","v":47},null,"共通管理","実施確認","●",null,null,"(1) 変更管理の対象となる事項を明確にしていますか\n","＜適合判断基準＞\n適　合：変更管理の対象となる事項を明文化している\n準適合：明文化されていないが変更管理の対象となる事例を回答出来る\n不適合：変更管理の対象が定まっていない",null,null,"(1) 変更管理の対象となる事項及び，その内容を定めた文書名を記載して下さい",null,null,null,null,null,null,null,null,null,null,null,null,null,null,4,{"$f":"+IF(H352=\"●\",3,1)","v":1},null,"●",0,0,null,0,0]
[null,null,null,null,null,null,null,null,null,null,null,null,"(a) 変更管理対象：［\n(b) 文書名：［",null,null,null,null,null,null,null,null,null,null,null,null,null,null,4,{"$f":"+AC352","v":1},null,0,0,0,null,0,0]
[null,null,null,null,null,null,null,null,null,"＜回答例＞\n(a) 変更管理対象：自社内，及び供給者，外部委託先における下記内容の変更を対象としている\n　　供給者，外部委託先\n　　部品，材料\n　　工程（生産設備，製造条件，型・治工具等）\n(b) 文書名：変更管理規程\n\n＜管理の注意ポイント＞\n・変更管理の対象には，生産の4要素「人 (Man)，機械 (Machine)，材料 (Material)，方法 (Method)」の変更を含める。ただし，化学物質管理に影響を与える範囲とする\n・組織内だけでなく供給者，外部委託先における変更も対象にする必要がある ",null,null,null,null,null,null,null,null,null,null,null,null,null,null,null,null,null,4,{"$f":"+AC353","v":1},null,0,0,0,null,0,0]
[null,null,null,null,null,null,null,null,null,null,null,null,null,null,null,null,null,null,null,null,null,null,null,null,null,null,null,4,{"$f":"+AC354","v":1},null,0,0,0,null,0,0]
[null,{"$f":"+B352+1","v":48},null,"共通管理","実施確認","●",null,null,"(2) 上記 (1) の変更管理の対象が発生した場合，変更前に，要否を確認の上，必要なＣｉＰ情報を入手する部署(人)・時期・手段が明確になっていますか\n","＜適合判断基準＞\n適　合：変更管理時の，ＣｉＰ情報を入手する時期・手段・部署(人)が明確になっており，かつ，変更前に入手を行ってる\n準適合：入手は行っているが，手段・部署(人)のいずれかが定まっていない\n不適合：入手を行っていない，または，変更前に入手を行っていない",null,null,"(2) 上記(1)の変更管理の対象に対し社内で変更が発生する場合，変更前にＣｉＰ管理基準への適合状況を把握するために確認している内容を記載して下さい ",null,null,null,null,null,null,null,null,null,null,null,null,null,null,4,{"$f":"+IF(H356=\"●\",3,1)","v":1},null,"●",0,0,null,0,0]
[null,null,null,null,null,null,null,null,null,null,null,null,"(a) 入手部署：[\n(b) 入手時期：[\n(c) 入手手段：[",null,null,null,null,null,null,null,null,null,null,null,null,null,null,4,{"$f":"+AC356","v":1},null,0,0,0,null,0,0]
[null,null,null,null,null,null,null,null,null,"＜回答例＞\n・購買部門が変更前にＣｉＰ情報(chemSHERPA，JAMA/JAPIAシート 等)を用いて供給者より入手している\n・購買部門が変更前に不使用証明書や，成分表を用いて供給者より入手している\n\n\n＜管理の注意ポイント＞\n・管理基準に対する適合・不適合が判断できる情報を入手しているかを確認する事",null,null,null,null,null,null,null,null,null,null,null,null,null,null,null,null,null,4,{"$f":"+AC357","v":1},null,0,0,0,null,0,0]
[null,null,null,null,null,null,null,null,null,null,null,null,null,null,null,null,null,null,null,null,null,null,null,null,null,null,null,4,{"$f":"+AC358","v":1},null,0,0,0,null,0,0]
[null,{"$f":"+B356+1","v":49},null,"共通管理","実施確認","●",null,null,"(3) 上記 (1) の変更管理の対象が，顧客または，顧客に出荷する製品に影響がある場合，変更前に顧客へ報告する部署(人)・時期・手段が明確になっていますか\n","＜適合判断基準＞\n適　合：顧客に変更を伝える時期・手段・部署(人)が明確になっており，かつ，変更を伝えた記録がある\n不適合：顧客に変更を伝える時期・手段・部署(人)が定まっていない。または変更を伝えた記録がない",null,null,"(3) 変更前に顧客へ報告している時期・手段等を記載して下さい ",null,null,null,null,null,null,null,null,null,null,null,null,null,null,4,{"$f":"+IF(H360=\"●\",3,1)","v":1},null,"●",0,0,null,0,0]
[null,null,null,null,null,null,null,null,null,null,null,null,"(a) 報告部署：[\n(b) 報告時期：[\n(c) 報告手段：[\n(d) 報告記録：[",null,null,null,null,null,null,null,null,null,null,null,null,null,null,4,{"$f":"+AC360","v":1},null,0,0,0,null,0,0]
[null,null,null,null,null,null,null,null,null,"＜回答例＞\n・品質保証部門が変更する項目（供給者，材料，工程等）とＣｉＰ管理基準への適合状況を顧客に事前に通知する仕組みになっていて，[各社指定の変更申請書]で申請を実施している\n\n＜管理の注意ポイント＞\n・顧客とのコミニュケーションをとって変更することが重要 \n・顧客への報告は，ＣｉＰ管理基準への適合状況の結果に関らず報告することが重要 ",null,null,null,null,null,null,null,null,null,null,null,null,null,null,null,null,null,4,{"$f":"+AC361","v":1},null,0,0,0,null,0,0]
[null,null,null,null,null,null,null,null,null,null,null,null,null,null,null,null,null,null,null,null,null,null,null,null,null,null,null,4,{"$f":"+AC362","v":1},null,0,0,0,null,0,0]
[null,{"$f":"+B360+1","v":50},null,"共通管理","記録確認","●",null,null,"(4) 入手したＣｉＰ情報について，適合状況を判定し，その結果を記録していますか\n","＜適合判断基準＞\n適　合：判定を行った記録がある\n不適合：判定を行った記録がない",null,null,"(4) 結果を記録する文書（記録）と判定の承認者名称を記載して下さい",null,null,null,null,null,null,null,null,null,null,null,null,null,null,4,{"$f":"+IF(H364=\"●\",3,1)","v":1},null,"●",0,0,null,0,0]
[null,null,null,null,null,null,null,null,null,null,null,null,"(a) 判定記録：[\n(b) 承認担当：[",null,null,null,null,null,null,null,null,null,null,null,null,null,null,4,{"$f":"+AC364","v":1},null,0,0,0,null,0,0]
[null,null,null,null,null,null,null,null,null,"＜回答例＞\n(a)判定記録：\n　・社内の変更：［変更申請書（社内申請用）］に判定結果を記載している\n　・供給者/外部委託先の変更：［変更申請書（供給者申請用）］に適合状況を記載している\n(b)承認担当：品質管理部部長\n\n＜管理の注意ポイント＞\n・判定時に承認を伴う場合は，承認者と判定した記録が存在すること\n・顧客へ報告が必要な変更管理の場合，顧客の管理基準に対しての適合判断もされていること",null,null,null,null,null,null,null,null,null,null,null,null,null,null,null,null,null,4,{"$f":"+AC365","v":1},null,0,0,0,null,0,0]
[null,null,null,null,null,null,null,null,null,null,null,null,null,null,null,null,null,null,null,null,null,null,null,null,null,null,null,4,{"$f":"+AC366","v":1},null,0,0,0,null,0,0]
[null,null,null,null,null,null,null,null,null,null,null,null,null,null,null,null,null,null,null,null,null,null,null,null,null,null,null,1,1,null,0,0,0,null,0,0]
[null," 5.5.7 製品の引渡し",null,null,null,null,null,null,null,null,null,null,null,null,null,null,null,null,null,null,null,null,null,null,null,null,null,1,1,null,0,0,0,null,0,0]
[null,null,"組織は，製品の引渡しにおけるＣｉＰに関わる管理基準を満たすことを確認した上で，製品を引渡すこと。\n組織は，製品の引渡しについて文書化した情報を保持すること。これには，次の事項を含むこと。\na) ＣｉＰ管理基準への適合の証拠\nb) 引渡しを正式に許可した人（又は人々）に対するトレーサビリティ\n製品倉庫においても，誤出荷及び汚染のないように管理すること。\n組織は，ＣｉＰ管理基準で対象とした法規制・業界基準，不適合，顧客からのフィードバックなどを踏まえ，供給した製品に関連する引渡し後の活動についても，決定し，実施すること。",null,null,null,null,null,null,null,null,null,null,null,null,null,null,null,null,null,null,null,null,null,null,null,null,1,1,null,0,0,0,null,0,0]
[null,{"$f":"+B364+1","v":51},null,"工程管理","実施確認・記録確認","●",null,null,"引渡し段階で「ＣｉＰ管理基準」を満足していることを確認し，記録していますか\n","＜適合判断基準＞\n適　合：ＣｉＰ管理基準を満足していることを確認した記録が保管されている\n準適合：記録に不備がある\n不適合：記録を行っていない",null,null,"引渡し段階で「ＣｉＰ管理に関わる管理基準」を満足していること確認する手順を定めた文書名及び記録名を記載して下さい",null,null,null,null,null,null,null,null,null,null,null,null,null,null,4,{"$f":"+IF(H371=\"●\",3,1)","v":1},null,"●",0,0,null,0,0]
[null,null,null,null,null,null,null,null,null,null,null,null,"(a) 文書名：[\n(b) 記録名：[",null,null,null,null,null,null,null,null,null,null,null,null,null,null,4,{"$f":"+AC371","v":1},null,0,0,0,null,0,0]
[null,null,null,null,null,null,null,null,null,"＜回答例＞\n(a)　文書名：「出荷確認規程」 第○○項：製品化学物質評価（出荷検査の文書名・基準等など）\n(b)　記録：出荷確認票，現品票，工程確認記録等\n\n＜管理の注意ポイント＞\n・引渡し段階とは完成品の出荷段階を指しています\n・出荷後の活動について別途定めがある場合はそれに従うこと",null,null,null,null,null,null,null,null,null,null,null,null,null,null,null,null,null,4,{"$f":"+AC372","v":1},null,0,0,0,null,0,0]
[null,null,null,null,null,null,null,null,null,null,null,null,null,null,null,null,null,null,null,null,null,null,null,null,null,null,null,4,{"$f":"+AC373","v":1},null,0,0,0,null,0,0]
[null,null,null,null,null,null,null,null,null,null,null,null,null,null,null,null,null,null,null,null,null,null,null,null,null,null,null,1,1,null,0,0,0,null,0,0]
[null," 5.5.8 不適合品発生時における対応",null,null,null,null,null,null,null,null,null,null,null,null,null,null,null,null,null,null,null,null,null,null,null,null,null,1,1,null,0,0,0,null,0,0]
[null,null,"組織は，ＣｉＰに関わる不適合品発生時における組織内部，供給者，外部委託先及び顧客への速やかな連絡，並びに応急処置の方法を定め，文書化すること。\n応急処置の後に，原因を特定し，必要な処置を決定し，実施して再発を防止すること。\n発生を未然に防止するための予防処置を講じること。組織は，不適合品発生時の対応を文書化した情報として保持すること。",null,null,null,null,null,null,null,null,null,null,null,null,null,null,null,null,null,null,null,null,null,null,null,null,1,1,null,0,0,0,null,0,0]
[null,{"$f":"+B371+1","v":52},null,"共通管理","実施確認","●",null,null,"(1) ＣｉＰの不適合品（以下，不適合品という）が発生した際に，組織内部，供給者または外部委託先，顧客への連絡手順を定め実施していますか\n","＜適合判断基準＞\n適　合：組織内部，供給者または外部委託先，顧客への連絡手順を文書に定めている\n準適合：前述の手順を文書に定めているが一部明確でないところがある\n不適合：実施すべき手順が文書に定められていない",null,null,"(1)不適合品発生時における下記報告手順を要求している文書名と要求している内容を記載して下さい",null,null,null,null,null,null,null,null,null,null,null,null,null,null,4,{"$f":"+IF(H378=\"●\",3,1)","v":1},null,"●",0,0,null,0,0]
[null,null,null,null,null,null,null,null,null,null,null,null,"(a) 供給者・外部委託先からの連絡手順：　\n　1) 文書名，項目名：［\n　2) 要求している内容：[\n　3) 記録名：[\n(b) 社内の連絡手順と対応決定手順：\n　1) 文書名，項目名：［\n　2) 要求している内容：[\n　3) 記録名：[\n(c) 顧客への報告手順：\n　1) 文書名，項目名：［\n　2) 要求している内容：[\n　3) 記録名：[",null,null,null,null,null,null,null,null,null,null,null,null,null,null,4,{"$f":"+AC378","v":1},null,0,0,0,null,0,0]
[null,null,null,null,null,null,null,null,null,"＜回答例＞\n(a) 供給者・外部委託先からの連絡手順：\n　1) 文書名，項目名：グリーン調達基準書第○版○項\n　2) 要求している内容：不適合内容，影響範囲を特定するための情報\n　3) 記録名：不適合発生報告書\n\n(b) 社内の連絡手順と対応決定手順：\n　1) 文書名，項目名：ＣｉＰ管理規程第○版○項\n　2) 要求している内容：手順に同じ\n　3) 記録名：問題発生報告書\n\n(c) 顧客への報告手順：\n　1) 文書名，項目名：ＣｉＰ管理規程第○版○項\n　2) 要求している内容：発生元部門から品質保証部及び関連部門へ第一報し，影響範囲の特定と拡散防止を行うとともに顧客への第一報を行う。顧客と協議の上，暫定対策を実施。原因究明後恒久対策と予防措置，水平展開を規定に従って実施\n　3)記録名：問題発生報告書\n\n＜管理の注意ポイント＞\n・供給者，外部委託者からの不適合連絡手順も含めていること",null,null,null,null,null,null,null,null,null,null,null,null,null,null,null,null,null,4,{"$f":"+AC379","v":1},null,0,0,0,null,0,0]
[null,null,null,null,null,null,null,null,null,null,null,null,null,null,null,null,null,null,null,null,null,null,null,null,null,null,null,4,{"$f":"+AC380","v":1},null,0,0,0,null,0,0]
[null,{"$f":"+B378+1","v":53},null,"共通管理","実施確認","●",null,null,"(2) 不適合品発生時に応急措置として波及範囲を特定し拡散を防止し識別管理するための手順を定め実施していますか\n","＜適合判断基準＞\n適　合：実施すべき内容について文書に定めている\n準適合：実施すべき内容を定めているが一部明確でないところがある\n不適合：実施すべき内容が文書に定められていない",null,null,"(2) 不適合品発生時に拡散防止し，識別管理するための文書名と要求内容を記載して下さい",null,null,null,null,null,null,null,null,null,null,null,null,null,null,4,{"$f":"+IF(H382=\"●\",3,1)","v":1},null,"●",0,0,null,0,0]
[null,null,null,null,null,null,null,null,null,null,null,null,"(a) 波及範囲の特定\n　1) 文書名，項目名：[\n　2) 要求している内容：[\n　3) 記録名：[\n(b) 拡散防止\n　1) 文書名，項目名：[\n　2) 要求している内容：[\n　3) 記録名：[\n(c) 識別管理\n　1) 文書名，項目名：[\n　2) 要求している内容：[\n　3) 記録名：[",null,null,null,null,null,null,null,null,null,null,null,null,null,null,4,{"$f":"+AC382","v":1},null,0,0,0,null,0,0]
[null,null,null,null,null,null,null,null,null,"＜回答例＞\n(a) 波及範囲の特定\n　1) 文書名，項目名：是正処置手順，○○項応急処置\n　2) 要求している内容：発生ロット，対象設備の特定\n　3) 記録名：是正処置記録\n(b) 拡散防止\n　1) 文書名，項目名：是正処置手順，○○項応急処置\n　2) 要求している内容：生産停止，出荷停止，選別・隔離など\n　3) 記録名：是正処置記録\n(c) 識別管理\n　1) 文書名，項目名：是正処置手順，○○項応急処置\n　2) 要求している内容：適合品との隔離や識別表示\n　3) 記録名：是正処置記録",null,null,null,null,null,null,null,null,null,null,null,null,null,null,null,null,null,4,{"$f":"+AC383","v":1},null,0,0,0,null,0,0]
[null,null,null,null,null,null,null,null,null,null,null,null,null,null,null,null,null,null,null,null,null,null,null,null,null,null,null,4,{"$f":"+AC384","v":1},null,0,0,0,null,0,0]
[null,{"$f":"+B382+1","v":54},null,"共通管理","実施確認","●",null,null,"(3) 原因究明とその恒久対策，予防措置をとるための手順を定め実施していますか\n","＜適合判断基準＞\n適　合：ＣｉＰに関する不適合等発生時の原因追求，基準改定，社内，顧客への報告方法等の手順等が決められており，実施記録が残されている\n準適合：手順や記録に不備がある場合\n不適合：記録がない場合",null,null,"(3) 原因究明とその対策，予防措置をとることを定めた内容を記載して下さい ",null,null,null,null,null,null,null,null,null,null,null,null,null,null,4,{"$f":"+IF(H386=\"●\",3,1)","v":1},null,"●",0,0,null,0,0]
[null,null,null,null,null,null,null,null,null,null,null,null,"(a) 文書名，項目名：[\n(b) 要求している内容：[\n(c) 記録名：[",null,null,null,null,null,null,null,null,null,null,null,null,null,null,4,{"$f":"+AC386","v":1},null,0,0,0,null,0,0]
[null,null,null,null,null,null,null,null,null,"＜回答例＞\n(a) 文書名，項目名：製品不適合連絡票・報告書\n(b) 要求している内容： 製造部署は，原因究明とその恒久対策，予防措置をとり，品質保証課へ連絡\n(c) 記録名：同上\n\n＜管理の注意ポイント＞\n・不適合発生時の原因に対する是正措置，及び基準改定など再発防止処置の手順を定めている ",null,null,null,null,null,null,null,null,null,null,null,null,null,null,null,null,null,4,{"$f":"+AC387","v":1},null,0,0,0,null,0,0]
[null,null,null,null,null,null,null,null,null,null,null,null,null,null,null,null,null,null,null,null,null,null,null,null,null,null,null,4,{"$f":"+AC388","v":1},null,0,0,0,null,0,0]
[null,{"$f":"+B386+1","v":55},null,"共通管理","実施確認","●",null,null,"(4) 再発防止策の水平展開をするための手順を定め実施していますか\n","＜適合判断基準＞\n適　合：不具合の再発防止，予防処置について，他の工程，製品への展開について検討する手順が文書に定められている\n準適合：手順や記録に一部不備がある場合\n不適合：手順や記録がない場合",null,null,"(4) 再発防止策の水平展開をすることを定めた内容を記載して下さい ",null,null,null,null,null,null,null,null,null,null,null,null,null,null,4,{"$f":"+IF(H390=\"●\",3,1)","v":1},null,{"$f":"+F390","v":"●"},{"$f":"+G390","v":0},{"$f":"+H390","v":0},null,{"$f":"+K390","v":0},{"$f":"+S390","v":0}]
[null,null,null,null,null,null,null,null,null,null,null,null,"(a) 文書名，項目名：[\n(b) 要求している内容：[\n(c) 記録名：[",null,null,null,null,null,null,null,null,null,null,null,null,null,null,4,{"$f":"+AC390","v":1},null,0,0,0,null,0,0]
[null,null,null,null,null,null,null,null,null,"＜回答例＞\n(a) 文書名，項目名：製品不適合連絡票・報告書\n(b) 要求している内容：品質保証課は入手した情報に基づき，組織内全般，当該事象以外の部署，工程等への水平展開要否を検討し，必要時には実施\n(c) 記録名：同上",null,null,null,null,null,null,null,null,null,null,null,null,null,null,null,null,null,4,{"$f":"+AC391","v":1},null,0,0,0,null,0,0]
[null,null,null,null,null,null,null,null,null,null,null,null,null,null,null,null,null,null,null,null,null,null,null,null,null,null,null,4,{"$f":"+AC392","v":1},null,0,0,0,null,0,0]
[null,null,null,null,null,null,null,null,null,null,null,null,null,null,null,null,null,null,null,null,null,null,null,null,null,null,null,1,1,null,0,0,0,null,0,0]
[null," 5.6 パフォーマンス評価及び改善",null,null,null,null,null,null,null,null,null,null,null,null,null,null,null,null,null,null,null,null,null,null,null,null,null,1,1,null,0,0,0,null,0,0]
[null,null,"組織は，次の項目について，あらかじめ規定した間隔で評価すること。組織は，是正処置の必要な事項については，是正処置を実施すること。評価及び是正処置の結果は，文書化した情報として保持し，トップマネジメントに報告すること。トップマネジメントは，その評価及び是正処置の結果をレビューすること。\na) 改善の状況\nb) ＣｉＰ管理に関連する組織の外部及び内部の課題の変化\nc) 次に示す傾向を含めたＣｉＰ管理のパフォーマンス及び有効性に関する情報\n　1) 外部の利害関係者との関連するコミュニケーション\n　2) 目標が達成された程度\n　3) 製品のＣｉＰ管理基準への適合\n　4) 不適合及び是正処置\n　5) パフォーマンス評価の結果\n　6) 供給者・外部委託先のパフォーマンス\nd) 資源の妥当性\ne) リスク及び機会への取組みの有効性\nf) 改善の計画",null,null,null,null,null,null,null,null,null,null,null,null,null,null,null,null,null,null,null,null,null,null,null,null,1,1,null,0,0,0,null,0,0]
[null,{"$f":"+B390+1","v":56},null,"共通管理","実施確認","●",null,null,"(1) ＣｉＰの管理状況をあらかじめ定めた間隔で，評価をしていますか \n","＜適合判断基準＞\n適　合：確認頻度，確認方法・手段が決められており，その取り決めに従い確認した記録がある\n準適合：手段や記録に一部不備がある\n不適合：記録がない",null,null,"(1) ＣｉＰの管理状況を確認する頻度と確認する手段を記載して下さい ",null,null,null,null,null,null,null,null,null,null,null,null,null,null,4,{"$f":"+IF(H397=\"●\",3,1)","v":1},null,"●",0,0,null,0,0]
[null,null,null,null,null,null,null,null,null,null,null,null,"(a) 確認する頻度：［\n(b) 確認する手段：［\n(c) 記録名：［",null,null,null,null,null,null,null,null,null,null,null,null,null,null,4,{"$f":"+AC397","v":1},null,0,0,0,null,0,0]
[null,null,null,null,null,null,null,null,null,"＜回答例＞\n(a) 確認する頻度：年1回\n(b) 確認する手段：ＣｉＰ管理の内部監査\n(c) 記録名：内部監査記録\n\n＜管理の注意ポイント＞\n・ISO9001やISO14001等にＣｉＰ管理を組み込んで内部監査を実施する場合はある。その場合，手順，記録，監査範囲等でＣｉＰ管理を含む旨明記されるのが望ましい",null,null,null,null,null,null,null,null,null,null,null,null,null,null,null,null,null,4,{"$f":"+AC398","v":1},null,0,0,0,null,0,0]
[null,null,null,null,null,null,null,null,null,null,null,null,null,null,null,null,null,null,null,null,null,null,null,null,null,null,null,4,{"$f":"+AC399","v":1},null,0,0,0,null,0,0]
[null,{"$f":"+B397+1","v":57},null,"共通管理","実施確認","●",null,null,"(2) (1) の評価の結果，是正が必要な場合には，是正処置を実施していますか。\n","＜適合判断基準＞\n適　合：ＣｉＰ管理に関する不適合等発生時の原因追求，基準改訂，社内，顧客への報告方法等の手順等が決められており，実施記録がある\n準適合：手順や記録に一部不備がある\n不適合：記録がない",null,null,"(2) 必要な是正処置を実施した記録名を記載して下さい ",null,null,null,null,null,null,null,null,null,null,null,null,null,null,4,{"$f":"+IF(H401=\"●\",3,1)","v":1},null,"●",0,0,null,0,0]
[null,null,null,null,null,null,null,null,null,null,null,null,null,null,null,null,null,null,null,null,null,null,null,null,null,null,null,4,{"$f":"+AC401","v":1},null,0,0,0,null,0,0]
[null,null,null,null,null,null,null,null,null,"＜回答例＞\n・是正措置報告書",null,null,null,null,null,null,null,null,null,null,null,null,null,null,null,null,null,4,{"$f":"+AC402","v":1},null,0,0,0,null,0,0]
[null,null,null,null,null,null,null,null,null,null,null,null,null,null,null,null,null,null,null,null,null,null,null,null,null,null,null,4,{"$f":"+AC403","v":1},null,0,0,0,null,0,0]
[null,{"$f":"+B401+1","v":58},null,"共通管理","実施確認","●",null,null,"(3) 評価の結果及び是正処置の結果等の取組みについてトップマネジメントが適切性，有効性についてのレビューを行っていますか","＜適合判断基準＞\n適　合：ＣｉＰ管理に関する評価結果，是正処置のトップマネジメントの手順等が定められており，記録している\n準適合：手順や記録に一部不備がある\n不適合：記録がない",null,null,"(3) ＣｉＰ管理に関するトップマネジメントのレビュー結果の記録名を記載して下さい",null,null,null,null,null,null,null,null,null,null,null,null,null,null,4,{"$f":"+IF(H405=\"●\",3,1)","v":1},null,"●",0,0,null,0,0]
[null,null,null,null,null,null,null,null,null,null,null,null,null,null,null,null,null,null,null,null,null,null,null,null,null,null,null,4,{"$f":"+AC405","v":1},null,0,0,0,null,0,0]
[null,null,null,null,null,null,null,null,null,"＜回答例＞\n・マネジメントレビュー報告書\n\n＜管理の注意ポイント＞\n・ISO9001やISO14001等に組み込んで内部監査を実施している場合，内部監査報告書がＣｉＰについても実施しているのかを報告書の「監査範囲」などで明記されるのが望ましい",null,null,null,null,null,null,null,null,null,null,null,null,null,null,null,null,null,4,{"$f":"+AC406","v":1},null,0,0,0,null,0,0]
[null,null,null,null,null,null,null,null,null,null,null,null,null,null,null,null,null,null,null,null,null,null,null,null,null,null,null,4,{"$f":"+AC407","v":1},null,0,0,0,null,0,0]
[null,{"$f":"+B405+1","v":59},null,"共通管理","文書化確認",null,"●",null,"(4) 上記 (1)～(3) を実施する手順を定めた文書がありますか\n","＜適合判断基準＞\n適　合：上記 (1)～(3) を実施する仕組み・手順を記載した文書が全て揃っている\n準適合：一部不足している\n不適合：揃っている文書が半分以下",null,null,"(4) 実施状況の評価及び改善の実施について定めた文書名，項目名を記載して下さい ",null,null,null,null,null,null,null,null,null,null,null,null,null,2,4,{"$f":"+IF(H409=\"●\",3,1)","v":1},null,0,"●",0,null,0,0]
[null,null,null,null,null,null,null,null,null,null,null,null,null,null,null,null,null,null,null,null,null,null,null,null,null,null,2,4,{"$f":"+AC409","v":1},null,0,0,0,null,0,0]
[null,null,null,null,null,null,null,null,null,"＜回答例＞\n・「内部監査規程」\n・「ＣｉＰ管理規程」 \n  第○項：マネジメントレビュー",null,null,null,null,null,null,null,null,null,null,null,null,null,null,null,null,2,4,{"$f":"+AC410","v":1},null,0,0,0,null,0,0]
[null,null,null,null,null,null,null,null,null,null,null,null,null,null,null,null,null,null,null,null,null,null,null,null,null,null,2,4,{"$f":"+AC411","v":1},null,0,0,0,null,0,0]
[]
[]
[]
[]
[null,null,null,null,null,null,null,null,null,"有",null,"適合"]
[null,null,null,null,null,null,null,null,"●","無",null,"準適合"]
[null,null,null,null,null,null,null,null,null,null,null,"不適合"]
[null,null,null,null,null,null,null,null,null,null,null,"非該当"]

{"sheet":"3.チェックシートの使い方と利用ルール ","index":2,"n_rows":90,"n_cols":3,"rows_kept":90,"cut":false,"hidden":false,"merged":[[56,2,56,3],[57,2,57,3],[58,2,58,3],[59,2,59,3],[60,2,60,3],[55,2,55,3],[31,2,31,3],[32,2,32,3],[33,2,33,3],[34,1,34,3],[39,1,47,3],[49,2,49,3],[50,2,50,3],[51,2,51,3],[52,2,52,3],[53,2,53,3],[54,2,54,3],[30,2,30,3],[19,2,19,3],[20,2,20,3],[21,2,21,3],[22,2,22,3],[23,2,23,3],[24,2,24,3],[25,2,25,3],[26,2,26,3],[27,1,27,3],[28,2,28,3],[29,2,29,3],[18,2,18,3],[3,1,6,3],[8,1,8,3],[9,2,9,3],[10,2,10,3],[11,2,11,3],[12,2,12,3],[13,2,13,3],[14,2,14,3],[15,2,15,3],[16,2,16,3],[17,2,17,3],[76,2,76,3],[78,2,78,3],[79,2,79,3],[65,1,68,3],[70,1,70,3],[82,2,82,3],[83,2,83,3],[84,2,84,3],[77,1,77,3],[80,2,80,3],[81,2,81,3],[85,2,85,3],[86,2,86,3],[87,2,87,3],[88,2,88,3],[89,2,89,3]]}
[]
[null,null,"PC表示設定，評価用　簡易印刷の使い方について"]
[]
[null,"本チェックシートを使用し実際に評価を行う際，評価の効率化を図るため，下記の機能を追加致しました。\n◆PC表示設定機能\n◆評価用　簡易印刷機能"]
[]
[]
[]
[]
[null,"◆PC表示設定機能"]
[null,1,"設問フラグ：全表示"]
[null,null,"　　　　　　　　　をクリックすると，自動的に全ての設問及び設問無し項目を表示"]
[null,null,"使用用途(例)：オリジナルなチェックシート全てを表示して使用する場合"]
[null,2,"設問フラグ：ベーシック"]
[null,null,"　　　　　　　　　　をクリックすると，自動的にベーシック欄に「●」または「-」にて設定されている設問を表示"]
[null,null,"使用用途(例)：自己適合宣言にて使用する場合"]
[null,3,"設問フラグ：+アドバンス"]
[null,null,"　　　　　　　　　をクリックすると，自動的にベーシック及びアドバンス欄に「●」または「-」にて設定されている設問(全設問)を表示"]
[null,null,"使用用途(例)：実施項目（内容）に対し，実施されていることを具体的に確認するために，設定されたすべての設問を使用する場合"]
[null,4,"設問フラグ：セレクト"]
[null,null,"　　　　　　　　　をクリックすると，自動的にセレクト欄に「●」または「-」にて設定されている設問を表示"]
[null,null,"使用用途(例)：個社要求事項の確認に使用する場合"]
[null,5,"適合判断基準・回答例・管理の注意ポイント：表示"]
[null,null,"　　　　　　　　　をクリックすると，自動的に適合判断基準，回答例，管理の注意ポイントの列を表示"]
[null,null,"使用用途(例)：各設問に対し目安となる適合判断基準，回答例，管理の注意ポイントを表示して確認する場合"]
[null,6,"適合判断基準・回答例・管理の注意ポイント：非表示"]
[null,null,"　　　　　　　　　をクリックすると，自動的に適合判断基準，回答例，管理の注意ポイントの列を非表示"]
[null,null,"使用用途(例)：評価結果の確認時，設問と回答を見やすくするために使用する場合"]
[null,"◆評価用　簡易印刷機能"]
[null,1,"A3サイズ印刷"]
[null,null,"　　　　　　　　　をクリックすると，自動的に設問No.1～59の内容をA3サイズにて印刷"]
[null,null,"使用用途(例)：実施項目(内容）に対し，実施されていることが具体的に確認するために設定された設問No.1～59全てをA3サイズで印刷する場合"]
[null,2,"A4サイズ印刷"]
[null,null,"　　　　　　　　　をクリックすると，自動的に下記項目以外をA4サイズにて印刷\n　・各項目の説明\n　・記入要領\n　・設問無し項目\n　・適合判断基準・回答例・管理の注意"]
[null,null,"使用用途(例)：評価時や内容確認の際，印刷をして机上確認にて使用する場合"]
[null,"※印刷について\n　　EXCELメニューより印刷を行った場合に，行の途中で改行される場合があります。\n　　このような場合は，EXCELメニューの”改ページ挿入”にて調整を行って下さい。\n　注意：行の高さ，列の幅は，ファイルにてロックされているため，変更はできません"]
[]
[]
[null,null,"チェックシート利用に関するルール及び編集方法"]
[]
[null,"  本ガイドライン及びチェックシートは，サプライチェーンで共通に活用することで，ＣｉＰの管理レベルを向上させるとともに，関係する組織の負荷を低減することを目指しています。そのため，チェックシートの改変は認められません。「製品含有化学物質（ＣｉＰ）管理ガイドライン（第4.0版）附属書 チェックシート（第4.00版）｣　シート「2.チェックシート」については「設問フラグ(*セレクト欄)」以外の編集は行わずに使用して下さい。なお，シート「2.チェックシート」以外に，利用者の目的に応じた新たなシート（個社の独自の補足説明等）の追加は自由に編集が可能です。\n\n＜設問フラグ(*セレクト欄)の編集方法＞\n  この欄は本チェックシートの利用者(第一者(例えば製品の供給者)，第二者等(例えば購買側の事業者，または業界団体等))で自由に編集が可能な欄です。フラグのタイトルとその説明を追記して使用して下さい。"]
[]
[]
[]
[]
[]
[]
[]
[]
[]
[null,"手順１","図に示した例のように，設問フラグ【*セレクト欄】の名称および説明を記載する"]
[]
[null,"手順２","図に示した例のように，設問フラグのタイトルに記載し，必要な設問箇所にフラグ「●」を選択する　　\n※評価結果の集計欄とリンクしているため「●」以外のフラグは使用しないで下さい"]
[]
[null,"手順３","図に示した例のように，編集していることを示す為のタイトルを入力する"]
[]
[null,"手順４","設問ごとに，追加の指示，補足を行う場合は，該当する設問の”判定根拠・メモ等”欄を使用し，記載する"]
[]
[null,"手順５","このファイルにワークシートを追加して運用する場合は，\n手順３で記載したタイトルの下に添付資料：有として，EXCELワークシートを追加すること"]
[]
[null,"手順６","PC表示設定　設問フラグの「*セレクト」をクリックすることで，必要な設問のみ表示する事ができます"]
[]
[]
[]
[null,null,"設問の大分類と小分類について"]
[]
[null,"設問ごとに設定する大分類、小分類について説明します。　大分類及び小分類は、設問の主となる内容を分類し、目安となるように表示したものです。\n設問ごとの評価時において、確認するエビデンスは、評価の対象となる組織ごとに異なる場合が想定されます。その結果、記載する分類とは異なる場合も発生することがあります。\n\n"]
[]
[]
[]
[]
[null,"◆大分類"]
[null,1,"共通管理"]
[null,null,"評価対象となる組織において共通の管理対象について設定された設問"]
[null,null,"例：5.1.3 ＣｉＰ管理の適用範囲の決定，5.2.2　方針，5.2.3 組織の役割，責任及び権限　　等"]
[null,2,"工程管理"]
[null,null,"設計・開発，購買，製造工程，引渡しなどの各工程を対象とした設問"]
[null,null,"使用用途(例)：自己適合宣言にて使用する場合"]
[null,"◆小分類"]
[null,1,"基準の有無確認"]
[null,null,"ＣｉＰ管理にかかわる各種基準類の有無を確認する設問"]
[null,2,"実施確認"]
[null,null,"ＣｉＰ管理にて定める手順の実施状況について確認する設問"]
[null,3,"見直し確認"]
[null,null,"ＣｉＰ管理にて定めた目標、手順などについて，適切性を向上するための見直しについて確認する設問"]
[null,4,"周知確認"]
[null,null,"ＣｉＰ管理にかかわる周知事項について確認する設問"]
[null,5,"文書化確認"]
[null,null,"ＣｉＰ管理にかかわる各種手順，割などの文書化について確認する設問"]
[null,6,"記録確認"]
[null,null,"ＣｉＰ管理にかかわる記録類の有無を確認する設問"]

{"sheet":"4.設問内容一覧","index":3,"n_rows":63,"n_cols":7,"rows_kept":63,"cut":false,"hidden":false,"merged":[[1,1,1,6],[36,1,38,1],[39,1,42,1],[43,1,48,1],[50,1,53,1],[55,1,58,1],[59,1,62,1],[7,1,9,1],[11,1,12,1],[13,1,14,1],[17,1,23,1],[24,1,33,1],[34,1,35,1]]}
[]
[null,{"$f":"+'2.チェックシート'!B2:Q2","v":"製品含有化学物質（ＣｉＰ）管理ガイドライン（第4.0版）附属書\nチェックシート（第4.01版）"}]
[]
[null,"評価項目","設問番号","大分類","小分類","ﾍﾞｰｼｯｸ","設問内容"]
[null,{"$f":"+'2.チェックシート'!B67","v":" 5.1.3 ＣｉＰ管理の適用範囲の決定"},{"$f":"+'2.チェックシート'!B69","v":1},{"$f":"+'2.チェックシート'!D69","v":"共通管理"},{"$f":"+'2.チェックシート'!E69","v":"実施の確認"},null,{"$f":"+'2.チェックシート'!I69","v":"ＣｉＰ管理の仕組みを適用する範囲が明確になっていますか \n"}]
[null,{"$f":"+'2.チェックシート'!B84","v":" 5.2.2 方針"},{"$f":"+'2.チェックシート'!B86","v":2},{"$f":"+'2.チェックシート'!D86","v":"共通管理"},{"$f":"+'2.チェックシート'!E86","v":"実施確認・周知確認"},{"$f":"+'2.チェックシート'!F86","v":"●"},{"$f":"+'2.チェックシート'!I86","v":"ＣｉＰ管理方針が明確になっていますか\n(a) トップマネジメントはＣｉＰ管理を適切に取組むために方針を表明していますか \n(b) 関係部署に周知されていますか\n"}]
[null,{"$f":"+'2.チェックシート'!B91","v":" 5.2.3 組織の役割，責任及び権限"},{"$f":"+'2.チェックシート'!B93","v":3},{"$f":"+'2.チェックシート'!D93","v":"共通管理"},{"$f":"+'2.チェックシート'!E93","v":"実施確認・周知確認"},{"$f":"+'2.チェックシート'!F93","v":"●"},{"$f":"+'2.チェックシート'!I93","v":"ＣｉＰ管理に関係する部署と役割が明確になっていますか\n(a) ＣｉＰ管理に関係する部署を明確にし，\n(b) 役割に対する責任及び権限を規定し，\n(c) それらを周知していますか\n"}]
[null,{"$f":"+'2.チェックシート'!B104","v":" 5.3.2 目標及びそれを達成するための計画策定"},{"$f":"+'2.チェックシート'!B106","v":4},{"$f":"+'2.チェックシート'!D106","v":"共通管理"},{"$f":"+'2.チェックシート'!E106","v":"実施確認"},{"$f":"+'2.チェックシート'!F106","v":"●"},{"$f":"+'2.チェックシート'!I106","v":"(1) 目標設定し，その達成のための計画を作成していますか  \n"}]
[null,null,{"$f":"+'2.チェックシート'!B110","v":5},{"$f":"+'2.チェックシート'!D110","v":"共通管理"},{"$f":"+'2.チェックシート'!E110","v":"見直し確認"},{"$f":"+'2.チェックシート'!F110","v":"●"},{"$f":"+'2.チェックシート'!I110","v":"(2) 必要に応じて目標，実施計画を見直していますか \n"}]
[null,null,{"$f":"+'2.チェックシート'!B114","v":6},{"$f":"+'2.チェックシート'!D114","v":"共通管理"},{"$f":"+'2.チェックシート'!E114","v":"周知確認"},{"$f":"+'2.チェックシート'!F114","v":"●"},{"$f":"+'2.チェックシート'!I114","v":"(3) 目標及び実施計画を関係部署に周知していますか　\n"}]
[null,{"$f":"+'2.チェックシート'!B125","v":" 5.4.2 力量"},{"$f":"+'2.チェックシート'!B127","v":7},{"$f":"+'2.チェックシート'!D127","v":"共通管理"},{"$f":"+'2.チェックシート'!E127","v":"実施確認・記録確認"},{"$f":"+'2.チェックシート'!F127","v":"●"},{"$f":"+'2.チェックシート'!I127","v":"(a) 運営管理の項目ごとに教育が必要な対象者，教育・訓練内容を定めていますか\n(b) 教育訓練を実施し記録していますか \n"}]
[null,{"$f":"+'2.チェックシート'!B152","v":" 5.4.5 文書化した情報"},{"$f":"+'2.チェックシート'!B154","v":8},{"$f":"+'2.チェックシート'!D154","v":"共通管理"},{"$f":"+'2.チェックシート'!E154","v":"実施確認"},{"$f":"+'2.チェックシート'!F154","v":"●"},{"$f":"+'2.チェックシート'!I154","v":"(1) ＣｉＰ管理に関わる文書（本チェックシートで確認した文書）を管理していますか\n"}]
[null,null,{"$f":"+'2.チェックシート'!B158","v":9},{"$f":"+'2.チェックシート'!D158","v":"共通管理"},{"$f":"+'2.チェックシート'!E158","v":"記録確認"},null,{"$f":"+'2.チェックシート'!I158","v":"(2) ＣｉＰ管理に関する運用記録を保管していますか\n"}]
[null,{"$f":"+'2.チェックシート'!B170","v":" 5.5.2.1 顧客とのコミュニケーション"},{"$f":"+'2.チェックシート'!B172","v":10},{"$f":"+'2.チェックシート'!D172","v":"共通管理"},{"$f":"+'2.チェックシート'!E172","v":"実施確認"},{"$f":"+'2.チェックシート'!F172","v":"●"},{"$f":"+'2.チェックシート'!I172","v":"(1) 下記 (a)～(d) の該当する項目について顧客，供給者への情報伝達，情報交換を図る効果的な方法があり，実施していますか\n(a) 顧客，供給者が順守する必要がある法規制及び業界基準の入手\n(b) ＣｉＰ情報の提供\n(c) ＣｉＰ管理に関する情報の提供\n(d) 苦情を含む顧客からのフィードバックの取得\n"}]
[null,null,{"$f":"+'2.チェックシート'!B176","v":11},{"$f":"+'2.チェックシート'!D176","v":"共通管理"},{"$f":"+'2.チェックシート'!E176","v":"記録確認"},{"$f":"+'2.チェックシート'!F176","v":"●"},{"$f":"+'2.チェックシート'!I176","v":"(2) 上記 (1) の内容を記録していますか \n"}]
[null,{"$f":"+'2.チェックシート'!B181","v":" 5.5.2.2 ＣｉＰ管理基準の明確化"},{"$f":"+'2.チェックシート'!B183","v":12},{"$f":"+'2.チェックシート'!D183","v":"共通管理"},{"$f":"+'2.チェックシート'!E183","v":"基準の有無確認･文書化確認"},{"$f":"+'2.チェックシート'!F183","v":"●"},{"$f":"+'2.チェックシート'!I183","v":"以下の要件を満たすＣｉＰ管理基準があり，実施する手順を定めた文書がありますか\n(a) 対象とする化学物質がリスト化されている\n(b) 基準に管理レベルが明確に示されている\n(c) 適用される法規制，業界基準を明確にしている\n(d) 必要に応じて，または定期的に基準を見直している\n(e) 基準を関係部署に伝達している\n"}]
[null,{"$f":"+'2.チェックシート'!B188","v":" 5.5.3 設計・開発におけるＣｉＰ管理"},{"$f":"+'2.チェックシート'!B190","v":13},{"$f":"+'2.チェックシート'!D190","v":"工程管理"},{"$f":"+'2.チェックシート'!E190","v":"基準の有無確認"},{"$f":"+'2.チェックシート'!F190","v":"●"},{"$f":"+'2.チェックシート'!I190","v":"新たな製品を生産する際には量産前に下記のＣｉＰ管理基準を定めていること\n(a) 購買段階での管理基準\n(b) 製造段階での管理基準\n(c) 引渡し段階での管理基準\n\n※設計・開発段階とは，設計・開発部門の業務だけではない\n"}]
[null,{"$f":"+'2.チェックシート'!B196","v":" 5.5.4.1 ＣｉＰ情報の入手及び確認"},{"$f":"+'2.チェックシート'!B198","v":14},{"$f":"+'2.チェックシート'!D198","v":"工程管理"},{"$f":"+'2.チェックシート'!E198","v":"基準の有無確認"},{"$f":"+'2.チェックシート'!F198","v":"●"},{"$f":"+'2.チェックシート'!I198","v":"(1) ＣｉＰ管理基準を定めた，化学物質及び，管理レベルを含む，購買に関する管理基準がありますか\n"}]
[null,null,{"$f":"+'2.チェックシート'!B202","v":15},{"$f":"+'2.チェックシート'!D202","v":"工程管理"},{"$f":"+'2.チェックシート'!E202","v":"周知確認"},{"$f":"+'2.チェックシート'!F202","v":"●"},{"$f":"+'2.チェックシート'!I202","v":"(2) 上記の「購買に関する管理基準」は供給者に対し，どのように周知していますか\n"}]
[null,null,{"$f":"+'2.チェックシート'!B206","v":16},{"$f":"+'2.チェックシート'!D206","v":"工程管理"},{"$f":"+'2.チェックシート'!E206","v":"実施確認"},{"$f":"+'2.チェックシート'!F206","v":"●"},{"$f":"+'2.チェックシート'!I206","v":"(3) 製品を構成する全ての構成要素に対し，要否を確認の上，必要なＣｉＰ情報を購買先より，入手する時期・手段・部署(人)・構成要素の確認方法が明確になっていますか\n"}]
[null,null,{"$f":"+'2.チェックシート'!B210","v":17},{"$f":"+'2.チェックシート'!D210","v":"工程管理"},{"$f":"+'2.チェックシート'!E210","v":"実施確認"},null,{"$f":"+'2.チェックシート'!I210","v":"(4)上記 (3) で入手すべきＣｉＰ情報の報告内容（含有有無，含有量，濃度，使用用途等）を，どのようなフォーマットで入手するか定められていますか\n"}]
[null,null,{"$f":"+'2.チェックシート'!B214","v":18},{"$f":"+'2.チェックシート'!D214","v":"工程管理"},{"$f":"+'2.チェックシート'!E214","v":"実施確認"},{"$f":"+'2.チェックシート'!F214","v":"●"},{"$f":"+'2.チェックシート'!I214","v":"(5) 上記 (3) で入手したＣｉＰ情報について，購買製品毎に管理基準の適合状況を，いつ，どのような方法でどの部署(人)が判定しているか明確になっていますか\n"}]
[null,null,{"$f":"+'2.チェックシート'!B218","v":19},{"$f":"+'2.チェックシート'!D218","v":"工程管理"},{"$f":"+'2.チェックシート'!E218","v":"実施確認"},{"$f":"+'2.チェックシート'!F218","v":"●"},{"$f":"+'2.チェックシート'!I218","v":"(6) 上記 (3) で情報を入手できなかった場合，または，判定の結果，購買管理基準を満たさなかった場合の対応を明確にしていますか　\n"}]
[null,null,{"$f":"+'2.チェックシート'!B222","v":20},{"$f":"+'2.チェックシート'!D222","v":"工程管理"},{"$f":"+'2.チェックシート'!E222","v":"実施確認"},null,{"$f":"+'2.チェックシート'!I222","v":"(7) 自社製品のＣｉＰ情報毎に適合状況を判定していますか\n"}]
[null,{"$f":"+'2.チェックシート'!B227","v":" 5.5.4.2 供給者におけるＣｉＰの管理状況の確認"},{"$f":"+'2.チェックシート'!B229","v":21},{"$f":"+'2.チェックシート'!D229","v":"工程管理"},{"$f":"+'2.チェックシート'!E229","v":"実施確認"},{"$f":"+'2.チェックシート'!F229","v":"●"},{"$f":"+'2.チェックシート'!I229","v":"(1) 供給者に対し，ＣｉＰ管理基準を満たすために，ＣｉＰ管理の仕組みの構築と運用を要求していますか\n"}]
[null,null,{"$f":"+'2.チェックシート'!B233","v":22},{"$f":"+'2.チェックシート'!D233","v":"工程管理"},{"$f":"+'2.チェックシート'!E233","v":"実施確認"},{"$f":"+'2.チェックシート'!F233","v":"●"},{"$f":"+'2.チェックシート'!I233","v":"(2) 新規に供給者を選定する場合，供給者に対しＣｉＰ管理の状況を確認していますか\n"}]
[null,null,{"$f":"+'2.チェックシート'!B237","v":23},{"$f":"+'2.チェックシート'!D237","v":"工程管理"},{"$f":"+'2.チェックシート'!E237","v":"実施確認"},{"$f":"+'2.チェックシート'!F237","v":"●"},{"$f":"+'2.チェックシート'!I237","v":"(3) 取り引きを継続する場合，必要に応じて定期的にＣｉＰ管理の状況を再確認していますか\n"}]
[null,null,{"$f":"+'2.チェックシート'!B241","v":24},{"$f":"+'2.チェックシート'!D241","v":"工程管理"},{"$f":"+'2.チェックシート'!E241","v":"記録確認"},{"$f":"+'2.チェックシート'!F241","v":"●"},{"$f":"+'2.チェックシート'!I241","v":"(4) 上記 (2)，(3) について，供給者に対するＣｉＰ管理の状況の確認結果を記録していますか \n"}]
[null,null,{"$f":"+'2.チェックシート'!B245","v":25},{"$f":"+'2.チェックシート'!D245","v":"工程管理"},{"$f":"+'2.チェックシート'!E245","v":"実施確認"},{"$f":"+'2.チェックシート'!F245","v":"●"},{"$f":"+'2.チェックシート'!I245","v":"(5) 上記 (2)，(3) についてＣｉＰ管理の状況の確認が未完了，または確認した内容，結果に問題がある場合の処置を定めていますか\n"}]
[null,null,{"$f":"+'2.チェックシート'!B249","v":26},{"$f":"+'2.チェックシート'!D249","v":"工程管理"},{"$f":"+'2.チェックシート'!E249","v":"実施確認"},null,{"$f":"+'2.チェックシート'!I249","v":"(6) 供給者(一次供給者)は購買する製品の供給者(二次供給者)がＣｉＰ管理の仕組みを構築し，運用していることを確認していますか\n"}]
[null,null,{"$f":"+'2.チェックシート'!B253","v":27},{"$f":"+'2.チェックシート'!D253","v":"工程管理"},{"$f":"+'2.チェックシート'!E253","v":"実施確認"},null,{"$f":"+'2.チェックシート'!I253","v":"(7) 新規採用時と継続採用時の評価において，供給者がＣｉＰ管理基準で定める使用禁止物質の汚染の恐れのある工程・材料の有無について把握していることを確認していますか \n"}]
[null,null,{"$f":"+'2.チェックシート'!B257","v":28},{"$f":"+'2.チェックシート'!D257","v":"工程管理"},{"$f":"+'2.チェックシート'!E257","v":"実施確認"},null,{"$f":"+'2.チェックシート'!I257","v":"(8) 上記 (7) の確認結果，供給者においてＣｉＰ管理基準で定める使用禁止物質の汚染の恐れがある場合，混入・汚染防止の適切な管理ができていることを確認していますか \n"}]
[null,null,{"$f":"+'2.チェックシート'!B261","v":29},{"$f":"+'2.チェックシート'!D261","v":"工程管理"},{"$f":"+'2.チェックシート'!E261","v":"実施確認"},null,{"$f":"+'2.チェックシート'!I261","v":"(9) 上記 (8) の結果，供給者における管理が確認できない場合，自ら「購買製品が購買に関する管理基準を満たすこと」を適切なエビデンスに基づいて確認・管理していますか \n"}]
[null,null,{"$f":"+'2.チェックシート'!B265","v":30},{"$f":"+'2.チェックシート'!D265","v":"工程管理"},{"$f":"+'2.チェックシート'!E265","v":"文書化確認"},null,{"$f":"+'2.チェックシート'!I265","v":"(10) 上記 (1)～(9) を実施する手順を定めた文書がありますか \n"}]
[null,{"$f":"+'2.チェックシート'!B270","v":" 5.5.4.3 受入れ時におけるＣｉＰ管理"},{"$f":"+'2.チェックシート'!B272","v":31},{"$f":"+'2.チェックシート'!D272","v":"工程管理"},{"$f":"+'2.チェックシート'!E272","v":"実施確認"},{"$f":"+'2.チェックシート'!F272","v":"●"},{"$f":"+'2.チェックシート'!I272","v":"(1) 受入時に購買製品が購買管理基準を満たしていることを確認していますか\n"}]
[null,null,{"$f":"+'2.チェックシート'!B276","v":32},{"$f":"+'2.チェックシート'!D276","v":"工程管理"},{"$f":"+'2.チェックシート'!E276","v":"記録確認"},{"$f":"+'2.チェックシート'!F276","v":"●"},{"$f":"+'2.チェックシート'!I276","v":"(2) 上記 (1) の結果を記録していますか \n"}]
[null,{"$f":"+'2.チェックシート'!B281","v":" 5.5.4.4 外部委託先におけるＣｉＰの管理状況の確認"},{"$f":"+'2.チェックシート'!B283","v":33},{"$f":"+'2.チェックシート'!D283","v":"工程管理"},{"$f":"+'2.チェックシート'!E283","v":"実施確認"},{"$f":"+'2.チェックシート'!F283","v":"●"},{"$f":"+'2.チェックシート'!I283","v":"(1) ＣｉＰ管理に関する管理項目/管理内容を外部委託先に文書等で伝達していますか\n"}]
[null,null,{"$f":"+'2.チェックシート'!B287","v":34},{"$f":"+'2.チェックシート'!D287","v":"工程管理"},{"$f":"+'2.チェックシート'!E287","v":"実施確認"},{"$f":"+'2.チェックシート'!F287","v":"●"},{"$f":"+'2.チェックシート'!I287","v":"(2) 上記 (1) で伝達した内容の実施状況を確認していますか\n"}]
[null,null,{"$f":"+'2.チェックシート'!B291","v":35},{"$f":"+'2.チェックシート'!D291","v":"工程管理"},{"$f":"+'2.チェックシート'!E291","v":"文書化確認"},null,{"$f":"+'2.チェックシート'!I291","v":"(3) 上記 (1)～(2) を実施する手順を定めた文書がありますか\n"}]
[null,{"$f":"+'2.チェックシート'!B297","v":" 5.5.5.1 製造工程における管理　（変換工程の管理）"},{"$f":"+'2.チェックシート'!B299","v":36},{"$f":"+'2.チェックシート'!D299","v":"工程管理"},{"$f":"+'2.チェックシート'!E299","v":"実施確認"},null,{"$f":"+'2.チェックシート'!I299","v":"(1) 化学物質/混合物を用いて製造する工程において，組成変化，濃度変化が生じる工程(変換工程)があり，かつその該当工程の管理を怠った場合に，ＣｉＰ管理基準の対象物質が管理基準を超えて残留または生成する可能性がありますか \n\n※上記条件に該当しない場合には (2)～(4) は「非該当」と記載して下さい \n"}]
[null,null,{"$f":"+'2.チェックシート'!B303","v":37},{"$f":"+'2.チェックシート'!D303","v":"工程管理"},{"$f":"+'2.チェックシート'!E303","v":"基準の有無確認"},{"$f":"+'2.チェックシート'!F303","v":"●"},{"$f":"+'2.チェックシート'!I303","v":"(2) 上記 (1) に該当する工程に対し，製造工程におけるＣｉＰに関わる管理基準を定めていますか\n"}]
[null,null,{"$f":"+'2.チェックシート'!B307","v":38},{"$f":"+'2.チェックシート'!D307","v":"工程管理"},{"$f":"+'2.チェックシート'!E307","v":"記録確認"},{"$f":"+'2.チェックシート'!F307","v":"●"},{"$f":"+'2.チェックシート'!I307","v":"(3) 上記 (2) の管理の結果を記録していますか\n"}]
[null,null,{"$f":"+'2.チェックシート'!B311","v":39},{"$f":"+'2.チェックシート'!D311","v":"工程管理"},{"$f":"+'2.チェックシート'!E311","v":"文書化確認"},null,{"$f":"+'2.チェックシート'!I311","v":"(4) 上記(2)～(3)の管理を実施する手順が文書化されていますか\n"}]
[null,{"$f":"+'2.チェックシート'!B316","v":" 5.5.5.2 誤使用及び汚染の防止　（併行生産及び使用禁止物質の誤使用・汚染の管理）"},{"$f":"+'2.チェックシート'!B318","v":40},{"$f":"+'2.チェックシート'!D318","v":"工程管理"},{"$f":"+'2.チェックシート'!E318","v":"実施確認"},{"$f":"+'2.チェックシート'!F318","v":"●"},{"$f":"+'2.チェックシート'!I318","v":"(1) ＣｉＰ管理基準で対象とした化学物質の，誤使用・汚染防止策を実施していますか \n\n※ＣｉＰ管理基準で定めた「使用禁止物質」の対応は (2)～(6) で確認します\n\n"}]
[null,null,{"$f":"+'2.チェックシート'!B322","v":41},{"$f":"+'2.チェックシート'!D322","v":"工程管理"},{"$f":"+'2.チェックシート'!E322","v":"実施確認"},null,{"$f":"+'2.チェックシート'!I322","v":"＜使用禁止物質対応＞\n\n(2) ＣｉＰ管理基準で定めた「使用禁止物質」の誤使用，汚染の恐れがある，または未確認の工程，材料がありますか \n\n※誤使用，汚染の恐れが無く，かつそれが未確認の工程，材料が無い場合には (3)～(6) は「非該当」と記載して下さい \n"}]
[null,null,{"$f":"+'2.チェックシート'!B326","v":42},{"$f":"+'2.チェックシート'!D326","v":"工程管理"},{"$f":"+'2.チェックシート'!E326","v":"実施確認"},{"$f":"+'2.チェックシート'!F326","v":"●"},{"$f":"+'2.チェックシート'!I326","v":"＜使用禁止物質対応＞\n\n(3) 部品・材料の受入，置き場（副資材，包装用材料含む）において，誤使用・汚染防止の適切な管理ができていますか \n"}]
[null,null,{"$f":"+'2.チェックシート'!B330","v":43},{"$f":"+'2.チェックシート'!D330","v":"工程管理"},{"$f":"+'2.チェックシート'!E330","v":"実施確認"},{"$f":"+'2.チェックシート'!F330","v":"●"},{"$f":"+'2.チェックシート'!I330","v":"＜使用禁止物質対応＞\n\n(4) 下記の関係する全ての製造工程において誤使用・汚染防止の適切な管理ができていますか\n(a) ライン工程，（その周辺を含む）\n(b) 仕掛品置き場（長期仕掛り品置場含む）\n(c) 手直し工程（例：はんだ付けを補正するための通常ラインではない工程）\n(d) 生産設備及び治工具（部品，材料に付着（接触）する場合）\n"}]
[null,null,{"$f":"+'2.チェックシート'!B334","v":44},{"$f":"+'2.チェックシート'!D334","v":"工程管理"},{"$f":"+'2.チェックシート'!E334","v":"実施確認"},{"$f":"+'2.チェックシート'!F334","v":"●"},{"$f":"+'2.チェックシート'!I334","v":"＜使用禁止物質対応＞\n\n(5) 出荷用倉庫における製品置き場においても，誤使用・汚染防止の適切な管理ができていますか \n"}]
[null,null,{"$f":"+'2.チェックシート'!B338","v":45},{"$f":"+'2.チェックシート'!D338","v":"工程管理"},{"$f":"+'2.チェックシート'!E338","v":"文書化確認"},null,{"$f":"+'2.チェックシート'!I338","v":"＜使用禁止物質対応＞\n\n(6) 上記 (3)～(5) の管理を実施する手順が文書化されていますか "}]
[null,{"$f":"+'2.チェックシート'!B343","v":" 5.5.5.3 識別及びトレーサビリティ"},{"$f":"+'2.チェックシート'!B345","v":46},{"$f":"+'2.チェックシート'!D345","v":"共通管理"},{"$f":"+'2.チェックシート'!E345","v":"実施確認・記録確認"},{"$f":"+'2.チェックシート'!F345","v":"●"},{"$f":"+'2.チェックシート'!I345","v":"引渡しされた製品から構成部材・原材料の受入れロット，製造時期・製造工程，外部委託先に関するＣｉＰ情報を速やかに把握，利用，開示及び伝達できるようになっていますか\n(a) 管理の方法が定められている\n(b) 記録を作成している\n"}]
[null,{"$f":"+'2.チェックシート'!B350","v":" 5.5.6 変更の管理"},{"$f":"+'2.チェックシート'!B352","v":47},{"$f":"+'2.チェックシート'!D352","v":"共通管理"},{"$f":"+'2.チェックシート'!E352","v":"実施確認"},{"$f":"+'2.チェックシート'!F352","v":"●"},{"$f":"+'2.チェックシート'!I352","v":"(1) 変更管理の対象となる事項を明確にしていますか\n"}]
[null,null,{"$f":"+'2.チェックシート'!B356","v":48},{"$f":"+'2.チェックシート'!D356","v":"共通管理"},{"$f":"+'2.チェックシート'!E356","v":"実施確認"},{"$f":"+'2.チェックシート'!F356","v":"●"},{"$f":"+'2.チェックシート'!I356","v":"(2) 上記 (1) の変更管理の対象が発生した場合，変更前に，要否を確認の上，必要なＣｉＰ情報を入手する部署(人)・時期・手段が明確になっていますか\n"}]
[null,null,{"$f":"+'2.チェックシート'!B360","v":49},{"$f":"+'2.チェックシート'!D360","v":"共通管理"},{"$f":"+'2.チェックシート'!E360","v":"実施確認"},{"$f":"+'2.チェックシート'!F360","v":"●"},{"$f":"+'2.チェックシート'!I360","v":"(3) 上記 (1) の変更管理の対象が，顧客または，顧客に出荷する製品に影響がある場合，変更前に顧客へ報告する部署(人)・時期・手段が明確になっていますか\n"}]
[null,null,{"$f":"+'2.チェックシート'!B364","v":50},{"$f":"+'2.チェックシート'!D364","v":"共通管理"},{"$f":"+'2.チェックシート'!E364","v":"記録確認"},{"$f":"+'2.チェックシート'!F364","v":"●"},{"$f":"+'2.チェックシート'!I364","v":"(4) 入手したＣｉＰ情報について，適合状況を判定し，その結果を記録していますか\n"}]
[null,{"$f":"+'2.チェックシート'!B369","v":" 5.5.7 製品の引渡し"},{"$f":"+'2.チェックシート'!B371","v":51},{"$f":"+'2.チェックシート'!D371","v":"工程管理"},{"$f":"+'2.チェックシート'!E371","v":"実施確認・記録確認"},{"$f":"+'2.チェックシート'!F371","v":"●"},{"$f":"+'2.チェックシート'!I371","v":"引渡し段階で「ＣｉＰ管理基準」を満足していることを確認し，記録していますか\n"}]
[null,{"$f":"+'2.チェックシート'!B376","v":" 5.5.8 不適合品発生時における対応"},{"$f":"+'2.チェックシート'!B378","v":52},{"$f":"+'2.チェックシート'!D378","v":"共通管理"},{"$f":"+'2.チェックシート'!E378","v":"実施確認"},{"$f":"+'2.チェックシート'!F378","v":"●"},{"$f":"+'2.チェックシート'!I378","v":"(1) ＣｉＰの不適合品（以下，不適合品という）が発生した際に，組織内部，供給者または外部委託先，顧客への連絡手順を定め実施していますか\n"}]
[null,null,{"$f":"+'2.チェックシート'!B382","v":53},{"$f":"+'2.チェックシート'!D382","v":"共通管理"},{"$f":"+'2.チェックシート'!E382","v":"実施確認"},{"$f":"+'2.チェックシート'!F382","v":"●"},{"$f":"+'2.チェックシート'!I382","v":"(2) 不適合品発生時に応急措置として波及範囲を特定し拡散を防止し識別管理するための手順を定め実施していますか\n"}]
[null,null,{"$f":"+'2.チェックシート'!B386","v":54},{"$f":"+'2.チェックシート'!D386","v":"共通管理"},{"$f":"+'2.チェックシート'!E386","v":"実施確認"},{"$f":"+'2.チェックシート'!F386","v":"●"},{"$f":"+'2.チェックシート'!I386","v":"(3) 原因究明とその恒久対策，予防措置をとるための手順を定め実施していますか\n"}]
[null,null,{"$f":"+'2.チェックシート'!B390","v":55},{"$f":"+'2.チェックシート'!D390","v":"共通管理"},{"$f":"+'2.チェックシート'!E390","v":"実施確認"},{"$f":"+'2.チェックシート'!F390","v":"●"},{"$f":"+'2.チェックシート'!I390","v":"(4) 再発防止策の水平展開をするための手順を定め実施していますか\n"}]
[null,{"$f":"+'2.チェックシート'!B395","v":" 5.6 パフォーマンス評価及び改善"},{"$f":"+'2.チェックシート'!B397","v":56},{"$f":"+'2.チェックシート'!D397","v":"共通管理"},{"$f":"+'2.チェックシート'!E397","v":"実施確認"},{"$f":"+'2.チェックシート'!F397","v":"●"},{"$f":"+'2.チェックシート'!I397","v":"(1) ＣｉＰの管理状況をあらかじめ定めた間隔で，評価をしていますか \n"}]
[null,null,{"$f":"+'2.チェックシート'!B401","v":57},{"$f":"+'2.チェックシート'!D401","v":"共通管理"},{"$f":"+'2.チェックシート'!E401","v":"実施確認"},{"$f":"+'2.チェックシート'!F401","v":"●"},{"$f":"+'2.チェックシート'!I401","v":"(2) (1) の評価の結果，是正が必要な場合には，是正処置を実施していますか。\n"}]
[null,null,{"$f":"+'2.チェックシート'!B405","v":58},{"$f":"+'2.チェックシート'!D405","v":"共通管理"},{"$f":"+'2.チェックシート'!E405","v":"実施確認"},{"$f":"+'2.チェックシート'!F405","v":"●"},{"$f":"+'2.チェックシート'!I405","v":"(3) 評価の結果及び是正処置の結果等の取組みについてトップマネジメントが適切性，有効性についてのレビューを行っていますか"}]
[null,null,{"$f":"+'2.チェックシート'!B409","v":59},{"$f":"+'2.チェックシート'!D409","v":"共通管理"},{"$f":"+'2.チェックシート'!E409","v":"文書化確認"},null,{"$f":"+'2.チェックシート'!I409","v":"(4) 上記 (1)～(3) を実施する手順を定めた文書がありますか\n"}]

{"sheet":"Sheet1","index":4,"n_rows":0,"n_cols":0,"rows_kept":0,"cut":false,"hidden":false,"merged":[]}

{"sheet":"Sheet2","index":5,"n_rows":0,"n_cols":0,"rows_kept":0,"cut":false,"hidden":false,"merged":[]}

{"sheet":"Sheet3","index":6,"n_rows":0,"n_cols":0,"rows_kept":0,"cut":false,"hidden":false,"merged":[]}